Workbook

Sheet CheatSheet
AN1: =SUMPRODUCT(--(Selected_2<>"")) -> 1 | AO1: =IF(SUMPRODUCT(--(Selected_3<>""))<=2,4,SUMPRODUCT(--(Selected_3<>""))+3) -> 4
AM2: Selected | AN2: Copy/DeDupe | AO2: Cumulative List
B3: Remove From List | C3: ="Draft"&CHAR(10)&" Rank" -> Draft Rank | D3: ="Draft"&CHAR(10)&" Round" -> Draft Round | E3: Player Name | F3: Team | G3: Position (CBS) | H3: Age | I3: ="ADP"&CHAR(10)&" Rank" -> ADP Rank | J3: ="ADP"&CHAR(10)&" Round" -> ADP Round | K3: Draft Value | L3: =VLOOKUP(RankData!$AC$1,Labels,3,FALSE) -> OBP / Wins | M3: =VLOOKUP(RankData!$AC$1,Labels,4,FALSE) -> Runs / Saves | N3: =VLOOKUP(RankData!$AC$1,Labels,5,FALSE) -> HRs / K9 | O3: =VLOOKUP(RankData!$AC$1,Labels,6,FALSE) -> RBI / ERA | P3: =VLOOKUP(RankData!$AC$1,Labels,7,FALSE) -> SB / WHIP | Q3: =VLOOKUP(RankData!$AC$1,Labels,8,FALSE) -> Hits / Holds | R3: =VLOOKUP(RankData!$AC$1,Labels,9,FALSE) -> XHits / Velocity | S3: Auction Value | AM3: ZZZ_Null | AN3: ZZZ_Null | AO3: ZZZ_Null
C4: 1 | D4: 1.01 | E4: Ronald Acuna | F4: ATL | G4: OF | H4: 28 | I4: 7 | J4: 1.08 | K4: Good Value in Rnd 1 | L4: 0.397 | M4: 120 | N4: 34 | O4: 83 | P4: 35 | Q4: 178 | R4: 69 | S4: 54.2 | T4: acunaronald_B | U4: =IF(OR(ISNUMBER(MATCH(T4,Selected_3V,0)),ISNUMBER(B4)),1,0) -> 0 | V4: 96 | W4: 96 | X4: 91 | Y4: 77 | Z4: 90 | AA4: 89 | AB4: 87 | AM4: =IF(U4=1,T4,"") ->  | AU4: =IF(ISNA(MATCH($AO4,NameKeys,0)),"",INDEX(RankData,MATCH($AO4,NameKeys,0),4)&"/"&INDEX(RankData,MATCH($AO4,NameKeys,0),6)&"/"&INDEX(RankData,MATCH($AO4,NameKeys,0),5)) -> 
C5: 2 | D5: 1.02 | E5: Juan Soto | F5: NYM | G5: OF | H5: 27 | I5: 4 | J5: 1.05 | K5: Good Value in Rnd 1 | L5: 0.43 | M5: 113 | N5: 37 | O5: 102 | P5: 17 | Q5: 159 | R5: 67 | S5: 52.66 | T5: sotojuan_B | U5: =IF(OR(ISNUMBER(MATCH(T5,Selected_3V,0)),ISNUMBER(B5)),1,0) -> 0 | V5: 99 | W5: 94 | X5: 93 | Y5: 91 | Z5: 61 | AA5: 80 | AB5: 85 | AM5: =IF(U5=1,T5,"") -> 
C6: 3 | D6: 1.03 | E6: Shohei Ohtani | F6: LAD | G6: DH,SP | H6: 32 | I6: 1 | J6: 1.02 | K6: Good Value in Rnd 1 | L6: 0.394 | M6: 116 | N6: 45 | O6: 105 | P6: 25 | Q6: 163 | R6: 80 | S6: 50.94 | T6: ohtanishohei_B | U6: =IF(OR(ISNUMBER(MATCH(T6,Selected_3V,0)),ISNUMBER(B6)),1,0) -> 0 | V6: 95 | W6: 95 | X6: 98 | Y6: 92 | Z6: 77 | AA6: 82 | AB6: 94
C7: 4 | D7: 1.04 | E7: Aaron Judge | F7: NYY | G7: OF | H7: 34 | I7: 2 | J7: 1.03 | K7: Good Value in Rnd 1 | L7: 0.434 | M7: 122 | N7: 51 | O7: 115 | P7: 9 | Q7: 168 | R7: 81 | S7: 48.4 | T7: judgeaaron_B | U7: =IF(OR(ISNUMBER(MATCH(T7,Selected_3V,0)),ISNUMBER(B7)),1,0) -> 0 | V7: 99 | W7: 97 | X7: 99 | Y7: 95 | Z7: 42 | AA7: 85 | AB7: 94
C8: 5 | D8: 1.05 | E8: Bobby Witt | F8: KCR | G8: SS | H8: 26 | I8: 3 | J8: 1.04 | K8: Good Value in Rnd 1 | L8: 0.348 | M8: 103 | N8: 28 | O8: 96 | P8: 37 | Q8: 179 | R8: 75 | S8: 47.48 | T8: wittbobby_B | U8: =IF(OR(ISNUMBER(MATCH(T8,Selected_3V,0)),ISNUMBER(B8)),1,0) -> 0 | V8: 74 | W8: 90 | X8: 82 | Y8: 87 | Z8: 91 | AA8: 89 | AB8: 91
C9: 6 | D9: 1.06 | E9: Nick Kurtz | F9: ATH | G9: 1B | H9: 23 | I9: 22 | J9: 2.11 | K9: Rnd 2 ADP Bargain | L9: 0.396 | M9: 117 | N9: 46 | O9: 119 | P9: 3 | Q9: 168 | R9: 88 | S9: 46.72 | T9: kurtznick_B | U9: =IF(OR(ISNUMBER(MATCH(T9,Selected_3V,0)),ISNUMBER(B9)),1,0) -> 0 | V9: 95 | W9: 95 | X9: 98 | Y9: 96 | Z9: 29 | AA9: 85 | AB9: 97
C10: 7 | D10: 1.07 | E10: Fernando Tatis | F10: SDP | G10: OF | H10: 27 | I10: 14 | J10: 2.03 | K10: Rnd 2 ADP Bargain | L10: 0.367 | M10: 112 | N10: 35 | O10: 91 | P10: 29 | Q10: 172 | R10: 73 | S10: 46.54 | T10: tatisfernando_B | U10: =IF(OR(ISNUMBER(MATCH(T10,Selected_3V,0)),ISNUMBER(B10)),1,0) -> 0 | V10: 86 | W10: 94 | X10: 92 | Y10: 84 | Z10: 83 | AA10: 87 | AB10: 90
C11: 8 | D11: 1.08 | E11: Kyle Tucker | F11: LAD | G11: OF | H11: 29 | I11: 12 | J11: 2.01 | K11: Rnd 2 ADP Bargain | L11: 0.375 | M11: 95 | N11: 30 | O11: 97 | P11: 25 | Q11: 156 | R11: 68 | S11: 46.54 | T11: tuckerkyle_B | U11: =IF(OR(ISNUMBER(MATCH(T11,Selected_3V,0)),ISNUMBER(B11)),1,0) -> 0 | V11: 90 | W11: 85 | X11: 85 | Y11: 88 | Z11: 77 | AA11: 79 | AB11: 86
C12: 9 | D12: 1.09 | E12: Julio Rodriguez | F12: SEA | G12: OF | H12: 25 | I12: 10 | J12: 1.11 | K12: Good Value in Rnd 1 | L12: 0.342 | M12: 102 | N12: 29 | O12: 92 | P12: 31 | Q12: 178 | R12: 62 | S12: 45.54 | T12: rodriguezjulio_B | U12: =IF(OR(ISNUMBER(MATCH(T12,Selected_3V,0)),ISNUMBER(B12)),1,0) -> 0 | V12: 70 | W12: 90 | X12: 84 | Y12: 85 | Z12: 86 | AA12: 89 | AB12: 80
C13: 10 | D13: 1.10 | E13: Corbin Carroll | F13: ARI | G13: OF | H13: 26 | I13: 13 | J13: 2.02 | K13: Rnd 2 ADP Bargain | L13: 0.356 | M13: 115 | N13: 28 | O13: 83 | P13: 39 | Q13: 155 | R13: 73 | S13: 44.28 | T13: carrollcorbin_B | U13: =IF(OR(ISNUMBER(MATCH(T13,Selected_3V,0)),ISNUMBER(B13)),1,0) -> 0 | V13: 80 | W13: 95 | X13: 82 | Y13: 77 | Z13: 93 | AA13: 78 | AB13: 90
C14: 11 | D14: 1.11 | E14: Jose Ramirez | F14: CLE | G14: 3B | H14: 33 | I14: 5 | J14: 1.06 | K14: Good Value in Rnd 1 | L14: 0.368 | M14: 101 | N14: 30 | O14: 96 | P14: 32 | Q14: 170 | R14: 75 | S14: 43.08 | T14: ramirezjose_B | U14: =IF(OR(ISNUMBER(MATCH(T14,Selected_3V,0)),ISNUMBER(B14)),1,0) -> 0 | V14: 87 | W14: 89 | X14: 85 | Y14: 87 | Z14: 87 | AA14: 86 | AB14: 91
C15: 12 | D15: 1.12 | E15: Elly DeLaCruz | F15: CIN | G15: SS | H15: 24 | I15: 9 | J15: 1.10 | K15: Good Value in Rnd 1 | L15: 0.332 | M15: 100 | N15: 25 | O15: 86 | P15: 46 | Q15: 159 | R15: 69 | S15: 41.42 | T15: delacruzelly_B | U15: =IF(OR(ISNUMBER(MATCH(T15,Selected_3V,0)),ISNUMBER(B15)),1,0) -> 0 | V15: 60 | W15: 88 | X15: 75 | Y15: 80 | Z15: 96 | AA15: 80 | AB15: 87
C16: 13 | D16: 2.01 | E16: Vladimir Guerrero | F16: TOR | G16: 1B | H16: 27 | I16: 18 | J16: 2.07 | K16: Good Value in Rnd 2 | L16: 0.379 | M16: 94 | N16: 29 | O16: 96 | P16: 4 | Q16: 177 | R16: 66 | S16: 39.16 | T16: guerrerovladimir_B | U16: =IF(OR(ISNUMBER(MATCH(T16,Selected_3V,0)),ISNUMBER(B16)),1,0) -> 0 | V16: 91 | W16: 84 | X16: 84 | Y16: 87 | Z16: 31 | AA16: 89 | AB16: 84
C17: 14 | D17: 2.02 | E17: Gunnar Henderson | F17: BAL | G17: SS | H17: 25 | I17: 15 | J17: 2.04 | K17: Good Value in Rnd 2 | L17: 0.349 | M17: 99 | N17: 25 | O17: 85 | P17: 22 | Q17: 154 | R17: 65 | S17: 38.06 | T17: hendersongunnar_B | U17: =IF(OR(ISNUMBER(MATCH(T17,Selected_3V,0)),ISNUMBER(B17)),1,0) -> 0 | V17: 75 | W17: 88 | X17: 75 | Y17: 79 | Z17: 72 | AA17: 77 | AB17: 83
C18: 15 | D18: 2.03 | E18: Pete Alonso | F18: BAL | G18: 1B | H18: 31 | I18: 26 | J18: 3.03 | K18: Rnd 3 ADP Bargain | L18: 0.346 | M18: 91 | N18: 41 | O18: 113 | P18: 3 | Q18: 151 | R18: 72 | S18: 36.48 | T18: alonsopete_B | U18: =IF(OR(ISNUMBER(MATCH(T18,Selected_3V,0)),ISNUMBER(B18)),1,0) -> 0 | V18: 73 | W18: 82 | X18: 96 | Y18: 95 | Z18: 29 | AA18: 75 | AB18: 89
C19: 16 | D19: 2.04 | E19: Junior Caminero | F19: TBR | G19: 3B | H19: 23 | I19: 17 | J19: 2.06 | K19: Good Value in Rnd 2 | L19: 0.325 | M19: 87 | N19: 36 | O19: 104 | P19: 8 | Q19: 158 | R19: 61 | S19: 35.38 | T19: caminerojunior_B | U19: =IF(OR(ISNUMBER(MATCH(T19,Selected_3V,0)),ISNUMBER(B19)),1,0) -> 0 | V19: 53 | W19: 78 | X19: 93 | Y19: 91 | Z19: 40 | AA19: 80 | AB19: 78
C20: 17 | D20: 2.05 | E20: Yordan Alvarez | F20: HOU | G20: DH | H20: 29 | I20: 28 | J20: 3.05 | K20: Rnd 3 ADP Bargain | L20: 0.395 | M20: 89 | N20: 35 | O20: 103 | P20: 2 | Q20: 172 | R20: 79 | S20: 34.86 | T20: alvarezyordan_B | U20: =IF(OR(ISNUMBER(MATCH(T20,Selected_3V,0)),ISNUMBER(B20)),1,0) -> 0 | V20: 95 | W20: 80 | X20: 92 | Y20: 91 | Z20: 27 | AA20: 87 | AB20: 94
C21: 18 | D21: 2.06 | E21: Francisco Lindor | F21: NYM | G21: SS | H21: 32 | I21: 25 | J21: 3.02 | K21: Rnd 3 ADP Bargain | L21: 0.35 | M21: 107 | N21: 30 | O21: 88 | P21: 24 | Q21: 172 | R21: 68 | S21: 33.78 | T21: lindorfrancisco_B | U21: =IF(OR(ISNUMBER(MATCH(T21,Selected_3V,0)),ISNUMBER(B21)),1,0) -> 0 | V21: 76 | W21: 92 | X21: 85 | Y21: 82 | Z21: 75 | AA21: 87 | AB21: 86
C22: 19 | D22: 2.07 | E22: Jazz Chisholm | F22: NYY | G22: 2B,3B | H22: 28 | I22: 21 | J22: 2.10 | K22: Good Value in Rnd 2 | L22: 0.331 | M22: 85 | N22: 29 | O22: 84 | P22: 35 | Q22: 144 | R22: 56 | S22: 32.16 | T22: chisholmjazz_B | U22: =IF(OR(ISNUMBER(MATCH(T22,Selected_3V,0)),ISNUMBER(B22)),1,0) -> 0 | V22: 59 | W22: 76 | X22: 84 | Y22: 78 | Z22: 90 | AA22: 70 | AB22: 71
C23: 20 | D23: 2.08 | E23: Yoshinobu Yamamoto | F23: LAD | G23: SP | H23: 28 | I23: 24 | J23: 3.01 | K23: Rnd 3 ADP Bargain | L23: 18 | M23: 0 | N23: 10.4 | O23: 2.76 | P23: 1.04 | Q23: 0 | R23: 95 | S23: 31.88 | T23: yamamotoyoshinobu_P | U23: =IF(OR(ISNUMBER(MATCH(T23,Selected_3V,0)),ISNUMBER(B23)),1,0) -> 0 | V23: 94 | W23: 37 | X23: 64 | Y23: 14 | Z23: 13 | AA23: 30 | AB23: 50
C24: 21 | D24: 2.09 | E24: James Wood | F24: WSN | G24: OF | H24: 24 | I24: 36 | J24: 4.01 | K24: Rnd 4 ADP Bargain | L24: 0.354 | M24: 93 | N24: 26 | O24: 94 | P24: 22 | Q24: 151 | R24: 64 | S24: 31.86 | T24: woodjames_B | U24: =IF(OR(ISNUMBER(MATCH(T24,Selected_3V,0)),ISNUMBER(B24)),1,0) -> 0 | V24: 79 | W24: 84 | X24: 78 | Y24: 86 | Z24: 72 | AA24: 75 | AB24: 82
C25: 22 | D25: 2.10 | E25: Paul Skenes | F25: PIT | G25: SP | H25: 24 | I25: 8 | J25: 1.09 | K25: Fair Value in Rnd 2 | L25: 13 | M25: 0 | N25: 11.1 | O25: 2.05 | P25: 0.96 | Q25: 0 | R25: 98 | S25: 31.18 | T25: skenespaul_P | U25: =IF(OR(ISNUMBER(MATCH(T25,Selected_3V,0)),ISNUMBER(B25)),1,0) -> 0 | V25: 81 | W25: 37 | X25: 76 | Y25: 4 | Z25: 7 | AA25: 30 | AB25: 80
C26: 23 | D26: 2.11 | E26: Tarik Skubal | F26: DET | G26: SP | H26: 29 | I26: 6 | J26: 1.07 | K26: Fair Value in Rnd 2 | L26: 16 | M26: 0 | N26: 10.6 | O26: 2.9 | P26: 1 | Q26: 0 | R26: 96 | S26: 29.34 | T26: skubaltarik_P | U26: =IF(OR(ISNUMBER(MATCH(T26,Selected_3V,0)),ISNUMBER(B26)),1,0) -> 0 | V26: 91 | W26: 37 | X26: 68 | Y26: 17 | Z26: 10 | AA26: 30 | AB26: 62
C27: 24 | D27: 2.12 | E27: Mason Miller | F27: SDP | G27: RP | H27: 27 | I27: 39 | J27: 4.04 | K27: Rnd 4 ADP Bargain | L27: 3 | M27: 34 | N27: 14.3 | O27: 2.72 | P27: 0.93 | Q27: 6 | R27: 100 | S27: 28.78 | T27: millermason_P | U27: =IF(OR(ISNUMBER(MATCH(T27,Selected_3V,0)),ISNUMBER(B27)),1,0) -> 0 | V27: 23 | W27: 100 | X27: 97 | Y27: 13 | Z27: 5 | AA27: 55 | AB27: 91
C28: 25 | D28: 3.01 | E28: Bryce Harper | F28: PHI | G28: 1B | H28: 33 | I28: 40 | J28: 4.05 | K28: Rnd 4 ADP Bargain | L28: 0.397 | M28: 98 | N28: 32 | O28: 97 | P28: 13 | Q28: 160 | R28: 73 | S28: 28.1 | T28: harperbryce_B | U28: =IF(OR(ISNUMBER(MATCH(T28,Selected_3V,0)),ISNUMBER(B28)),1,0) -> 0 | V28: 96 | W28: 87 | X28: 88 | Y28: 88 | Z28: 52 | AA28: 81 | AB28: 90
C29: 26 | D29: 3.02 | E29: Mookie Betts | F29: LAD | G29: SS | H29: 34 | I29: 49 | J29: 5.02 | K29: Rnd 5 ADP Bargain | L29: 0.377 | M29: 118 | N29: 30 | O29: 94 | P29: 17 | Q29: 184 | R29: 77 | S29: 28.08 | T29: bettsmookie_B | U29: =IF(OR(ISNUMBER(MATCH(T29,Selected_3V,0)),ISNUMBER(B29)),1,0) -> 0 | V29: 90 | W29: 96 | X29: 85 | Y29: 86 | Z29: 61 | AA29: 91 | AB29: 93
C30: 27 | D30: 3.03 | E30: Kyle Schwarber | F30: PHI | G30: DH | H30: 33 | I30: 19 | J30: 2.08 | K30: Fair Value in Rnd 3 | L30: 0.362 | M30: 100 | N30: 44 | O30: 102 | P30: 5 | Q30: 130 | R30: 66 | S30: 27.88 | T30: schwarberkyle_B | U30: =IF(OR(ISNUMBER(MATCH(T30,Selected_3V,0)),ISNUMBER(B30)),1,0) -> 0 | V30: 84 | W30: 88 | X30: 97 | Y30: 91 | Z30: 33 | AA30: 59 | AB30: 84
C31: 28 | D31: 3.04 | E31: Garrett Crochet | F31: BOS | G31: SP | H31: 27 | I31: 11 | J31: 1.12 | K31: Rnd 1 ADP Bust | L31: 11 | M31: 0 | N31: 11.7 | O31: 2.95 | P31: 1.09 | Q31: 4 | R31: 97 | S31: 27.74 | T31: crochetgarrett_P | U31: =IF(OR(ISNUMBER(MATCH(T31,Selected_3V,0)),ISNUMBER(B31)),1,0) -> 0 | V31: 72 | W31: 37 | X31: 83 | Y31: 19 | Z31: 20 | AA31: 46 | AB31: 72
C32: 29 | D32: 3.05 | E32: Logan Gilbert | F32: SEA | G32: SP | H32: 29 | I32: 33 | J32: 3.10 | K32: Good Value in Rnd 3 | L32: 16 | M32: 0 | N32: 9.8 | O32: 3.53 | P32: 1.06 | Q32: 0 | R32: 96 | S32: 27.12 | T32: gilbertlogan_P | U32: =IF(OR(ISNUMBER(MATCH(T32,Selected_3V,0)),ISNUMBER(B32)),1,0) -> 0 | V32: 91 | W32: 37 | X32: 53 | Y32: 39 | Z32: 16 | AA32: 30 | AB32: 62
C33: 30 | D33: 3.06 | E33: Pete Crow-Armstrong | F33: CHC | G33: OF | H33: 24 | I33: 32 | J33: 3.09 | K33: Good Value in Rnd 3 | L33: 0.308 | M33: 95 | N33: 23 | O33: 84 | P33: 39 | Q33: 145 | R33: 60 | S33: 26.08 | T33: crow-armstrongpete_B | U33: =IF(OR(ISNUMBER(MATCH(T33,Selected_3V,0)),ISNUMBER(B33)),1,0) -> 0 | V33: 36 | W33: 85 | X33: 70 | Y33: 78 | Z33: 93 | AA33: 71 | AB33: 77
C34: 31 | D34: 3.07 | E34: Edwin Diaz | F34: LAD | G34: RP | H34: 32 | I34: 41 | J34: 4.06 | K34: Rnd 4 ADP Bargain | L34: 5 | M34: 36 | N34: 14.1 | O34: 2.71 | P34: 1.02 | Q34: 3 | R34: 98 | S34: 25.7 | T34: diazedwin_P | U34: =IF(OR(ISNUMBER(MATCH(T34,Selected_3V,0)),ISNUMBER(B34)),1,0) -> 0 | V34: 34 | W34: 100 | X34: 97 | Y34: 13 | Z34: 11 | AA34: 42 | AB34: 80
C35: 32 | D35: 3.08 | E35: Ketel Marte | F35: ARI | G35: 2B | H35: 32 | I35: 27 | J35: 3.04 | K35: Good Value in Rnd 3 | L35: 0.367 | M35: 90 | N35: 24 | O35: 78 | P35: 7 | Q35: 165 | R35: 63 | S35: 25.66 | T35: marteketel_B | U35: =IF(OR(ISNUMBER(MATCH(T35,Selected_3V,0)),ISNUMBER(B35)),1,0) -> 0 | V35: 86 | W35: 81 | X35: 73 | Y35: 72 | Z35: 38 | AA35: 83 | AB35: 81
C36: 33 | D36: 3.09 | E36: Cristopher Sanchez | F36: PHI | G36: SP | H36: 29 | I36: 23 | J36: 2.12 | K36: Fair Value in Rnd 3 | L36: 15 | M36: 0 | N36: 8.8 | O36: 3.33 | P36: 1.19 | Q36: 0 | R36: 94 | S36: 25.54 | T36: sanchezcristopher_P | U36: =IF(OR(ISNUMBER(MATCH(T36,Selected_3V,0)),ISNUMBER(B36)),1,0) -> 0 | V36: 88 | W36: 37 | X36: 34 | Y36: 31 | Z36: 38 | AA36: 30 | AB36: 39
C37: 34 | D37: 3.10 | E37: Andres Munoz | F37: SEA | G37: RP | H37: 27 | I37: 54 | J37: 5.07 | K37: Rnd 5 ADP Bargain | L37: 4 | M37: 24 | N37: 12.2 | O37: 2.41 | P37: 1.04 | Q37: 13 | R37: 99 | S37: 25.48 | T37: munozandres_P | U37: =IF(OR(ISNUMBER(MATCH(T37,Selected_3V,0)),ISNUMBER(B37)),1,0) -> 0 | V37: 28 | W37: 98 | X37: 88 | Y37: 8 | Z37: 13 | AA37: 80 | AB37: 87
C38: 35 | D38: 3.11 | E38: Cal Raleigh | F38: SEA | G38: C | H38: 29 | I38: 16 | J38: 2.05 | K38: Fair Value in Rnd 3 | L38: 0.335 | M38: 86 | N38: 41 | O38: 101 | P38: 7 | Q38: 129 | R38: 66 | S38: 25.42 | T38: raleighcal_B | U38: =IF(OR(ISNUMBER(MATCH(T38,Selected_3V,0)),ISNUMBER(B38)),1,0) -> 0 | V38: 63 | W38: 77 | X38: 96 | Y38: 90 | Z38: 38 | AA38: 58 | AB38: 84
C39: 36 | D39: 3.12 | E39: Trea Turner | F39: PHI | G39: SS | H39: 33 | I39: 30 | J39: 3.07 | K39: Good Value in Rnd 3 | L39: 0.359 | M39: 108 | N39: 22 | O39: 80 | P39: 38 | Q39: 197 | R39: 66 | S39: 24.52 | T39: turnertrea_B | U39: =IF(OR(ISNUMBER(MATCH(T39,Selected_3V,0)),ISNUMBER(B39)),1,0) -> 0 | V39: 82 | W39: 92 | X39: 68 | Y39: 74 | Z39: 92 | AA39: 94 | AB39: 84
C40: 37 | D40: 4.01 | E40: Hunter Brown | F40: HOU | G40: SP | H40: 27 | I40: 34 | J40: 3.11 | K40: Fair Value in Rnd 4 | L40: 16 | M40: 0 | N40: 10.1 | O40: 3.32 | P40: 1.19 | Q40: 1 | R40: 96 | S40: 22.96 | T40: brownhunter_P | U40: =IF(OR(ISNUMBER(MATCH(T40,Selected_3V,0)),ISNUMBER(B40)),1,0) -> 0 | V40: 91 | W40: 37 | X40: 59 | Y40: 31 | Z40: 38 | AA40: 34 | AB40: 62
C41: 38 | D41: 4.02 | E41: Jackson Chourio | F41: MIL | G41: OF | H41: 22 | I41: 20 | J41: 2.09 | K41: Rnd 2 ADP Bust | L41: 0.316 | M41: 93 | N41: 23 | O41: 89 | P41: 28 | Q41: 158 | R41: 61 | S41: 22.76 | T41: chouriojackson_B | U41: =IF(OR(ISNUMBER(MATCH(T41,Selected_3V,0)),ISNUMBER(B41)),1,0) -> 0 | V41: 44 | W41: 84 | X41: 70 | Y41: 83 | Z41: 82 | AA41: 80 | AB41: 78
C42: 39 | D42: 4.03 | E42: Matt Olson | F42: ATL | G42: 1B | H42: 32 | I42: 38 | J42: 4.03 | K42: Good Value in Rnd 4 | L42: 0.362 | M42: 93 | N42: 36 | O42: 103 | P42: 1 | Q42: 151 | R42: 71 | S42: 22.44 | T42: olsonmatt_B | U42: =IF(OR(ISNUMBER(MATCH(T42,Selected_3V,0)),ISNUMBER(B42)),1,0) -> 0 | V42: 84 | W42: 84 | X42: 93 | Y42: 91 | Z42: 25 | AA42: 75 | AB42: 89
C43: 40 | D43: 4.04 | E43: Wyatt Langford | F43: TEX | G43: OF | H43: 24 | I43: 45 | J43: 4.10 | K43: Good Value in Rnd 4 | L43: 0.355 | M43: 89 | N43: 24 | O43: 79 | P43: 25 | Q43: 150 | R43: 60 | S43: 22.4 | T43: langfordwyatt_B | U43: =IF(OR(ISNUMBER(MATCH(T43,Selected_3V,0)),ISNUMBER(B43)),1,0) -> 0 | V43: 80 | W43: 80 | X43: 73 | Y43: 73 | Z43: 77 | AA43: 75 | AB43: 77
C44: 41 | D44: 4.05 | E44: Brent Rooker | F44: ATH | G44: OF | H44: 31 | I44: 37 | J44: 4.02 | K44: Good Value in Rnd 4 | L44: 0.341 | M44: 87 | N44: 35 | O44: 97 | P44: 6 | Q44: 144 | R44: 68 | S44: 21.92 | T44: rookerbrent_B | U44: =IF(OR(ISNUMBER(MATCH(T44,Selected_3V,0)),ISNUMBER(B44)),1,0) -> 0 | V44: 69 | W44: 78 | X44: 92 | Y44: 88 | Z44: 35 | AA44: 70 | AB44: 86
C45: 42 | D45: 4.06 | E45: Rafael Devers | F45: SFG | G45: 1B | H45: 29 | I45: 51 | J45: 5.04 | K45: Rnd 5 ADP Bargain | L45: 0.363 | M45: 99 | N45: 33 | O45: 104 | P45: 4 | Q45: 170 | R45: 75 | S45: 21.8 | T45: deversrafael_B | U45: =IF(OR(ISNUMBER(MATCH(T45,Selected_3V,0)),ISNUMBER(B45)),1,0) -> 0 | V45: 84 | W45: 88 | X45: 89 | Y45: 91 | Z45: 31 | AA45: 86 | AB45: 91
C46: 43 | D46: 4.07 | E46: Manny Machado | F46: SDP | G46: 3B | H46: 34 | I46: 31 | J46: 3.08 | K46: Fair Value in Rnd 4 | L46: 0.353 | M46: 90 | N46: 31 | O46: 100 | P46: 10 | Q46: 173 | R46: 67 | S46: 21.84 | T46: machadomanny_B | U46: =IF(OR(ISNUMBER(MATCH(T46,Selected_3V,0)),ISNUMBER(B46)),1,0) -> 0 | V46: 78 | W46: 81 | X46: 87 | Y46: 90 | Z46: 45 | AA46: 87 | AB46: 85
C47: 44 | D47: 4.08 | E47: Maikel Garcia | F47: KCR | G47: 3B | H47: 26 | I47: 70 | J47: 6.11 | K47: Rnd 6 ADP Bargain | L47: 0.335 | M47: 88 | N47: 10 | O47: 68 | P47: 32 | Q47: 154 | R47: 46 | S47: 21.44 | T47: garciamaikel_B | U47: =IF(OR(ISNUMBER(MATCH(T47,Selected_3V,0)),ISNUMBER(B47)),1,0) -> 0 | V47: 63 | W47: 79 | X47: 31 | Y47: 60 | Z47: 87 | AA47: 77 | AB47: 53
C48: 45 | D48: 4.09 | E48: Freddie Freeman | F48: LAD | G48: 1B | H48: 37 | I48: 53 | J48: 5.06 | K48: Rnd 5 ADP Bargain | L48: 0.4 | M48: 103 | N48: 28 | O48: 98 | P48: 9 | Q48: 186 | R48: 75 | S48: 21.32 | T48: freemanfreddie_B | U48: =IF(OR(ISNUMBER(MATCH(T48,Selected_3V,0)),ISNUMBER(B48)),1,0) -> 0 | V48: 96 | W48: 90 | X48: 82 | Y48: 89 | Z48: 42 | AA48: 91 | AB48: 91
C49: 46 | D49: 4.10 | E49: Cody Bellinger | F49: NYY | G49: OF | H49: 30 | I49: 60 | J49: 6.01 | K49: Rnd 6 ADP Bargain | L49: 0.348 | M49: 92 | N49: 30 | O49: 95 | P49: 14 | Q49: 152 | R49: 64 | S49: 21.26 | T49: bellingercody_B | U49: =IF(OR(ISNUMBER(MATCH(T49,Selected_3V,0)),ISNUMBER(B49)),1,0) -> 0 | V49: 74 | W49: 83 | X49: 85 | Y49: 87 | Z49: 54 | AA49: 76 | AB49: 82
C50: 47 | D50: 4.11 | E50: Zach Neto | F50: LAA | G50: SS | H50: 25 | I50: 42 | J50: 4.07 | K50: Good Value in Rnd 4 | L50: 0.318 | M50: 88 | N50: 26 | O50: 77 | P50: 25 | Q50: 146 | R50: 61 | S50: 21.1 | T50: netozach_B | U50: =IF(OR(ISNUMBER(MATCH(T50,Selected_3V,0)),ISNUMBER(B50)),1,0) -> 0 | V50: 46 | W50: 79 | X50: 78 | Y50: 71 | Z50: 77 | AA50: 72 | AB50: 78
C51: 48 | D51: 4.12 | E51: Cade Smith | F51: CLE | G51: RP | H51: 27 | I51: 57 | J51: 5.10 | K51: Rnd 5 ADP Bargain | L51: 8 | M51: 19 | N51: 11.8 | O51: 2.85 | P51: 1.03 | Q51: 18 | R51: 96 | S51: 20.82 | T51: smithcade_P | U51: =IF(OR(ISNUMBER(MATCH(T51,Selected_3V,0)),ISNUMBER(B51)),1,0) -> 0 | V51: 53 | W51: 95 | X51: 84 | Y51: 16 | Z51: 12 | AA51: 91 | AB51: 62
C52: 49 | D52: 5.01 | E52: Brice Turang | F52: MIL | G52: 2B | H52: 26 | I52: 47 | J52: 4.12 | K52: Fair Value in Rnd 5 | L52: 0.332 | M52: 80 | N52: 12 | O52: 68 | P52: 32 | Q52: 142 | R52: 37 | S52: 20.84 | T52: turangbrice_B | U52: =IF(OR(ISNUMBER(MATCH(T52,Selected_3V,0)),ISNUMBER(B52)),1,0) -> 0 | V52: 60 | W52: 71 | X52: 37 | Y52: 60 | Z52: 87 | AA52: 69 | AB52: 36
C53: 50 | D53: 5.02 | E53: Jhoan Duran | F53: PHI | G53: RP | H53: 28 | I53: 56 | J53: 5.09 | K53: Good Value in Rnd 5 | L53: 6 | M53: 31 | N53: 11.2 | O53: 2.61 | P53: 1.13 | Q53: 8 | R53: 101 | S53: 20.56 | T53: duranjhoan_P | U53: =IF(OR(ISNUMBER(MATCH(T53,Selected_3V,0)),ISNUMBER(B53)),1,0) -> 0 | V53: 40 | W53: 99 | X53: 77 | Y53: 11 | Z53: 26 | AA53: 63 | AB53: 94
C54: 51 | D54: 5.03 | E54: Bryan Woo | F54: SEA | G54: SP | H54: 26 | I54: 29 | J54: 3.06 | K54: Rnd 3 ADP Bust | L54: 15 | M54: 0 | N54: 9.6 | O54: 3.16 | P54: 1 | Q54: 0 | R54: 95 | S54: 20.46 | T54: woobryan_P | U54: =IF(OR(ISNUMBER(MATCH(T54,Selected_3V,0)),ISNUMBER(B54)),1,0) -> 0 | V54: 88 | W54: 37 | X54: 49 | Y54: 25 | Z54: 10 | AA54: 30 | AB54: 50
C55: 52 | D55: 5.04 | E55: Ben Rice | F55: NYY | G55: C,1B | H55: 27 | I55: 59 | J55: 5.12 | K55: Good Value in Rnd 5 | L55: 0.337 | M55: 77 | N55: 27 | O55: 77 | P55: 8 | Q55: 114 | R55: 51 | S55: 20.48 | T55: riceben_B | U55: =IF(OR(ISNUMBER(MATCH(T55,Selected_3V,0)),ISNUMBER(B55)),1,0) -> 0 | V55: 65 | W55: 67 | X55: 80 | Y55: 71 | Z55: 40 | AA55: 45 | AB55: 63
C56: 53 | D56: 5.05 | E56: Austin Riley | F56: ATL | G56: 3B | H56: 29 | I56: 61 | J56: 6.02 | K56: Rnd 6 ADP Bargain | L56: 0.339 | M56: 88 | N56: 31 | O56: 89 | P56: 1 | Q56: 166 | R56: 68 | S56: 19.92 | T56: rileyaustin_B | U56: =IF(OR(ISNUMBER(MATCH(T56,Selected_3V,0)),ISNUMBER(B56)),1,0) -> 0 | V56: 67 | W56: 79 | X56: 87 | Y56: 83 | Z56: 25 | AA56: 84 | AB56: 86
C57: 54 | D57: 5.06 | E57: Riley Greene | F57: DET | G57: OF | H57: 25 | I57: 68 | J57: 6.09 | K57: Rnd 6 ADP Bargain | L57: 0.341 | M57: 88 | N57: 27 | O57: 90 | P57: 7 | Q57: 161 | R57: 61 | S57: 19.1 | T57: greeneriley_B | U57: =IF(OR(ISNUMBER(MATCH(T57,Selected_3V,0)),ISNUMBER(B57)),1,0) -> 0 | V57: 69 | W57: 79 | X57: 80 | Y57: 83 | Z57: 38 | AA57: 81 | AB57: 78
C58: 55 | D58: 5.07 | E58: Oneil Cruz | F58: PIT | G58: OF | H58: 27 | I58: 90 | J58: 8.07 | K58: Rnd 8 ADP Bargain | L58: 0.317 | M58: 83 | N58: 25 | O58: 80 | P58: 31 | Q58: 138 | R58: 59 | S58: 18.6 | T58: cruzoneil_B | U58: =IF(OR(ISNUMBER(MATCH(T58,Selected_3V,0)),ISNUMBER(B58)),1,0) -> 0 | V58: 45 | W58: 74 | X58: 75 | Y58: 74 | Z58: 86 | AA58: 66 | AB58: 76
C59: 56 | D59: 5.08 | E59: Hunter Goodman | F59: COL | G59: C | H59: 27 | I59: 75 | J59: 7.04 | K59: Rnd 7 ADP Bargain | L59: 0.309 | M59: 79 | N59: 33 | O59: 103 | P59: 3 | Q59: 140 | R59: 70 | S59: 18.14 | T59: goodmanhunter_B | U59: =IF(OR(ISNUMBER(MATCH(T59,Selected_3V,0)),ISNUMBER(B59)),1,0) -> 0 | V59: 37 | W59: 69 | X59: 89 | Y59: 91 | Z59: 29 | AA59: 67 | AB59: 88
C60: 57 | D60: 5.09 | E60: Geraldo Perdomo | F60: ARI | G60: SS | H60: 26 | I60: 67 | J60: 6.08 | K60: Rnd 6 ADP Bargain | L60: 0.354 | M60: 85 | N60: 12 | O60: 68 | P60: 18 | Q60: 126 | R60: 37 | S60: 18.14 | T60: perdomogeraldo_B | U60: =IF(OR(ISNUMBER(MATCH(T60,Selected_3V,0)),ISNUMBER(B60)),1,0) -> 0 | V60: 79 | W60: 76 | X60: 37 | Y60: 60 | Z60: 63 | AA60: 55 | AB60: 36
C61: 58 | D61: 5.10 | E61: Dylan Cease | F61: TOR | G61: SP | H61: 30 | I61: 77 | J61: 7.06 | K61: Rnd 7 ADP Bargain | L61: 18 | M61: 0 | N61: 10.9 | O61: 3.93 | P61: 1.26 | Q61: 0 | R61: 97 | S61: 17.66 | T61: ceasedylan_P | U61: =IF(OR(ISNUMBER(MATCH(T61,Selected_3V,0)),ISNUMBER(B61)),1,0) -> 0 | V61: 94 | W61: 37 | X61: 73 | Y61: 57 | Z61: 54 | AA61: 30 | AB61: 72
C62: 59 | D62: 5.11 | E62: Bo Bichette | F62: NYM | G62: SS | H62: 28 | I62: 84 | J62: 8.01 | K62: Rnd 8 ADP Bargain | L62: 0.351 | M62: 90 | N62: 23 | O62: 92 | P62: 11 | Q62: 193 | R62: 66 | S62: 17.74 | T62: bichettebo_B | U62: =IF(OR(ISNUMBER(MATCH(T62,Selected_3V,0)),ISNUMBER(B62)),1,0) -> 0 | V62: 77 | W62: 81 | X62: 70 | Y62: 85 | Z62: 47 | AA62: 93 | AB62: 84
C63: 60 | D63: 5.12 | E63: Corey Seager | F63: TEX | G63: SS | H63: 32 | I63: 87 | J63: 8.04 | K63: Rnd 8 ADP Bargain | L63: 0.373 | M63: 92 | N63: 29 | O63: 87 | P63: 3 | Q63: 177 | R63: 71 | S63: 17.7 | T63: seagercorey_B | U63: =IF(OR(ISNUMBER(MATCH(T63,Selected_3V,0)),ISNUMBER(B63)),1,0) -> 0 | V63: 89 | W63: 83 | X63: 84 | Y63: 81 | Z63: 29 | AA63: 89 | AB63: 89
C64: 61 | D64: 6.01 | E64: Vinnie Pasquantino | F64: KCR | G64: 1B | H64: 28 | I64: 76 | J64: 7.05 | K64: Rnd 7 ADP Bargain | L64: 0.339 | M64: 76 | N64: 28 | O64: 102 | P64: 3 | Q64: 155 | R64: 65 | S64: 17.3 | T64: pasquantinovinnie_B | U64: =IF(OR(ISNUMBER(MATCH(T64,Selected_3V,0)),ISNUMBER(B64)),1,0) -> 0 | V64: 67 | W64: 66 | X64: 82 | Y64: 91 | Z64: 29 | AA64: 78 | AB64: 83
C65: 62 | D65: 6.02 | E65: Roman Anthony | F65: BOS | G65: OF | H65: 22 | I65: 46 | J65: 4.11 | K65: Rnd 4 ADP Bust | L65: 0.362 | M65: 92 | N65: 17 | O65: 69 | P65: 14 | Q65: 145 | R65: 55 | S65: 17.02 | T65: anthonyroman_B | U65: =IF(OR(ISNUMBER(MATCH(T65,Selected_3V,0)),ISNUMBER(B65)),1,0) -> 0 | V65: 84 | W65: 83 | X65: 53 | Y65: 61 | Z65: 54 | AA65: 71 | AB65: 70
C66: 63 | D66: 6.03 | E66: Chris Sale | F66: ATL | G66: SP | H66: 37 | I66: 35 | J66: 3.12 | K66: Rnd 3 ADP Bust | L66: 14 | M66: 0 | N66: 11.7 | O66: 3 | P66: 1.04 | Q66: 0 | R66: 95 | S66: 16.72 | T66: salechris_P | U66: =IF(OR(ISNUMBER(MATCH(T66,Selected_3V,0)),ISNUMBER(B66)),1,0) -> 0 | V66: 85 | W66: 37 | X66: 83 | Y66: 20 | Z66: 13 | AA66: 30 | AB66: 50
C67: 64 | D67: 6.04 | E67: Byron Buxton | F67: MIN | G67: OF | H67: 32 | I67: 72 | J67: 7.01 | K67: Rnd 7 ADP Bargain | L67: 0.323 | M67: 93 | N67: 31 | O67: 80 | P67: 21 | Q67: 138 | R67: 69 | S67: 16.74 | T67: buxtonbyron_B | U67: =IF(OR(ISNUMBER(MATCH(T67,Selected_3V,0)),ISNUMBER(B67)),1,0) -> 0 | V67: 51 | W67: 84 | X67: 87 | Y67: 74 | Z67: 70 | AA67: 66 | AB67: 87
C68: 65 | D68: 6.05 | E68: William Contreras | F68: MIL | G68: C | H68: 28 | I68: 52 | J68: 5.05 | K68: Fair Value in Rnd 6 | L68: 0.361 | M68: 88 | N68: 22 | O68: 82 | P68: 6 | Q68: 158 | R68: 56 | S68: 16.64 | T68: contreraswilliam_B | U68: =IF(OR(ISNUMBER(MATCH(T68,Selected_3V,0)),ISNUMBER(B68)),1,0) -> 0 | V68: 83 | W68: 79 | X68: 68 | Y68: 76 | Z68: 35 | AA68: 80 | AB68: 71 | AU68: =IF(ISNA(MATCH($AO68,NameKeys,0)),"",INDEX(RankData,MATCH($AO68,NameKeys,0),4)&"/"&INDEX(RankData,MATCH($AO68,NameKeys,0),6)&"/"&INDEX(RankData,MATCH($AO68,NameKeys,0),5)) -> 
C69: 66 | D69: 6.06 | E69: Max Fried | F69: NYY | G69: SP | H69: 32 | I69: 43 | J69: 4.08 | K69: Rnd 4 ADP Bust | L69: 17 | M69: 0 | N69: 8.8 | O69: 3.05 | P69: 1.15 | Q69: 0 | R69: 94 | S69: 16.46 | T69: friedmax_P | U69: =IF(OR(ISNUMBER(MATCH(T69,Selected_3V,0)),ISNUMBER(B69)),1,0) -> 0 | V69: 93 | W69: 37 | X69: 34 | Y69: 22 | Z69: 30 | AA69: 30 | AB69: 39 | AM69: =IF(U69=1,T69,"") -> 
C70: 67 | D70: 6.07 | E70: Christian Yelich | F70: MIL | G70: DH | H70: 34 | I70: 104 | J70: 9.09 | K70: Rnd 9 ADP Bargain | L70: 0.381 | M70: 100 | N70: 26 | O70: 91 | P70: 21 | Q70: 169 | R70: 61 | S70: 16.44 | T70: yelichchristian_B | U70: =IF(OR(ISNUMBER(MATCH(T70,Selected_3V,0)),ISNUMBER(B70)),1,0) -> 0 | V70: 92 | W70: 88 | X70: 78 | Y70: 84 | Z70: 70 | AA70: 85 | AB70: 78
C71: 68 | D71: 6.08 | E71: Michael Busch | F71: CHC | G71: 1B | H71: 28 | I71: 103 | J71: 9.08 | K71: Rnd 9 ADP Bargain | L71: 0.342 | M71: 91 | N71: 29 | O71: 90 | P71: 4 | Q71: 140 | R71: 63 | S71: 16.08 | T71: buschmichael_B | U71: =IF(OR(ISNUMBER(MATCH(T71,Selected_3V,0)),ISNUMBER(B71)),1,0) -> 0 | V71: 70 | W71: 82 | X71: 84 | Y71: 83 | Z71: 31 | AA71: 67 | AB71: 81
C72: 69 | D72: 6.09 | E72: Alex Bregman | F72: CHC | G72: 3B | H72: 32 | I72: 88 | J72: 8.05 | K72: Rnd 8 ADP Bargain | L72: 0.371 | M72: 93 | N72: 25 | O72: 89 | P72: 5 | Q72: 163 | R72: 68 | S72: 16.04 | T72: bregmanalex_B | U72: =IF(OR(ISNUMBER(MATCH(T72,Selected_3V,0)),ISNUMBER(B72)),1,0) -> 0 | V72: 88 | W72: 84 | X72: 75 | Y72: 83 | Z72: 33 | AA72: 82 | AB72: 86
C73: 70 | D73: 6.10 | E73: Agustin Ramirez | F73: MIA | G73: C | H73: 25 | I73: 95 | J73: 8.12 | K73: Rnd 8 ADP Bargain | L73: 0.307 | M73: 79 | N73: 21 | O73: 83 | P73: 18 | Q73: 134 | R73: 58 | S73: 15.34 | T73: ramirezagustin_B | U73: =IF(OR(ISNUMBER(MATCH(T73,Selected_3V,0)),ISNUMBER(B73)),1,0) -> 0 | V73: 36 | W73: 69 | X73: 65 | Y73: 77 | Z73: 63 | AA73: 62 | AB73: 74
C74: 71 | D74: 6.11 | E74: George Springer | F74: TOR | G74: OF | H74: 37 | I74: 83 | J74: 7.12 | K74: Rnd 7 ADP Bargain | L74: 0.366 | M74: 107 | N74: 31 | O74: 87 | P74: 13 | Q74: 165 | R74: 63 | S74: 15.32 | T74: springergeorge_B | U74: =IF(OR(ISNUMBER(MATCH(T74,Selected_3V,0)),ISNUMBER(B74)),1,0) -> 0 | V74: 86 | W74: 92 | X74: 87 | Y74: 81 | Z74: 52 | AA74: 83 | AB74: 81
C75: 72 | D75: 6.12 | E75: Shohei Ohtani | F75: LAD | G75: SP | H75: 32 | I75: 66 | J75: 6.07 | K75: Good Value in Rnd 6 | L75: 14 | M75: 0 | N75: 11.1 | O75: 3.14 | P75: 1.1 | Q75: 0 | R75: 97 | S75: 14.76 | T75: ohtanishohei_P | U75: =IF(OR(ISNUMBER(MATCH(T75,Selected_3V,0)),ISNUMBER(B75)),1,0) -> 0 | V75: 85 | W75: 37 | X75: 76 | Y75: 24 | Z75: 21 | AA75: 30 | AB75: 72
C76: 73 | D76: 7.01 | E76: Devin Williams | F76: NYM | G76: RP | H76: 31 | I76: 82 | J76: 7.11 | K76: Good Value in Rnd 7 | L76: 6 | M76: 22 | N76: 13.8 | O76: 2.75 | P76: 1.06 | Q76: 17 | R76: 96 | S76: 14.62 | T76: williamsdevin_P | U76: =IF(OR(ISNUMBER(MATCH(T76,Selected_3V,0)),ISNUMBER(B76)),1,0) -> 0 | V76: 40 | W76: 97 | X76: 96 | Y76: 14 | Z76: 16 | AA76: 89 | AB76: 62
C77: 74 | D77: 7.02 | E77: Salvador Perez | F77: KCR | G77: C,1B | H77: 36 | I77: 97 | J77: 9.02 | K77: Rnd 9 ADP Bargain | L77: 0.304 | M77: 65 | N77: 32 | O77: 99 | P77: 1 | Q77: 157 | R77: 63 | S77: 14.54 | T77: perezsalvador_B | U77: =IF(OR(ISNUMBER(MATCH(T77,Selected_3V,0)),ISNUMBER(B77)),1,0) -> 0 | V77: 33 | W77: 50 | X77: 88 | Y77: 89 | Z77: 25 | AA77: 79 | AB77: 81
C78: 75 | D78: 7.03 | E78: Randy Arozarena | F78: SEA | G78: OF | H78: 31 | I78: 78 | J78: 7.07 | K78: Good Value in Rnd 7 | L78: 0.339 | M78: 90 | N78: 24 | O78: 77 | P78: 26 | Q78: 146 | R78: 58 | S78: 14.56 | T78: arozarenarandy_B | U78: =IF(OR(ISNUMBER(MATCH(T78,Selected_3V,0)),ISNUMBER(B78)),1,0) -> 0 | V78: 67 | W78: 81 | X78: 73 | Y78: 71 | Z78: 79 | AA78: 72 | AB78: 74
C79: 76 | D79: 7.04 | E79: Nico Hoerner | F79: CHC | G79: 2B | H79: 29 | I79: 91 | J79: 8.08 | K79: Rnd 8 ADP Bargain | L79: 0.342 | M79: 84 | N79: 8 | O79: 62 | P79: 29 | Q79: 167 | R79: 40 | S79: 14.16 | T79: hoernernico_B | U79: =IF(OR(ISNUMBER(MATCH(T79,Selected_3V,0)),ISNUMBER(B79)),1,0) -> 0 | V79: 70 | W79: 75 | X79: 26 | Y79: 52 | Z79: 83 | AA79: 84 | AB79: 42
C80: 77 | D80: 7.05 | E80: Cole Ragans | F80: KCR | G80: SP | H80: 28 | I80: 50 | J80: 5.03 | K80: Rnd 5 ADP Bust | L80: 13 | M80: 0 | N80: 11.1 | O80: 3.77 | P80: 1.2 | Q80: 1 | R80: 95 | S80: 13.96 | T80: raganscole_P | U80: =IF(OR(ISNUMBER(MATCH(T80,Selected_3V,0)),ISNUMBER(B80)),1,0) -> 0 | V80: 81 | W80: 37 | X80: 76 | Y80: 50 | Z80: 41 | AA80: 34 | AB80: 50
C81: 78 | D81: 7.06 | E81: Jose Altuve | F81: HOU | G81: 2B,OF | H81: 36 | I81: 100 | J81: 9.05 | K81: Rnd 9 ADP Bargain | L81: 0.369 | M81: 102 | N81: 26 | O81: 79 | P81: 17 | Q81: 190 | R81: 65 | S81: 13.82 | T81: altuvejose_B | U81: =IF(OR(ISNUMBER(MATCH(T81,Selected_3V,0)),ISNUMBER(B81)),1,0) -> 0 | V81: 87 | W81: 90 | X81: 78 | Y81: 73 | Z81: 61 | AA81: 93 | AB81: 83
C82: 79 | D82: 7.07 | E82: Trevor Story | F82: BOS | G82: SS | H82: 33 | I82: 114 | J82: 10.07 | K82: Rnd 10 ADP Bargain | L82: 0.333 | M82: 91 | N82: 29 | O82: 93 | P82: 25 | Q82: 160 | R82: 72 | S82: 13.66 | T82: storytrevor_B | U82: =IF(OR(ISNUMBER(MATCH(T82,Selected_3V,0)),ISNUMBER(B82)),1,0) -> 0 | V82: 61 | W82: 82 | X82: 84 | Y82: 85 | Z82: 77 | AA82: 81 | AB82: 89
C83: 80 | D83: 7.08 | E83: Shea Langeliers | F83: ATH | G83: C | H83: 28 | I83: 62 | J83: 6.03 | K83: Fair Value in Rnd 7 | L83: 0.314 | M83: 76 | N83: 31 | O83: 82 | P83: 5 | Q83: 134 | R83: 60 | S83: 13.56 | T83: langeliersshea_B | U83: =IF(OR(ISNUMBER(MATCH(T83,Selected_3V,0)),ISNUMBER(B83)),1,0) -> 0 | V83: 42 | W83: 66 | X83: 87 | Y83: 76 | Z83: 33 | AA83: 62 | AB83: 77
C84: 81 | D84: 7.09 | E84: Seiya Suzuki | F84: CHC | G84: OF | H84: 32 | I84: 93 | J84: 8.10 | K84: Rnd 8 ADP Bargain | L84: 0.359 | M84: 82 | N84: 27 | O84: 90 | P84: 10 | Q84: 161 | R84: 65 | S84: 13.5 | T84: suzukiseiya_B | U84: =IF(OR(ISNUMBER(MATCH(T84,Selected_3V,0)),ISNUMBER(B84)),1,0) -> 0 | V84: 82 | W84: 73 | X84: 80 | Y84: 83 | Z84: 45 | AA84: 81 | AB84: 83
C85: 82 | D85: 7.10 | E85: Jarren Duran | F85: BOS | G85: OF | H85: 29 | I85: 58 | J85: 5.11 | K85: Rnd 5 ADP Bust | L85: 0.329 | M85: 90 | N85: 18 | O85: 73 | P85: 29 | Q85: 157 | R85: 68 | S85: 13.48 | T85: duranjarren_B | U85: =IF(OR(ISNUMBER(MATCH(T85,Selected_3V,0)),ISNUMBER(B85)),1,0) -> 0 | V85: 57 | W85: 81 | X85: 56 | Y85: 66 | Z85: 83 | AA85: 79 | AB85: 86
C86: 83 | D86: 7.11 | E86: Will Smith | F86: LAD | G86: C | H86: 31 | I86: 106 | J86: 9.11 | K86: Rnd 9 ADP Bargain | L86: 0.368 | M86: 86 | N86: 26 | O86: 90 | P86: 3 | Q86: 146 | R86: 59 | S86: 13.14 | T86: smithwill_B | U86: =IF(OR(ISNUMBER(MATCH(T86,Selected_3V,0)),ISNUMBER(B86)),1,0) -> 0 | V86: 87 | W86: 77 | X86: 78 | Y86: 83 | Z86: 29 | AA86: 72 | AB86: 76
C87: 84 | D87: 7.12 | E87: David Bednar | F87: NYY | G87: RP | H87: 31 | I87: 79 | J87: 7.08 | K87: Good Value in Rnd 7 | L87: 5 | M87: 26 | N87: 11.2 | O87: 3.02 | P87: 1.12 | Q87: 6 | R87: 97 | S87: 13 | T87: bednardavid_P | U87: =IF(OR(ISNUMBER(MATCH(T87,Selected_3V,0)),ISNUMBER(B87)),1,0) -> 0 | V87: 34 | W87: 99 | X87: 77 | Y87: 21 | Z87: 25 | AA87: 55 | AB87: 72
C88: 85 | D88: 8.01 | E88: Jackson Merrill | F88: SDP | G88: OF | H88: 23 | I88: 65 | J88: 6.06 | K88: Rnd 6 ADP Bust | L88: 0.324 | M88: 80 | N88: 19 | O88: 82 | P88: 13 | Q88: 160 | R88: 57 | S88: 12.96 | T88: merrilljackson_B | U88: =IF(OR(ISNUMBER(MATCH(T88,Selected_3V,0)),ISNUMBER(B88)),1,0) -> 0 | V88: 52 | W88: 71 | X88: 59 | Y88: 76 | Z88: 52 | AA88: 81 | AB88: 73
C89: 86 | D89: 8.02 | E89: George Kirby | F89: SEA | G89: SP | H89: 28 | I89: 63 | J89: 6.04 | K89: Rnd 6 ADP Bust | L89: 14 | M89: 0 | N89: 9.1 | O89: 3.6 | P89: 1.13 | Q89: 0 | R89: 96 | S89: 12.44 | T89: kirbygeorge_P | U89: =IF(OR(ISNUMBER(MATCH(T89,Selected_3V,0)),ISNUMBER(B89)),1,0) -> 0 | V89: 85 | W89: 37 | X89: 40 | Y89: 42 | Z89: 26 | AA89: 30 | AB89: 62
C90: 87 | D90: 8.03 | E90: Jesus Luzardo | F90: PHI | G90: SP | H90: 28 | I90: 73 | J90: 7.02 | K90: Fair Value in Rnd 8 | L90: 15 | M90: 0 | N90: 10 | O90: 4.13 | P90: 1.24 | Q90: 1 | R90: 96 | S90: 12.16 | T90: luzardojesus_P | U90: =IF(OR(ISNUMBER(MATCH(T90,Selected_3V,0)),ISNUMBER(B90)),1,0) -> 0 | V90: 88 | W90: 37 | X90: 57 | Y90: 66 | Z90: 50 | AA90: 34 | AB90: 62
C91: 88 | D91: 8.04 | E91: Jeremy Pena | F91: HOU | G91: SS | H91: 28 | I91: 105 | J91: 9.10 | K91: Rnd 9 ADP Bargain | L91: 0.328 | M91: 72 | N91: 16 | O91: 60 | P91: 16 | Q91: 140 | R91: 44 | S91: 12.22 | T91: penajeremy_B | U91: =IF(OR(ISNUMBER(MATCH(T91,Selected_3V,0)),ISNUMBER(B91)),1,0) -> 0 | V91: 56 | W91: 60 | X91: 49 | Y91: 49 | Z91: 59 | AA91: 67 | AB91: 50
C92: 89 | D92: 8.05 | E92: Josh Naylor | F92: SEA | G92: 1B | H92: 29 | I92: 64 | J92: 6.05 | K92: Rnd 6 ADP Bust | L92: 0.343 | M92: 73 | N92: 22 | O92: 93 | P92: 15 | Q92: 149 | R92: 54 | S92: 12.14 | T92: naylorjosh_B | U92: =IF(OR(ISNUMBER(MATCH(T92,Selected_3V,0)),ISNUMBER(B92)),1,0) -> 0 | V92: 70 | W92: 62 | X92: 68 | Y92: 85 | Z92: 56 | AA92: 74 | AB92: 68
C93: 90 | D93: 8.06 | E93: Luke Keaschall | F93: MIN | G93: 2B | H93: 24 | I93: 111 | J93: 10.04 | K93: Rnd 10 ADP Bargain | L93: 0.353 | M93: 85 | N93: 13 | O93: 60 | P93: 34 | Q93: 149 | R93: 48 | S93: 12 | T93: keaschallluke_B | U93: =IF(OR(ISNUMBER(MATCH(T93,Selected_3V,0)),ISNUMBER(B93)),1,0) -> 0 | V93: 78 | W93: 76 | X93: 40 | Y93: 49 | Z93: 89 | AA93: 74 | AB93: 57
C94: 91 | D94: 8.07 | E94: Freddy Peralta | F94: NYM | G94: SP | H94: 30 | I94: 55 | J94: 5.08 | K94: Rnd 5 ADP Bust | L94: 14 | M94: 0 | N94: 11 | O94: 3.51 | P94: 1.13 | Q94: 2 | R94: 94 | S94: 11.92 | T94: peraltafreddy_P | U94: =IF(OR(ISNUMBER(MATCH(T94,Selected_3V,0)),ISNUMBER(B94)),1,0) -> 0 | V94: 85 | W94: 37 | X94: 74 | Y94: 38 | Z94: 26 | AA94: 38 | AB94: 39
C95: 92 | D95: 8.08 | E95: Eugenio Suarez | F95: CIN | G95: 3B | H95: 34 | I95: 85 | J95: 8.02 | K95: Good Value in Rnd 8 | L95: 0.335 | M95: 84 | N95: 36 | O95: 99 | P95: 3 | Q95: 140 | R95: 61 | S95: 11.72 | T95: suarezeugenio_B | U95: =IF(OR(ISNUMBER(MATCH(T95,Selected_3V,0)),ISNUMBER(B95)),1,0) -> 0 | V95: 63 | W95: 75 | X95: 93 | Y95: 89 | Z95: 29 | AA95: 67 | AB95: 78
C96: 93 | D96: 8.09 | E96: Luis Robert | F96: NYM | G96: OF | H96: 28 | I96: 126 | J96: 11.07 | K96: Rnd 11 ADP Bargain | L96: 0.314 | M96: 81 | N96: 26 | O96: 77 | P96: 29 | Q96: 154 | R96: 59 | S96: 11.66 | T96: robertluis_B | U96: =IF(OR(ISNUMBER(MATCH(T96,Selected_3V,0)),ISNUMBER(B96)),1,0) -> 0 | V96: 42 | W96: 72 | X96: 78 | Y96: 71 | Z96: 83 | AA96: 77 | AB96: 76
C97: 94 | D97: 8.10 | E97: Spencer Strider | F97: ATL | G97: SP | H97: 27 | I97: 101 | J97: 9.06 | K97: Rnd 9 ADP Bargain | L97: 14 | M97: 0 | N97: 12.2 | O97: 3.79 | P97: 1.18 | Q97: 1 | R97: 97 | S97: 11.5 | T97: striderspencer_P | U97: =IF(OR(ISNUMBER(MATCH(T97,Selected_3V,0)),ISNUMBER(B97)),1,0) -> 0 | V97: 85 | W97: 37 | X97: 88 | Y97: 51 | Z97: 36 | AA97: 34 | AB97: 72
C98: 95 | D98: 8.11 | E98: Yandy Diaz | F98: TBR | G98: 1B | H98: 35 | I98: 117 | J98: 10.10 | K98: Rnd 10 ADP Bargain | L98: 0.381 | M98: 82 | N98: 19 | O98: 76 | P98: 2 | Q98: 169 | R98: 52 | S98: 11.54 | T98: diazyandy_B | U98: =IF(OR(ISNUMBER(MATCH(T98,Selected_3V,0)),ISNUMBER(B98)),1,0) -> 0 | V98: 92 | W98: 73 | X98: 59 | Y98: 70 | Z98: 27 | AA98: 85 | AB98: 64
C99: 96 | D99: 8.12 | E99: Mike Trout | F99: LAA | G99: OF | H99: 35 | I99: 169 | J99: 15.02 | K99: Rnd 15 ADP Bargain | L99: 0.408 | M99: 104 | N99: 39 | O99: 92 | P99: 13 | Q99: 162 | R99: 75 | S99: 11.28 | T99: troutmike_B | U99: =IF(OR(ISNUMBER(MATCH(T99,Selected_3V,0)),ISNUMBER(B99)),1,0) -> 0 | V99: 97 | W99: 91 | X99: 95 | Y99: 85 | Z99: 52 | AA99: 82 | AB99: 91
C100: 97 | D100: 9.01 | E100: Kyle Stowers | F100: MIA | G100: OF | H100: 28 | I100: 123 | J100: 11.04 | K100: Rnd 11 ADP Bargain | L100: 0.33 | M100: 72 | N100: 27 | O100: 89 | P100: 5 | Q100: 127 | R100: 59 | S100: 11.1 | T100: stowerskyle_B | U100: =IF(OR(ISNUMBER(MATCH(T100,Selected_3V,0)),ISNUMBER(B100)),1,0) -> 0 | V100: 58 | W100: 60 | X100: 80 | Y100: 83 | Z100: 33 | AA100: 56 | AB100: 76
C101: 98 | D101: 9.02 | E101: Chase Burns | F101: CIN | G101: RP | H101: 23 | I101: 108 | J101: 10.01 | K101: Rnd 10 ADP Bargain | L101: 9 | M101: 0 | N101: 12.3 | O101: 3.16 | P101: 1.05 | Q101: 2 | R101: 100 | S101: 10.78 | T101: burnschase_P | U101: =IF(OR(ISNUMBER(MATCH(T101,Selected_3V,0)),ISNUMBER(B101)),1,0) -> 0 | V101: 60 | W101: 37 | X101: 89 | Y101: 25 | Z101: 15 | AA101: 38 | AB101: 91
C102: 99 | D102: 9.03 | E102: Andy Pages | F102: LAD | G102: OF | H102: 25 | I102: 132 | J102: 12.01 | K102: Rnd 12 ADP Bargain | L102: 0.318 | M102: 84 | N102: 27 | O102: 85 | P102: 10 | Q102: 137 | R102: 59 | S102: 10.8 | T102: pagesandy_B | U102: =IF(OR(ISNUMBER(MATCH(T102,Selected_3V,0)),ISNUMBER(B102)),1,0) -> 0 | V102: 46 | W102: 75 | X102: 80 | Y102: 79 | Z102: 45 | AA102: 65 | AB102: 76
C103: 100 | D103: 9.04 | E103: Willy Adames | F103: SFG | G103: SS | H103: 31 | I103: 115 | J103: 10.08 | K103: Rnd 10 ADP Bargain | L103: 0.334 | M103: 87 | N103: 28 | O103: 86 | P103: 10 | Q103: 143 | R103: 59 | S103: 10.64 | T103: adameswilly_B | U103: =IF(OR(ISNUMBER(MATCH(T103,Selected_3V,0)),ISNUMBER(B103)),1,0) -> 0 | V103: 62 | W103: 78 | X103: 82 | Y103: 80 | Z103: 45 | AA103: 70 | AB103: 76
C104: 101 | D104: 9.05 | E104: Jacob deGrom | F104: TEX | G104: SP | H104: 38 | I104: 48 | J104: 5.01 | K104: Rnd 5 ADP Bust | L104: 12 | M104: 0 | N104: 10.9 | O104: 2.71 | P104: 0.97 | Q104: 0 | R104: 97 | S104: 10.42 | T104: degromjacob_P | U104: =IF(OR(ISNUMBER(MATCH(T104,Selected_3V,0)),ISNUMBER(B104)),1,0) -> 0 | V104: 77 | W104: 37 | X104: 73 | Y104: 13 | Z104: 8 | AA104: 30 | AB104: 72
C105: 102 | D105: 9.06 | E105: Michael Harris | F105: ATL | G105: OF | H105: 25 | I105: 96 | J105: 9.01 | K105: Good Value in Rnd 9 | L105: 0.313 | M105: 75 | N105: 19 | O105: 80 | P105: 24 | Q105: 162 | R105: 56 | S105: 10.44 | T105: harrismichael_B | U105: =IF(OR(ISNUMBER(MATCH(T105,Selected_3V,0)),ISNUMBER(B105)),1,0) -> 0 | V105: 41 | W105: 64 | X105: 59 | Y105: 74 | Z105: 75 | AA105: 82 | AB105: 71
C106: 103 | D106: 9.07 | E106: Aroldis Chapman | F106: BOS | G106: RP | H106: 38 | I106: 80 | J106: 7.09 | K106: Rnd 7 ADP Bust | L106: 5 | M106: 29 | N106: 13.7 | O106: 2.57 | P106: 1.07 | Q106: 6 | R106: 100 | S106: 10.26 | T106: chapmanaroldis_P | U106: =IF(OR(ISNUMBER(MATCH(T106,Selected_3V,0)),ISNUMBER(B106)),1,0) -> 0 | V106: 34 | W106: 99 | X106: 96 | Y106: 10 | Z106: 17 | AA106: 55 | AB106: 91
C107: 104 | D107: 9.08 | E107: Lawrence Butler | F107: ATH | G107: OF | H107: 26 | I107: 139 | J107: 12.08 | K107: Rnd 12 ADP Bargain | L107: 0.316 | M107: 79 | N107: 20 | O107: 67 | P107: 22 | Q107: 123 | R107: 50 | S107: 10.26 | T107: butlerlawrence_B | U107: =IF(OR(ISNUMBER(MATCH(T107,Selected_3V,0)),ISNUMBER(B107)),1,0) -> 0 | V107: 44 | W107: 69 | X107: 62 | Y107: 59 | Z107: 72 | AA107: 53 | AB107: 61
C108: 105 | D108: 9.09 | E108: Emmet Sheehan | F108: LAD | G108: SP | H108: 26 | I108: 127 | J108: 11.08 | K108: Rnd 11 ADP Bargain | L108: 15 | M108: 0 | N108: 11.7 | O108: 3.38 | P108: 1.05 | Q108: 0 | R108: 96 | S108: 10.1 | T108: sheehanemmet_P | U108: =IF(OR(ISNUMBER(MATCH(T108,Selected_3V,0)),ISNUMBER(B108)),1,0) -> 0 | V108: 88 | W108: 37 | X108: 83 | Y108: 33 | Z108: 15 | AA108: 30 | AB108: 62
C109: 106 | D109: 9.10 | E109: Tyler Soderstrom | F109: ATH | G109: 1B,OF | H109: 24 | I109: 86 | J109: 8.03 | K109: Fair Value in Rnd 9 | L109: 0.315 | M109: 71 | N109: 27 | O109: 92 | P109: 4 | Q109: 136 | R109: 59 | S109: 10.24 | T109: soderstromtyler_B | U109: =IF(OR(ISNUMBER(MATCH(T109,Selected_3V,0)),ISNUMBER(B109)),1,0) -> 0 | V109: 43 | W109: 59 | X109: 80 | Y109: 85 | Z109: 31 | AA109: 64 | AB109: 76
C110: 107 | D110: 9.11 | E110: Ozzie Albies | F110: ATL | G110: 2B | H110: 29 | I110: 135 | J110: 12.04 | K110: Rnd 12 ADP Bargain | L110: 0.327 | M110: 91 | N110: 22 | O110: 87 | P110: 14 | Q110: 169 | R110: 66 | S110: 10.18 | T110: albiesozzie_B | U110: =IF(OR(ISNUMBER(MATCH(T110,Selected_3V,0)),ISNUMBER(B110)),1,0) -> 0 | V110: 55 | W110: 82 | X110: 68 | Y110: 81 | Z110: 54 | AA110: 85 | AB110: 84
C111: 108 | D111: 9.12 | E111: Teoscar Hernandez | F111: LAD | G111: OF | H111: 33 | I111: 110 | J111: 10.03 | K111: Rnd 10 ADP Bargain | L111: 0.325 | M111: 80 | N111: 31 | O111: 94 | P111: 8 | Q111: 154 | R111: 66 | S111: 10.16 | T111: hernandezteoscar_B | U111: =IF(OR(ISNUMBER(MATCH(T111,Selected_3V,0)),ISNUMBER(B111)),1,0) -> 0 | V111: 53 | W111: 71 | X111: 87 | Y111: 86 | Z111: 40 | AA111: 77 | AB111: 84
C112: 109 | D112: 10.01 | E112: Jacob Misiorowski | F112: MIL | G112: SP | H112: 24 | I112: 116 | J112: 10.09 | K112: Good Value in Rnd 10 | L112: 12 | M112: 0 | N112: 11 | O112: 3.56 | P112: 1.23 | Q112: 0 | R112: 99 | S112: 9.96 | T112: misiorowskijacob_P | U112: =IF(OR(ISNUMBER(MATCH(T112,Selected_3V,0)),ISNUMBER(B112)),1,0) -> 0 | V112: 77 | W112: 37 | X112: 74 | Y112: 41 | Z112: 47 | AA112: 30 | AB112: 87
C113: 110 | D113: 10.02 | E113: Brandon Nimmo | F113: TEX | G113: OF | H113: 33 | I113: 125 | J113: 11.06 | K113: Rnd 11 ADP Bargain | L113: 0.361 | M113: 87 | N113: 21 | O113: 72 | P113: 9 | Q113: 145 | R113: 53 | S113: 9.76 | T113: nimmobrandon_B | U113: =IF(OR(ISNUMBER(MATCH(T113,Selected_3V,0)),ISNUMBER(B113)),1,0) -> 0 | V113: 83 | W113: 78 | X113: 65 | Y113: 65 | Z113: 42 | AA113: 71 | AB113: 66
C114: 111 | D114: 10.03 | E114: Tyler Glasnow | F114: LAD | G114: SP | H114: 33 | I114: 102 | J114: 9.07 | K114: Fair Value in Rnd 10 | L114: 13 | M114: 0 | N114: 11.3 | O114: 3.64 | P114: 1.15 | Q114: 1 | R114: 96 | S114: 9.66 | T114: glasnowtyler_P | U114: =IF(OR(ISNUMBER(MATCH(T114,Selected_3V,0)),ISNUMBER(B114)),1,0) -> 0 | V114: 81 | W114: 37 | X114: 78 | Y114: 44 | Z114: 30 | AA114: 34 | AB114: 62
C115: 112 | D115: 10.04 | E115: Nolan McLean | F115: NYM | G115: SP | H115: 25 | I115: 94 | J115: 8.11 | K115: Rnd 8 ADP Bust | L115: 13 | M115: 0 | N115: 9 | O115: 2.98 | P115: 1.18 | Q115: 0 | R115: 96 | S115: 9.68 | T115: mcleannolan_P | U115: =IF(OR(ISNUMBER(MATCH(T115,Selected_3V,0)),ISNUMBER(B115)),1,0) -> 0 | V115: 81 | W115: 37 | X115: 38 | Y115: 19 | Z115: 36 | AA115: 30 | AB115: 62
C116: 113 | D116: 10.05 | E116: CJ Abrams | F116: WSN | G116: SS | H116: 25 | I116: 69 | J116: 6.10 | K116: Rnd 6 ADP Bust | L116: 0.308 | M116: 90 | N116: 17 | O116: 67 | P116: 36 | Q116: 152 | R116: 55 | S116: 9.72 | T116: abramscj_B | U116: =IF(OR(ISNUMBER(MATCH(T116,Selected_3V,0)),ISNUMBER(B116)),1,0) -> 0 | V116: 36 | W116: 81 | X116: 53 | Y116: 59 | Z116: 90 | AA116: 76 | AB116: 70
C117: 114 | D117: 10.06 | E117: Matt McLain | F117: CIN | G117: 2B | H117: 26 | I117: 172 | J117: 15.05 | K117: Rnd 15 ADP Bargain | L117: 0.325 | M117: 86 | N117: 21 | O117: 73 | P117: 26 | Q117: 137 | R117: 56 | S117: 9.62 | T117: mclainmatt_B | U117: =IF(OR(ISNUMBER(MATCH(T117,Selected_3V,0)),ISNUMBER(B117)),1,0) -> 0 | V117: 53 | W117: 77 | X117: 65 | Y117: 66 | Z117: 79 | AA117: 65 | AB117: 71
C118: 115 | D118: 10.07 | E118: Jo Adell | F118: LAA | G118: OF | H118: 27 | I118: 119 | J118: 10.12 | K118: Good Value in Rnd 10 | L118: 0.296 | M118: 73 | N118: 32 | O118: 90 | P118: 10 | Q118: 125 | R118: 59 | S118: 9.58 | T118: adelljo_B | U118: =IF(OR(ISNUMBER(MATCH(T118,Selected_3V,0)),ISNUMBER(B118)),1,0) -> 0 | V118: 26 | W118: 62 | X118: 88 | Y118: 83 | Z118: 45 | AA118: 55 | AB118: 76
C119: 116 | D119: 10.08 | E119: Cam Schlittler | F119: NYY | G119: SP | H119: 25 | I119: 128 | J119: 11.09 | K119: Rnd 11 ADP Bargain | L119: 14 | M119: 0 | N119: 9.9 | O119: 3.32 | P119: 1.28 | Q119: 0 | R119: 98 | S119: 9.14 | T119: schlittlercam_P | U119: =IF(OR(ISNUMBER(MATCH(T119,Selected_3V,0)),ISNUMBER(B119)),1,0) -> 0 | V119: 85 | W119: 37 | X119: 55 | Y119: 31 | Z119: 59 | AA119: 30 | AB119: 80
C120: 117 | D120: 10.09 | E120: Joe Ryan | F120: MIN | G120: SP | H120: 30 | I120: 71 | J120: 6.12 | K120: Rnd 6 ADP Bust | L120: 12 | M120: 0 | N120: 10.3 | O120: 3.7 | P120: 1.04 | Q120: 0 | R120: 93 | S120: 8.96 | T120: ryanjoe_P | U120: =IF(OR(ISNUMBER(MATCH(T120,Selected_3V,0)),ISNUMBER(B120)),1,0) -> 0 | V120: 77 | W120: 37 | X120: 63 | Y120: 47 | Z120: 13 | AA120: 30 | AB120: 28
C121: 118 | D121: 10.10 | E121: Michael King | F121: SDP | G121: SP | H121: 31 | I121: 121 | J121: 11.02 | K121: Rnd 11 ADP Bargain | L121: 12 | M121: 1 | N121: 10.1 | O121: 3.4 | P121: 1.2 | Q121: 8 | R121: 94 | S121: 8.88 | T121: kingmichael_P | U121: =IF(OR(ISNUMBER(MATCH(T121,Selected_3V,0)),ISNUMBER(B121)),1,0) -> 0 | V121: 77 | W121: 42 | X121: 59 | Y121: 34 | Z121: 41 | AA121: 63 | AB121: 39
C122: 119 | D122: 10.11 | E122: Gavin Williams | F122: CLE | G122: SP | H122: 27 | I122: 141 | J122: 12.10 | K122: Rnd 12 ADP Bargain | L122: 14 | M122: 0 | N122: 9.7 | O122: 3.2 | P122: 1.21 | Q122: 0 | R122: 96 | S122: 8.8 | T122: williamsgavin_P | U122: =IF(OR(ISNUMBER(MATCH(T122,Selected_3V,0)),ISNUMBER(B122)),1,0) -> 0 | V122: 85 | W122: 37 | X122: 51 | Y122: 26 | Z122: 43 | AA122: 30 | AB122: 62
C123: 120 | D123: 10.12 | E123: Brandon Woodruff | F123: MIL | G123: SP | H123: 33 | I123: 120 | J123: 11.01 | K123: Rnd 11 ADP Bargain | L123: 18 | M123: 0 | N123: 10.4 | O123: 3.17 | P123: 1.04 | Q123: 1 | R123: 96 | S123: 8.72 | T123: woodruffbrandon_P | U123: =IF(OR(ISNUMBER(MATCH(T123,Selected_3V,0)),ISNUMBER(B123)),1,0) -> 0 | V123: 94 | W123: 37 | X123: 64 | Y123: 25 | Z123: 13 | AA123: 34 | AB123: 62
C124: 121 | D124: 11.01 | E124: Kevin Gausman | F124: TOR | G124: SP | H124: 35 | I124: 98 | J124: 9.03 | K124: Rnd 9 ADP Bust | L124: 15 | M124: 0 | N124: 9.3 | O124: 3.75 | P124: 1.21 | Q124: 0 | R124: 95 | S124: 8.78 | T124: gausmankevin_P | U124: =IF(OR(ISNUMBER(MATCH(T124,Selected_3V,0)),ISNUMBER(B124)),1,0) -> 0 | V124: 88 | W124: 37 | X124: 44 | Y124: 49 | Z124: 43 | AA124: 30 | AB124: 50
C125: 122 | D125: 11.02 | E125: Kyle Bradish | F125: BAL | G125: SP | H125: 29 | I125: 81 | J125: 7.10 | K125: Rnd 7 ADP Bust | L125: 11 | M125: 0 | N125: 10.2 | O125: 3.4 | P125: 1.16 | Q125: 0 | R125: 95 | S125: 8.76 | T125: bradishkyle_P | U125: =IF(OR(ISNUMBER(MATCH(T125,Selected_3V,0)),ISNUMBER(B125)),1,0) -> 0 | V125: 72 | W125: 37 | X125: 61 | Y125: 34 | Z125: 32 | AA125: 30 | AB125: 50
C126: 123 | D126: 11.03 | E126: Logan Webb | F126: SFG | G126: SP | H126: 29 | I126: 44 | J126: 4.09 | K126: Rnd 4 ADP Bust | L126: 14 | M126: 0 | N126: 8.6 | O126: 3.35 | P126: 1.2 | Q126: 0 | R126: 93 | S126: 8.48 | T126: webblogan_P | U126: =IF(OR(ISNUMBER(MATCH(T126,Selected_3V,0)),ISNUMBER(B126)),1,0) -> 0 | V126: 85 | W126: 37 | X126: 31 | Y126: 32 | Z126: 41 | AA126: 30 | AB126: 28
C127: 124 | D127: 11.04 | E127: Framber Valdez | F127: DET | G127: SP | H127: 32 | I127: 74 | J127: 7.03 | K127: Rnd 7 ADP Bust | L127: 15 | M127: 0 | N127: 8.8 | O127: 3.4 | P127: 1.22 | Q127: 0 | R127: 94 | S127: 8.38 | T127: valdezframber_P | U127: =IF(OR(ISNUMBER(MATCH(T127,Selected_3V,0)),ISNUMBER(B127)),1,0) -> 0 | V127: 88 | W127: 37 | X127: 34 | Y127: 34 | Z127: 45 | AA127: 30 | AB127: 39
C128: 125 | D128: 11.05 | E128: Jakob Marsee | F128: MIA | G128: OF | H128: 25 | I128: 140 | J128: 12.09 | K128: Rnd 12 ADP Bargain | L128: 0.331 | M128: 82 | N128: 13 | O128: 50 | P128: 45 | Q128: 118 | R128: 41 | S128: 8.42 | T128: marseejakob_B | U128: =IF(OR(ISNUMBER(MATCH(T128,Selected_3V,0)),ISNUMBER(B128)),1,0) -> 0 | V128: 59 | W128: 73 | X128: 40 | Y128: 36 | Z128: 96 | AA128: 48 | AB128: 44
C129: 126 | D129: 11.06 | E129: Nick Pivetta | F129: SDP | G129: SP | H129: 33 | I129: 92 | J129: 8.09 | K129: Rnd 8 ADP Bust | L129: 13 | M129: 0 | N129: 9.8 | O129: 4.22 | P129: 1.22 | Q129: 1 | R129: 94 | S129: 8.28 | T129: pivettanick_P | U129: =IF(OR(ISNUMBER(MATCH(T129,Selected_3V,0)),ISNUMBER(B129)),1,0) -> 0 | V129: 81 | W129: 37 | X129: 53 | Y129: 69 | Z129: 45 | AA129: 34 | AB129: 39
C130: 127 | D130: 11.07 | E130: Ryan Helsley | F130: BAL | G130: RP | H130: 31 | I130: 112 | J130: 10.05 | K130: Fair Value in Rnd 11 | L130: 6 | M130: 24 | N130: 10.5 | O130: 3.26 | P130: 1.23 | Q130: 6 | R130: 99 | S130: 8.2 | T130: helsleyryan_P | U130: =IF(OR(ISNUMBER(MATCH(T130,Selected_3V,0)),ISNUMBER(B130)),1,0) -> 0 | V130: 40 | W130: 98 | X130: 66 | Y130: 29 | Z130: 47 | AA130: 55 | AB130: 87
C131: 128 | D131: 11.08 | E131: Yainer Diaz | F131: HOU | G131: C | H131: 27 | I131: 144 | J131: 13.01 | K131: Rnd 13 ADP Bargain | L131: 0.315 | M131: 72 | N131: 24 | O131: 92 | P131: 2 | Q131: 167 | R131: 58 | S131: 8.2 | T131: diazyainer_B | U131: =IF(OR(ISNUMBER(MATCH(T131,Selected_3V,0)),ISNUMBER(B131)),1,0) -> 0 | V131: 43 | W131: 60 | X131: 73 | Y131: 85 | Z131: 27 | AA131: 84 | AB131: 74
C132: 129 | D132: 11.09 | E132: Eury Perez | F132: MIA | G132: SP | H132: 23 | I132: 89 | J132: 8.06 | K132: Rnd 8 ADP Bust | L132: 11 | M132: 0 | N132: 10.6 | O132: 3.47 | P132: 1.07 | Q132: 0 | R132: 98 | S132: 7.9 | T132: perezeury_P | U132: =IF(OR(ISNUMBER(MATCH(T132,Selected_3V,0)),ISNUMBER(B132)),1,0) -> 0 | V132: 72 | W132: 37 | X132: 68 | Y132: 37 | Z132: 17 | AA132: 30 | AB132: 80 | AU132: =IF(ISNA(MATCH($AO132,NameKeys,0)),"",INDEX(RankData,MATCH($AO132,NameKeys,0),4)&"/"&INDEX(RankData,MATCH($AO132,NameKeys,0),6)&"/"&INDEX(RankData,MATCH($AO132,NameKeys,0),5)) -> 
C133: 130 | D133: 11.10 | E133: Carlos Estevez | F133: KCR | G133: RP | H133: 33 | I133: 134 | J133: 12.03 | K133: Rnd 12 ADP Bargain | L133: 5 | M133: 24 | N133: 8.9 | O133: 3.82 | P133: 1.29 | Q133: 9 | R133: 98 | S133: 7.96 | T133: estevezcarlos_P | U133: =IF(OR(ISNUMBER(MATCH(T133,Selected_3V,0)),ISNUMBER(B133)),1,0) -> 0 | V133: 34 | W133: 98 | X133: 36 | Y133: 52 | Z133: 61 | AA133: 67 | AB133: 80 | AM133: =IF(U133=1,T133,"") -> 
C134: 131 | D134: 11.11 | E134: Tanner Bibee | F134: CLE | G134: SP | H134: 27 | I134: 166 | J134: 14.11 | K134: Rnd 14 ADP Bargain | L134: 16 | M134: 0 | N134: 9.1 | O134: 3.46 | P134: 1.15 | Q134: 0 | R134: 95 | S134: 7.72 | T134: bibeetanner_P | U134: =IF(OR(ISNUMBER(MATCH(T134,Selected_3V,0)),ISNUMBER(B134)),1,0) -> 0 | V134: 91 | W134: 37 | X134: 40 | Y134: 36 | Z134: 30 | AA134: 30 | AB134: 50
C135: 132 | D135: 11.12 | E135: Daniel Palencia | F135: CHC | G135: RP | H135: 26 | I135: 142 | J135: 12.11 | K135: Rnd 12 ADP Bargain | L135: 4 | M135: 20 | N135: 11 | O135: 4.16 | P135: 1.28 | Q135: 4 | R135: 99 | S135: 7.74 | T135: palenciadaniel_P | U135: =IF(OR(ISNUMBER(MATCH(T135,Selected_3V,0)),ISNUMBER(B135)),1,0) -> 0 | V135: 28 | W135: 96 | X135: 74 | Y135: 67 | Z135: 59 | AA135: 46 | AB135: 87
C136: 133 | D136: 12.01 | E136: Nick Lodolo | F136: CIN | G136: SP | H136: 28 | I136: 130 | J136: 11.11 | K136: Fair Value in Rnd 12 | L136: 13 | M136: 0 | N136: 10.2 | O136: 3.82 | P136: 1.18 | Q136: 0 | R136: 94 | S136: 7.78 | T136: lodolonick_P | U136: =IF(OR(ISNUMBER(MATCH(T136,Selected_3V,0)),ISNUMBER(B136)),1,0) -> 0 | V136: 81 | W136: 37 | X136: 61 | Y136: 52 | Z136: 36 | AA136: 30 | AB136: 39
C137: 134 | D137: 12.02 | E137: Drake Baldwin | F137: ATL | G137: C | H137: 25 | I137: 99 | J137: 9.04 | K137: Rnd 9 ADP Bust | L137: 0.337 | M137: 68 | N137: 19 | O137: 85 | P137: 1 | Q137: 136 | R137: 45 | S137: 7.86 | T137: baldwindrake_B | U137: =IF(OR(ISNUMBER(MATCH(T137,Selected_3V,0)),ISNUMBER(B137)),1,0) -> 0 | V137: 65 | W137: 54 | X137: 59 | Y137: 79 | Z137: 25 | AA137: 64 | AB137: 51
C138: 135 | D138: 12.03 | E138: Ryan Pepiot | F138: TBR | G138: SP | H138: 28 | I138: 131 | J138: 11.12 | K138: Fair Value in Rnd 12 | L138: 12 | M138: 0 | N138: 9.6 | O138: 3.66 | P138: 1.17 | Q138: 0 | R138: 95 | S138: 7.64 | T138: pepiotryan_P | U138: =IF(OR(ISNUMBER(MATCH(T138,Selected_3V,0)),ISNUMBER(B138)),1,0) -> 0 | V138: 77 | W138: 37 | X138: 49 | Y138: 45 | Z138: 34 | AA138: 30 | AB138: 50
C139: 136 | D139: 12.04 | E139: Raisel Iglesias | F139: ATL | G139: RP | H139: 36 | I139: 113 | J139: 10.06 | K139: Rnd 10 ADP Bust | L139: 5 | M139: 19 | N139: 10.5 | O139: 2.88 | P139: 1.04 | Q139: 4 | R139: 95 | S139: 7.04 | T139: iglesiasraisel_P | U139: =IF(OR(ISNUMBER(MATCH(T139,Selected_3V,0)),ISNUMBER(B139)),1,0) -> 0 | V139: 34 | W139: 95 | X139: 66 | Y139: 17 | Z139: 13 | AA139: 46 | AB139: 50
C140: 137 | D140: 12.05 | E140: Pete Fairbanks | F140: MIA | G140: RP | H140: 32 | I140: 147 | J140: 13.04 | K140: Rnd 13 ADP Bargain | L140: 5 | M140: 23 | N140: 10.8 | O140: 3.22 | P140: 1.17 | Q140: 8 | R140: 98 | S140: 6.86 | T140: fairbankspete_P | U140: =IF(OR(ISNUMBER(MATCH(T140,Selected_3V,0)),ISNUMBER(B140)),1,0) -> 0 | V140: 34 | W140: 98 | X140: 71 | Y140: 27 | Z140: 34 | AA140: 63 | AB140: 80
C141: 138 | D141: 12.06 | E141: Jeff Hoffman | F141: TOR | G141: RP | H141: 33 | I141: 122 | J141: 11.03 | K141: Fair Value in Rnd 12 | L141: 7 | M141: 14 | N141: 10 | O141: 4.58 | P141: 1.33 | Q141: 8 | R141: 96 | S141: 6.74 | T141: hoffmanjeff_P | U141: =IF(OR(ISNUMBER(MATCH(T141,Selected_3V,0)),ISNUMBER(B141)),1,0) -> 0 | V141: 46 | W141: 88 | X141: 57 | Y141: 81 | Z141: 69 | AA141: 63 | AB141: 62
C142: 139 | D142: 12.07 | E142: Emilio Pagan | F142: CIN | G142: RP | H142: 35 | I142: 146 | J142: 13.03 | K142: Rnd 13 ADP Bargain | L142: 4 | M142: 14 | N142: 10.3 | O142: 3.62 | P142: 1.07 | Q142: 10 | R142: 95 | S142: 6.58 | T142: paganemilio_P | U142: =IF(OR(ISNUMBER(MATCH(T142,Selected_3V,0)),ISNUMBER(B142)),1,0) -> 0 | V142: 28 | W142: 88 | X142: 63 | Y142: 43 | Z142: 17 | AA142: 71 | AB142: 50
C143: 140 | D143: 12.08 | E143: Noelvi Marte | F143: CIN | G143: 3B,OF | H143: 24 | I143: 150 | J143: 13.07 | K143: Rnd 13 ADP Bargain | L143: 0.31 | M143: 80 | N143: 17 | O143: 71 | P143: 22 | Q143: 144 | R143: 50 | S143: 6.58 | T143: martenoelvi_B | U143: =IF(OR(ISNUMBER(MATCH(T143,Selected_3V,0)),ISNUMBER(B143)),1,0) -> 0 | V143: 38 | W143: 71 | X143: 53 | Y143: 64 | Z143: 72 | AA143: 70 | AB143: 61
C144: 141 | D144: 12.09 | E144: Edward Cabrera | F144: CHC | G144: SP | H144: 28 | I144: 190 | J144: 16.11 | K144: Rnd 16 ADP Bargain | L144: 14 | M144: 0 | N144: 10.3 | O144: 3.7 | P144: 1.25 | Q144: 0 | R144: 97 | S144: 6.36 | T144: cabreraedward_P | U144: =IF(OR(ISNUMBER(MATCH(T144,Selected_3V,0)),ISNUMBER(B144)),1,0) -> 0 | V144: 85 | W144: 37 | X144: 63 | Y144: 47 | Z144: 52 | AA144: 30 | AB144: 72
C145: 142 | D145: 12.10 | E145: Sandy Alcantara | F145: MIA | G145: SP | H145: 31 | I145: 143 | J145: 12.12 | K145: Good Value in Rnd 12 | L145: 13 | M145: 0 | N145: 7.7 | O145: 3.9 | P145: 1.19 | Q145: 0 | R145: 97 | S145: 6.36 | T145: alcantarasandy_P | U145: =IF(OR(ISNUMBER(MATCH(T145,Selected_3V,0)),ISNUMBER(B145)),1,0) -> 0 | V145: 81 | W145: 37 | X145: 18 | Y145: 56 | Z145: 38 | AA145: 30 | AB145: 72
C146: 143 | D146: 12.11 | E146: Brandon Lowe | F146: PIT | G146: 2B | H146: 31 | I146: 168 | J146: 15.01 | K146: Rnd 15 ADP Bargain | L146: 0.332 | M146: 85 | N146: 32 | O146: 91 | P146: 6 | Q146: 140 | R146: 63 | S146: 6.38 | T146: lowebrandon_B | U146: =IF(OR(ISNUMBER(MATCH(T146,Selected_3V,0)),ISNUMBER(B146)),1,0) -> 0 | V146: 60 | W146: 76 | X146: 88 | Y146: 84 | Z146: 35 | AA146: 67 | AB146: 81
C147: 144 | D147: 12.12 | E147: Ceddanne Rafaela | F147: BOS | G147: 2B,OF | H147: 26 | I147: 136 | J147: 12.05 | K147: Good Value in Rnd 12 | L147: 0.291 | M147: 86 | N147: 18 | O147: 76 | P147: 26 | Q147: 146 | R147: 57 | S147: 6.34 | T147: rafaelaceddanne_B | U147: =IF(OR(ISNUMBER(MATCH(T147,Selected_3V,0)),ISNUMBER(B147)),1,0) -> 0 | V147: 22 | W147: 77 | X147: 56 | Y147: 70 | Z147: 79 | AA147: 72 | AB147: 73
C148: 145 | D148: 13.01 | E148: Ryan Walker | F148: SFG | G148: RP | H148: 30 | I148: 184 | J148: 16.05 | K148: Rnd 16 ADP Bargain | L148: 7 | M148: 14 | N148: 10.3 | O148: 3.24 | P148: 1.18 | Q148: 8 | R148: 96 | S148: 6.22 | T148: walkerryan_P | U148: =IF(OR(ISNUMBER(MATCH(T148,Selected_3V,0)),ISNUMBER(B148)),1,0) -> 0 | V148: 46 | W148: 88 | X148: 63 | Y148: 28 | Z148: 36 | AA148: 63 | AB148: 62
C149: 146 | D149: 13.02 | E149: Luis Castillo | F149: SEA | G149: SP | H149: 33 | I149: 148 | J149: 13.05 | K149: Good Value in Rnd 13 | L149: 13 | M149: 0 | N149: 9.2 | O149: 3.58 | P149: 1.19 | Q149: 0 | R149: 96 | S149: 6.14 | T149: castilloluis_P | U149: =IF(OR(ISNUMBER(MATCH(T149,Selected_3V,0)),ISNUMBER(B149)),1,0) -> 0 | V149: 81 | W149: 37 | X149: 42 | Y149: 41 | Z149: 38 | AA149: 30 | AB149: 62
C150: 147 | D150: 13.03 | E150: Cade Horton | F150: CHC | G150: SP | H150: 25 | I150: 176 | J150: 15.09 | K150: Rnd 15 ADP Bargain | L150: 14 | M150: 0 | N150: 8.7 | O150: 2.88 | P150: 1.08 | Q150: 0 | R150: 96 | S150: 5.92 | T150: hortoncade_P | U150: =IF(OR(ISNUMBER(MATCH(T150,Selected_3V,0)),ISNUMBER(B150)),1,0) -> 0 | V150: 85 | W150: 37 | X150: 33 | Y150: 17 | Z150: 18 | AA150: 30 | AB150: 62
C151: 148 | D151: 13.04 | E151: Drew Rasmussen | F151: TBR | G151: SP | H151: 31 | I151: 151 | J151: 13.08 | K151: Good Value in Rnd 13 | L151: 11 | M151: 0 | N151: 8.4 | O151: 2.99 | P151: 1.07 | Q151: 2 | R151: 96 | S151: 5.9 | T151: rasmussendrew_P | U151: =IF(OR(ISNUMBER(MATCH(T151,Selected_3V,0)),ISNUMBER(B151)),1,0) -> 0 | V151: 72 | W151: 37 | X151: 28 | Y151: 20 | Z151: 17 | AA151: 38 | AB151: 62
C152: 149 | D152: 13.05 | E152: Nathan Eovaldi | F152: TEX | G152: SP | H152: 36 | I152: 124 | J152: 11.05 | K152: Rnd 11 ADP Bust | L152: 13 | M152: 0 | N152: 8.7 | O152: 3.55 | P152: 1.13 | Q152: 1 | R152: 96 | S152: 5.78 | T152: eovaldinathan_P | U152: =IF(OR(ISNUMBER(MATCH(T152,Selected_3V,0)),ISNUMBER(B152)),1,0) -> 0 | V152: 81 | W152: 37 | X152: 33 | Y152: 40 | Z152: 26 | AA152: 34 | AB152: 62
C153: 150 | D153: 13.06 | E153: Jose Ferrer | F153: SEA | G153: RP | H153: 26 | I153: 289 | J153: 25.02 | K153: Rnd 25 ADP Bargain | L153: 6 | M153: 7 | N153: 8.6 | O153: 3.67 | P153: 1.22 | Q153: 12 | R153: 98 | S153: 5.52 | T153: ferrerjose_P | U153: =IF(OR(ISNUMBER(MATCH(T153,Selected_3V,0)),ISNUMBER(B153)),1,0) -> 0 | V153: 40 | W153: 68 | X153: 31 | Y153: 45 | Z153: 45 | AA153: 77 | AB153: 80
C154: 151 | D154: 13.07 | E154: Sonny Gray | F154: BOS | G154: SP | H154: 36 | I154: 109 | J154: 10.02 | K154: Rnd 10 ADP Bust | L154: 13 | M154: 0 | N154: 9.5 | O154: 3.85 | P154: 1.22 | Q154: 0 | R154: 93 | S154: 5.42 | T154: graysonny_P | U154: =IF(OR(ISNUMBER(MATCH(T154,Selected_3V,0)),ISNUMBER(B154)),1,0) -> 0 | V154: 81 | W154: 37 | X154: 47 | Y154: 53 | Z154: 45 | AA154: 30 | AB154: 28
C155: 152 | D155: 13.08 | E155: Shota Imanaga | F155: CHC | G155: SP | H155: 32 | I155: 162 | J155: 14.07 | K155: Rnd 14 ADP Bargain | L155: 15 | M155: 0 | N155: 8.3 | O155: 3.36 | P155: 1.02 | Q155: 0 | R155: 91 | S155: 5.34 | T155: imanagashota_P | U155: =IF(OR(ISNUMBER(MATCH(T155,Selected_3V,0)),ISNUMBER(B155)),1,0) -> 0 | V155: 88 | W155: 37 | X155: 26 | Y155: 32 | Z155: 11 | AA155: 30 | AB155: 13
C156: 153 | D156: 13.09 | E156: MacKenzie Gore | F156: TEX | G156: SP | H156: 27 | I156: 154 | J156: 13.11 | K156: Good Value in Rnd 13 | L156: 11 | M156: 0 | N156: 10.1 | O156: 4.13 | P156: 1.38 | Q156: 0 | R156: 95 | S156: 5.34 | T156: goremackenzie_P | U156: =IF(OR(ISNUMBER(MATCH(T156,Selected_3V,0)),ISNUMBER(B156)),1,0) -> 0 | V156: 72 | W156: 37 | X156: 59 | Y156: 66 | Z156: 78 | AA156: 30 | AB156: 50
C157: 154 | D157: 13.10 | E157: Jonathan Aranda | F157: TBR | G157: 1B | H157: 28 | I157: 189 | J157: 16.10 | K157: Rnd 16 ADP Bargain | L157: 0.359 | M157: 84 | N157: 22 | O157: 83 | P157: 2 | Q157: 149 | R157: 53 | S157: 5.32 | T157: arandajonathan_B | U157: =IF(OR(ISNUMBER(MATCH(T157,Selected_3V,0)),ISNUMBER(B157)),1,0) -> 0 | V157: 82 | W157: 75 | X157: 68 | Y157: 77 | Z157: 27 | AA157: 74 | AB157: 66
C158: 155 | D158: 13.11 | E158: Aaron Nola | F158: PHI | G158: SP | H158: 33 | I158: 193 | J158: 17.02 | K158: Rnd 17 ADP Bargain | L158: 16 | M158: 0 | N158: 9.8 | O158: 4.13 | P158: 1.18 | Q158: 0 | R158: 93 | S158: 5.1 | T158: nolaaaron_P | U158: =IF(OR(ISNUMBER(MATCH(T158,Selected_3V,0)),ISNUMBER(B158)),1,0) -> 0 | V158: 91 | W158: 37 | X158: 53 | Y158: 66 | Z158: 36 | AA158: 30 | AB158: 28
C159: 156 | D159: 13.12 | E159: Trevor Rogers | F159: BAL | G159: SP | H159: 28 | I159: 137 | J159: 12.06 | K159: Fair Value in Rnd 13 | L159: 12 | M159: 0 | N159: 9 | O159: 3.73 | P159: 1.25 | Q159: 0 | R159: 94 | S159: 5.14 | T159: rogerstrevor_P | U159: =IF(OR(ISNUMBER(MATCH(T159,Selected_3V,0)),ISNUMBER(B159)),1,0) -> 0 | V159: 77 | W159: 37 | X159: 38 | Y159: 48 | Z159: 52 | AA159: 30 | AB159: 39
C160: 157 | D160: 14.01 | E160: Andrew Abbott | F160: CIN | G160: SP | H160: 27 | I160: 202 | J160: 17.11 | K160: Rnd 17 ADP Bargain | L160: 15 | M160: 0 | N160: 9.3 | O160: 3.45 | P160: 1.22 | Q160: 0 | R160: 93 | S160: 5.02 | T160: abbottandrew_P | U160: =IF(OR(ISNUMBER(MATCH(T160,Selected_3V,0)),ISNUMBER(B160)),1,0) -> 0 | V160: 88 | W160: 37 | X160: 44 | Y160: 36 | Z160: 45 | AA160: 30 | AB160: 28
C161: 158 | D161: 14.02 | E161: Shane McClanahan | F161: TBR | G161: SP | H161: 29 | I161: 207 | J161: 18.04 | K161: Rnd 18 ADP Bargain | L161: 12 | M161: 0 | N161: 10 | O161: 3.23 | P161: 1.14 | Q161: 0 | R161: 97 | S161: 4.7 | T161: mcclanahanshane_P | U161: =IF(OR(ISNUMBER(MATCH(T161,Selected_3V,0)),ISNUMBER(B161)),1,0) -> 0 | V161: 77 | W161: 37 | X161: 57 | Y161: 27 | Z161: 28 | AA161: 30 | AB161: 72
C162: 159 | D162: 14.03 | E162: Bubba Chandler | F162: PIT | G162: SP | H162: 24 | I162: 158 | J162: 14.03 | K162: Good Value in Rnd 14 | L162: 11 | M162: 1 | N162: 9.4 | O162: 3.94 | P162: 1.27 | Q162: 0 | R162: 99 | S162: 4.76 | T162: chandlerbubba_P | U162: =IF(OR(ISNUMBER(MATCH(T162,Selected_3V,0)),ISNUMBER(B162)),1,0) -> 0 | V162: 72 | W162: 42 | X162: 45 | Y162: 57 | Z162: 57 | AA162: 30 | AB162: 87
C163: 160 | D163: 14.04 | E163: Zack Wheeler | F163: PHI | G163: SP | H163: 36 | I163: 107 | J163: 9.12 | K163: Rnd 9 ADP Bust | L163: 11 | M163: 0 | N163: 10 | O163: 3.18 | P163: 1.08 | Q163: 0 | R163: 96 | S163: 4.78 | T163: wheelerzack_P | U163: =IF(OR(ISNUMBER(MATCH(T163,Selected_3V,0)),ISNUMBER(B163)),1,0) -> 0 | V163: 72 | W163: 37 | X163: 57 | Y163: 26 | Z163: 18 | AA163: 30 | AB163: 62
C164: 161 | D164: 14.05 | E164: Abner Uribe | F164: MIL | G164: RP | H164: 26 | I164: 203 | J164: 17.12 | K164: Rnd 17 ADP Bargain | L164: 5 | M164: 19 | N164: 11.5 | O164: 2.47 | P164: 1.21 | Q164: 20 | R164: 100 | S164: 4.4 | T164: uribeabner_P | U164: =IF(OR(ISNUMBER(MATCH(T164,Selected_3V,0)),ISNUMBER(B164)),1,0) -> 0 | V164: 34 | W164: 95 | X164: 81 | Y164: 9 | Z164: 43 | AA164: 93 | AB164: 91
C165: 162 | D165: 14.06 | E165: Tatsuya Imai | F165: HOU | G165: SP | H165: 28 | I165: 174 | J165: 15.07 | K165: Rnd 15 ADP Bargain | L165: 9 | M165: 1 | N165: 9.3 | O165: 4.01 | P165: 1.3 | Q165: 3 | R165: 94 | S165: 4.54 | T165: imaitatsuya_P | U165: =IF(OR(ISNUMBER(MATCH(T165,Selected_3V,0)),ISNUMBER(B165)),1,0) -> 0 | V165: 60 | W165: 42 | X165: 44 | Y165: 60 | Z165: 63 | AA165: 42 | AB165: 39
C166: 163 | D166: 14.07 | E166: Kenley Jansen | F166: DET | G166: RP | H166: 38 | I166: 156 | J166: 14.01 | K166: Good Value in Rnd 14 | L166: 5 | M166: 26 | N166: 10.9 | O166: 2.86 | P166: 1 | Q166: 0 | R166: 95 | S166: 4.58 | T166: jansenkenley_P | U166: =IF(OR(ISNUMBER(MATCH(T166,Selected_3V,0)),ISNUMBER(B166)),1,0) -> 0 | V166: 34 | W166: 99 | X166: 73 | Y166: 16 | Z166: 10 | AA166: 30 | AB166: 50
C167: 164 | D167: 14.08 | E167: Bryan Abreu | F167: HOU | G167: RP | H167: 29 | I167: 215 | J167: 18.12 | K167: Rnd 18 ADP Bargain | L167: 4 | M167: 14 | N167: 12.4 | O167: 2.64 | P167: 1.18 | Q167: 22 | R167: 97 | S167: 4.2 | T167: abreubryan_P | U167: =IF(OR(ISNUMBER(MATCH(T167,Selected_3V,0)),ISNUMBER(B167)),1,0) -> 0 | V167: 28 | W167: 88 | X167: 89 | Y167: 12 | Z167: 36 | AA167: 95 | AB167: 72
C168: 165 | D168: 14.09 | E168: Shane Baz | F168: BAL | G168: SP | H168: 27 | I168: 212 | J168: 18.09 | K168: Rnd 18 ADP Bargain | L168: 11 | M168: 0 | N168: 9.7 | O168: 3.92 | P168: 1.2 | Q168: 0 | R168: 97 | S168: 4.26 | T168: bazshane_P | U168: =IF(OR(ISNUMBER(MATCH(T168,Selected_3V,0)),ISNUMBER(B168)),1,0) -> 0 | V168: 72 | W168: 37 | X168: 51 | Y168: 57 | Z168: 41 | AA168: 30 | AB168: 72
C169: 166 | D169: 14.10 | E169: Wilyer Abreu | F169: BOS | G169: OF | H169: 27 | I169: 225 | J169: 19.10 | K169: Rnd 19 ADP Bargain | L169: 0.339 | M169: 81 | N169: 23 | O169: 80 | P169: 14 | Q169: 123 | R169: 53 | S169: 4.08 | T169: abreuwilyer_B | U169: =IF(OR(ISNUMBER(MATCH(T169,Selected_3V,0)),ISNUMBER(B169)),1,0) -> 0 | V169: 67 | W169: 72 | X169: 70 | Y169: 74 | Z169: 54 | AA169: 53 | AB169: 66
C170: 167 | D170: 14.11 | E170: Jack Flaherty | F170: DET | G170: SP | H170: 30 | I170: 201 | J170: 17.10 | K170: Rnd 17 ADP Bargain | L170: 13 | M170: 0 | N170: 10.3 | O170: 3.91 | P170: 1.21 | Q170: 0 | R170: 94 | S170: 4.06 | T170: flahertyjack_P | U170: =IF(OR(ISNUMBER(MATCH(T170,Selected_3V,0)),ISNUMBER(B170)),1,0) -> 0 | V170: 81 | W170: 37 | X170: 63 | Y170: 56 | Z170: 43 | AA170: 30 | AB170: 39
C171: 168 | D171: 14.12 | E171: Spencer Torkelson | F171: DET | G171: 1B | H171: 26 | I171: 171 | J171: 15.04 | K171: Rnd 15 ADP Bargain | L171: 0.323 | M171: 82 | N171: 27 | O171: 80 | P171: 2 | Q171: 129 | R171: 57 | S171: 4.02 | T171: torkelsonspencer_B | U171: =IF(OR(ISNUMBER(MATCH(T171,Selected_3V,0)),ISNUMBER(B171)),1,0) -> 0 | V171: 51 | W171: 73 | X171: 80 | Y171: 74 | Z171: 27 | AA171: 58 | AB171: 73
C172: 169 | D172: 15.01 | E172: Matt Chapman | F172: SFG | G172: 3B | H172: 33 | I172: 145 | J172: 13.02 | K172: Rnd 13 ADP Bust | L172: 0.339 | M172: 89 | N172: 27 | O172: 77 | P172: 6 | Q172: 139 | R172: 67 | S172: 4.02 | T172: chapmanmatt_B | U172: =IF(OR(ISNUMBER(MATCH(T172,Selected_3V,0)),ISNUMBER(B172)),1,0) -> 0 | V172: 67 | W172: 80 | X172: 80 | Y172: 71 | Z172: 35 | AA172: 67 | AB172: 85
C173: 170 | D173: 15.02 | E173: Ivan Herrera | F173: STL | G173: DH | H173: 26 | I173: 177 | J173: 15.10 | K173: Good Value in Rnd 15 | L173: 0.353 | M173: 77 | N173: 19 | O173: 78 | P173: 10 | Q173: 136 | R173: 43 | S173: 3.98 | T173: herreraivan_B | U173: =IF(OR(ISNUMBER(MATCH(T173,Selected_3V,0)),ISNUMBER(B173)),1,0) -> 0 | V173: 78 | W173: 67 | X173: 59 | Y173: 72 | Z173: 45 | AA173: 64 | AB173: 48
C174: 171 | D174: 15.03 | E174: Alejandro Kirk | F174: TOR | G174: C | H174: 27 | I174: 179 | J174: 15.12 | K174: Good Value in Rnd 15 | L174: 0.356 | M174: 51 | N174: 15 | O174: 74 | P174: 0 | Q174: 139 | R174: 38 | S174: 3.96 | T174: kirkalejandro_B | U174: =IF(OR(ISNUMBER(MATCH(T174,Selected_3V,0)),ISNUMBER(B174)),1,0) -> 0 | V174: 80 | W174: 31 | X174: 46 | Y174: 67 | Z174: 24 | AA174: 67 | AB174: 38
C175: 172 | D175: 15.04 | E175: Trevor Megill | F175: MIL | G175: RP | H175: 32 | I175: 160 | J175: 14.05 | K175: Fair Value in Rnd 15 | L175: 5 | M175: 15 | N175: 11.5 | O175: 3.98 | P175: 1.29 | Q175: 5 | R175: 99 | S175: 3.92 | T175: megilltrevor_P | U175: =IF(OR(ISNUMBER(MATCH(T175,Selected_3V,0)),ISNUMBER(B175)),1,0) -> 0 | V175: 34 | W175: 90 | X175: 81 | Y175: 59 | Z175: 61 | AA175: 50 | AB175: 87
C176: 173 | D176: 15.05 | E176: Josh Hader | F176: HOU | G176: RP | H176: 32 | I176: 129 | J176: 11.10 | K176: Rnd 11 ADP Bust | L176: 5 | M176: 11 | N176: 14.1 | O176: 2.64 | P176: 0.94 | Q176: 5 | R176: 96 | S176: 3.8 | T176: haderjosh_P | U176: =IF(OR(ISNUMBER(MATCH(T176,Selected_3V,0)),ISNUMBER(B176)),1,0) -> 0 | V176: 34 | W176: 82 | X176: 97 | Y176: 12 | Z176: 6 | AA176: 50 | AB176: 62
C177: 174 | D177: 15.06 | E177: Matthew Boyd | F177: CHC | G177: SP | H177: 35 | I177: 192 | J177: 17.01 | K177: Rnd 17 ADP Bargain | L177: 14 | M177: 0 | N177: 8.7 | O177: 4.11 | P177: 1.22 | Q177: 0 | R177: 92 | S177: 3.72 | T177: boydmatthew_P | U177: =IF(OR(ISNUMBER(MATCH(T177,Selected_3V,0)),ISNUMBER(B177)),1,0) -> 0 | V177: 85 | W177: 37 | X177: 33 | Y177: 65 | Z177: 45 | AA177: 30 | AB177: 20
C178: 175 | D178: 15.07 | E178: Dennis Santana | F178: PIT | G178: RP | H178: 30 | I178: 187 | J178: 16.08 | K178: Rnd 16 ADP Bargain | L178: 5 | M178: 11 | N178: 8.6 | O178: 3.98 | P178: 1.24 | Q178: 12 | R178: 95 | S178: 3.72 | T178: santanadennis_P | U178: =IF(OR(ISNUMBER(MATCH(T178,Selected_3V,0)),ISNUMBER(B178)),1,0) -> 0 | V178: 34 | W178: 82 | X178: 31 | Y178: 59 | Z178: 50 | AA178: 77 | AB178: 50
C179: 176 | D179: 15.08 | E179: Ranger Suarez | F179: BOS | G179: SP | H179: 30 | I179: 163 | J179: 14.08 | K179: Fair Value in Rnd 15 | L179: 11 | M179: 0 | N179: 8.4 | O179: 3.33 | P179: 1.25 | Q179: 2 | R179: 93 | S179: 3.72 | T179: suarezranger_P | U179: =IF(OR(ISNUMBER(MATCH(T179,Selected_3V,0)),ISNUMBER(B179)),1,0) -> 0 | V179: 72 | W179: 37 | X179: 28 | Y179: 31 | Z179: 52 | AA179: 38 | AB179: 28
C180: 177 | D180: 15.09 | E180: Blake Snell | F180: LAD | G180: SP | H180: 33 | I180: 118 | J180: 10.11 | K180: Rnd 10 ADP Bust | L180: 11 | M180: 0 | N180: 11.2 | O180: 3.06 | P180: 1.21 | Q180: 0 | R180: 95 | S180: 3.76 | T180: snellblake_P | U180: =IF(OR(ISNUMBER(MATCH(T180,Selected_3V,0)),ISNUMBER(B180)),1,0) -> 0 | V180: 72 | W180: 37 | X180: 77 | Y180: 22 | Z180: 43 | AA180: 30 | AB180: 50
C181: 178 | D181: 15.10 | E181: Cedric Mullins | F181: TBR | G181: OF | H181: 31 | I181: 325 | J181: 28.02 | K181: Rnd 28 ADP Bargain | L181: 0.322 | M181: 69 | N181: 18 | O181: 59 | P181: 23 | Q181: 137 | R181: 52 | S181: 3.58 | T181: mullinscedric_B | U181: =IF(OR(ISNUMBER(MATCH(T181,Selected_3V,0)),ISNUMBER(B181)),1,0) -> 0 | V181: 50 | W181: 56 | X181: 56 | Y181: 48 | Z181: 73 | AA181: 65 | AB181: 64
C182: 179 | D182: 15.11 | E182: Kirby Yates | F182: LAA | G182: RP | H182: 39 | I182: 304 | J182: 26.05 | K182: Rnd 26 ADP Bargain | L182: 4 | M182: 8 | N182: 12.3 | O182: 3.41 | P182: 1.14 | Q182: 11 | R182: 93 | S182: 3.58 | T182: yateskirby_P | U182: =IF(OR(ISNUMBER(MATCH(T182,Selected_3V,0)),ISNUMBER(B182)),1,0) -> 0 | V182: 28 | W182: 72 | X182: 89 | Y182: 34 | Z182: 28 | AA182: 74 | AB182: 28
C183: 180 | D183: 15.12 | E183: Orion Kerkering | F183: PHI | G183: RP | H183: 25 | I183: 326 | J183: 28.03 | K183: Rnd 28 ADP Bargain | L183: 7 | M183: 5 | N183: 10.9 | O183: 2.63 | P183: 1.16 | Q183: 12 | R183: 98 | S183: 3.58 | T183: kerkeringorion_P | U183: =IF(OR(ISNUMBER(MATCH(T183,Selected_3V,0)),ISNUMBER(B183)),1,0) -> 0 | V183: 46 | W183: 60 | X183: 73 | Y183: 11 | Z183: 32 | AA183: 77 | AB183: 80
C184: 181 | D184: 16.01 | E184: Robbie Ray | F184: SFG | G184: SP | H184: 35 | I184: 157 | J184: 14.02 | K184: Rnd 14 ADP Bust | L184: 12 | M184: 0 | N184: 10.7 | O184: 3.89 | P184: 1.26 | Q184: 0 | R184: 94 | S184: 3.58 | T184: rayrobbie_P | U184: =IF(OR(ISNUMBER(MATCH(T184,Selected_3V,0)),ISNUMBER(B184)),1,0) -> 0 | V184: 77 | W184: 37 | X184: 70 | Y184: 55 | Z184: 54 | AA184: 30 | AB184: 39
C185: 182 | D185: 16.02 | E185: Eduard Bazardo | F185: SEA | G185: RP | H185: 31 | I185: 400 | J185: 34.05 | K185: Sleeper | L185: 6 | M185: 1 | N185: 9.4 | O185: 3.56 | P185: 1.21 | Q185: 5 | R185: 95 | S185: 3.52 | T185: bazardoeduard_P | U185: =IF(OR(ISNUMBER(MATCH(T185,Selected_3V,0)),ISNUMBER(B185)),1,0) -> 0 | V185: 40 | W185: 42 | X185: 45 | Y185: 41 | Z185: 43 | AA185: 50 | AB185: 50
C186: 183 | D186: 16.03 | E186: Griffin Jax | F186: TBR | G186: RP | H186: 31 | I186: 188 | J186: 16.09 | K186: Good Value in Rnd 16 | L186: 5 | M186: 7 | N186: 10.6 | O186: 3.91 | P186: 1.17 | Q186: 21 | R186: 97 | S186: 3.52 | T186: jaxgriffin_P | U186: =IF(OR(ISNUMBER(MATCH(T186,Selected_3V,0)),ISNUMBER(B186)),1,0) -> 0 | V186: 34 | W186: 68 | X186: 68 | Y186: 56 | Z186: 34 | AA186: 94 | AB186: 72
C187: 184 | D187: 16.04 | E187: Tyler Holton | F187: DET | G187: RP | H187: 30 | I187: 449 | J187: 38.06 | K187: Sleeper | L187: 7 | M187: 2 | N187: 8.2 | O187: 3.64 | P187: 1.09 | Q187: 12 | R187: 92 | S187: 3.52 | T187: holtontyler_P | U187: =IF(OR(ISNUMBER(MATCH(T187,Selected_3V,0)),ISNUMBER(B187)),1,0) -> 0 | V187: 46 | W187: 46 | X187: 25 | Y187: 44 | Z187: 20 | AA187: 77 | AB187: 20
C188: 185 | D188: 16.05 | E188: Zac Gallen | F188: ARI | G188: SP | H188: 30 | I188: 197 | J188: 17.06 | K188: Rnd 17 ADP Bargain | L188: 14 | M188: 0 | N188: 9.2 | O188: 3.79 | P188: 1.18 | Q188: 0 | R188: 94 | S188: 3.48 | T188: gallenzac_P | U188: =IF(OR(ISNUMBER(MATCH(T188,Selected_3V,0)),ISNUMBER(B188)),1,0) -> 0 | V188: 85 | W188: 37 | X188: 42 | Y188: 51 | Z188: 36 | AA188: 30 | AB188: 39
C189: 186 | D189: 16.06 | E189: Caleb Thielbar | F189: CHC | G189: RP | H189: 39 | I189: 387 | J189: 33.04 | K189: Sleeper | L189: 5 | M189: 1 | N189: 10.2 | O189: 3.48 | P189: 1.16 | Q189: 17 | R189: 92 | S189: 3.52 | T189: thielbarcaleb_P | U189: =IF(OR(ISNUMBER(MATCH(T189,Selected_3V,0)),ISNUMBER(B189)),1,0) -> 0 | V189: 34 | W189: 42 | X189: 61 | Y189: 37 | Z189: 32 | AA189: 89 | AB189: 20
C190: 187 | D190: 16.07 | E190: Taylor Ward | F190: BAL | G190: OF | H190: 32 | I190: 133 | J190: 12.02 | K190: Rnd 12 ADP Bust | L190: 0.34 | M190: 83 | N190: 27 | O190: 82 | P190: 6 | Q190: 141 | R190: 57 | S190: 3.52 | T190: wardtaylor_B | U190: =IF(OR(ISNUMBER(MATCH(T190,Selected_3V,0)),ISNUMBER(B190)),1,0) -> 0 | V190: 68 | W190: 74 | X190: 80 | Y190: 76 | Z190: 35 | AA190: 68 | AB190: 73
C191: 188 | D191: 16.08 | E191: AJ Minter | F191: NYM | G191: RP | H191: 32 | I191: 401 | J191: 34.06 | K191: Sleeper | L191: 3 | M191: 3 | N191: 10.6 | O191: 3.26 | P191: 1.18 | Q191: 17 | R191: 96 | S191: 3.56 | T191: minteraj_P | U191: =IF(OR(ISNUMBER(MATCH(T191,Selected_3V,0)),ISNUMBER(B191)),1,0) -> 0 | V191: 23 | W191: 51 | X191: 68 | Y191: 29 | Z191: 36 | AA191: 89 | AB191: 62
C192: 189 | D192: 16.09 | E192: Carlos Rodon | F192: NYY | G192: SP | H192: 33 | I192: 181 | J192: 16.02 | K192: Good Value in Rnd 16 | L192: 10 | M192: 0 | N192: 9.9 | O192: 3.67 | P192: 1.18 | Q192: 0 | R192: 95 | S192: 3.56 | T192: rodoncarlos_P | U192: =IF(OR(ISNUMBER(MATCH(T192,Selected_3V,0)),ISNUMBER(B192)),1,0) -> 0 | V192: 66 | W192: 37 | X192: 55 | Y192: 45 | Z192: 36 | AA192: 30 | AB192: 50
C193: 190 | D193: 16.10 | E193: Ezequiel Tovar | F193: COL | G193: SS | H193: 25 | I193: 209 | J193: 18.06 | K193: Rnd 18 ADP Bargain | L193: 0.3 | M193: 78 | N193: 19 | O193: 72 | P193: 14 | Q193: 161 | R193: 62 | S193: 3.52 | T193: tovarezequiel_B | U193: =IF(OR(ISNUMBER(MATCH(T193,Selected_3V,0)),ISNUMBER(B193)),1,0) -> 0 | V193: 29 | W193: 68 | X193: 59 | Y193: 65 | Z193: 54 | AA193: 81 | AB193: 80
C194: 191 | D194: 16.11 | E194: Lucas Erceg | F194: KCR | G194: RP | H194: 31 | I194: 441 | J194: 37.10 | K194: Sleeper | L194: 6 | M194: 6 | N194: 8.9 | O194: 3.93 | P194: 1.35 | Q194: 16 | R194: 98 | S194: 3.46 | T194: erceglucas_P | U194: =IF(OR(ISNUMBER(MATCH(T194,Selected_3V,0)),ISNUMBER(B194)),1,0) -> 0 | V194: 40 | W194: 64 | X194: 36 | Y194: 57 | Z194: 73 | AA194: 87 | AB194: 80
C195: 192 | D195: 16.12 | E195: Jacob Wilson | F195: ATH | G195: SS | H195: 24 | I195: 159 | J195: 14.04 | K195: Rnd 14 ADP Bust | L195: 0.338 | M195: 75 | N195: 18 | O195: 77 | P195: 4 | Q195: 162 | R195: 52 | S195: 3.48 | T195: wilsonjacob_B | U195: =IF(OR(ISNUMBER(MATCH(T195,Selected_3V,0)),ISNUMBER(B195)),1,0) -> 0 | V195: 66 | W195: 64 | X195: 56 | Y195: 71 | Z195: 31 | AA195: 82 | AB195: 64
C196: 193 | D196: 17.01 | E196: Gus Varland | F196: WSN | G196: RP | H196: 29 | I196: 371 | J196: 31.12 | K196: Sleeper | L196: 2 | M196: 0 | N196: 8.7 | O196: 5.22 | P196: 1.51 | Q196: 3 | R196: 95 | S196: 3.5 | T196: varlandgus_P | U196: =IF(OR(ISNUMBER(MATCH(T196,Selected_3V,0)),ISNUMBER(B196)),1,0) -> 0 | V196: 18 | W196: 37 | X196: 33 | Y196: 93 | Z196: 92 | AA196: 42 | AB196: 50 | AU196: =IF(ISNA(MATCH($AO196,NameKeys,0)),"",INDEX(RankData,MATCH($AO196,NameKeys,0),4)&"/"&INDEX(RankData,MATCH($AO196,NameKeys,0),6)&"/"&INDEX(RankData,MATCH($AO196,NameKeys,0),5)) -> 
C197: 194 | D197: 17.02 | E197: Steven Kwan | F197: CLE | G197: OF | H197: 28 | I197: 138 | J197: 12.07 | K197: Rnd 12 ADP Bust | L197: 0.356 | M197: 94 | N197: 12 | O197: 59 | P197: 19 | Q197: 176 | R197: 45 | S197: 3.48 | T197: kwansteven_B | U197: =IF(OR(ISNUMBER(MATCH(T197,Selected_3V,0)),ISNUMBER(B197)),1,0) -> 0 | V197: 80 | W197: 84 | X197: 37 | Y197: 48 | Z197: 65 | AA197: 88 | AB197: 51 | AM197: =IF(U197=1,T197,"") -> 
C198: 195 | D198: 17.03 | E198: Dansby Swanson | F198: CHC | G198: SS | H198: 32 | I198: 152 | J198: 13.09 | K198: Rnd 13 ADP Bust | L198: 0.327 | M198: 84 | N198: 21 | O198: 78 | P198: 14 | Q198: 148 | R198: 53 | S198: 3.48 | T198: swansondansby_B | U198: =IF(OR(ISNUMBER(MATCH(T198,Selected_3V,0)),ISNUMBER(B198)),1,0) -> 0 | V198: 55 | W198: 75 | X198: 65 | Y198: 72 | Z198: 54 | AA198: 73 | AB198: 66
C199: 196 | D199: 17.04 | E199: Trey Yesavage | F199: TOR | G199: SP | H199: 23 | I199: 149 | J199: 13.06 | K199: Rnd 13 ADP Bust | L199: 7 | M199: 0 | N199: 12 | O199: 3.29 | P199: 1.12 | Q199: 0 | R199: 95 | S199: 3.46 | T199: yesavagetrey_P | U199: =IF(OR(ISNUMBER(MATCH(T199,Selected_3V,0)),ISNUMBER(B199)),1,0) -> 0 | V199: 46 | W199: 37 | X199: 86 | Y199: 30 | Z199: 25 | AA199: 30 | AB199: 50
C200: 197 | D200: 17.05 | E200: Kris Bubic | F200: KCR | G200: SP | H200: 28 | I200: 196 | J200: 17.05 | K200: Good Value in Rnd 17 | L200: 9 | M200: 0 | N200: 8.7 | O200: 3.94 | P200: 1.36 | Q200: 3 | R200: 92 | S200: 3.42 | T200: bubickris_P | U200: =IF(OR(ISNUMBER(MATCH(T200,Selected_3V,0)),ISNUMBER(B200)),1,0) -> 0 | V200: 60 | W200: 37 | X200: 33 | Y200: 57 | Z200: 75 | AA200: 42 | AB200: 20
... 553 more rows

Sheet RankData (hidden)
AC1: 99_ | AD1: Count | AE1: =COUNT(RankData!$AD$4:$AD$753) -> 750
B2: Input Data | U2: Calculate Scores | AC2: Copy Data | AV2: Score Data | BD2: Labels | BN2: Means/STD
B3: key | C3: JYJ_Rank | D3: round_draft | E3: player_s | F3: team_s | G3: Position_CBS | H3: age | I3: ADP_Overall | J3: round_adp | K3: DraftValue | L3: OBP / Wins | M3: Runs / Saves | N3: HRs / K9 | O3: RBI / ERA | P3: SB / WHIP | Q3: Hits / Holds | R3: XHits / Velocity | S3: Auction Value | T3: namekey_pos | U3: OBP / Wins | V3: Runs / Saves | W3: HRs / K9 | X3: RBI / ERA | Y3: SB / WHIP | Z3: Hits / Holds | AA3: XHits / Velocity | AD3: 2 | AE3: 3 | AF3: 4 | AG3: 5 | AH3: 6 | AI3: 7 | AJ3: 8 | AK3: 9 | AL3: 10 | AM3: 11 | AN3: 12 | AO3: 13 | AP3: 14 | AQ3: 15 | AR3: 16 | AS3: 17 | AT3: 18 | AU3: 19 | AV3: 20 | AW3: 21 | AX3: 22 | AY3: 23 | AZ3: 24 | BA3: 25 | BB3: 26 | BD3: 01_ | BE3: Catchers | BF3: OBP | BG3: Runs | BH3: HRs | BI3: RBI | BJ3: SB | BK3: Hits | BL3: XBase Hits | BO3: L | BP3: M | BQ3: N | BR3: O | BS3: P | BT3: Q | BU3: R
B4: 01_001 | C4: 35 | D4: 3.11 | E4: Cal Raleigh | F4: SEA | G4: C | H4: 29 | I4: 16 | J4: 2.05 | K4: Fair Value in Rnd 3 | L4: 0.335 | M4: 86 | N4: 41 | O4: 101 | P4: 7 | Q4: 129 | R4: 66 | S4: 25.42 | T4: raleighcal_B | U4: =IF(RIGHT($T4,1)="B",ROUND(100*EXP((L4-BO$6)/BO$7)/(1+EXP((L4-BO$6)/BO$7)),0),ROUND(100*EXP((L4-BO$9)/BO$10)/(1+EXP((L4-BO$9)/BO$10)),0)) -> 63 | V4: =IF(RIGHT($T4,1)="B",ROUND(100*EXP((M4-BP$6)/BP$7)/(1+EXP((M4-BP$6)/BP$7)),0),ROUND(100*EXP((M4-BP$9)/BP$10)/(1+EXP((M4-BP$9)/BP$10)),0)) -> 77 | W4: =IF(RIGHT($T4,1)="B",ROUND(100*EXP((N4-BQ$6)/BQ$7)/(1+EXP((N4-BQ$6)/BQ$7)),0),ROUND(100*EXP((N4-BQ$9)/BQ$10)/(1+EXP((N4-BQ$9)/BQ$10)),0)) -> 96 | X4: =IF(RIGHT($T4,1)="B",ROUND(100*EXP((O4-BR$6)/BR$7)/(1+EXP((O4-BR$6)/BR$7)),0),ROUND(100*EXP((O4-BR$9)/BR$10)/(1+EXP((O4-BR$9)/BR$10)),0)) -> 90 | Y4: =IF(RIGHT($T4,1)="B",ROUND(100*EXP((P4-BS$6)/BS$7)/(1+EXP((P4-BS$6)/BS$7)),0),ROUND(100*EXP((P4-BS$9)/BS$10)/(1+EXP((P4-BS$9)/BS$10)),0)) -> 38 | Z4: =IF(RIGHT($T4,1)="B",ROUND(100*EXP((Q4-BT$6)/BT$7)/(1+EXP((Q4-BT$6)/BT$7)),0),ROUND(100*EXP((Q4-BT$9)/BT$10)/(1+EXP((Q4-BT$9)/BT$10)),0)) -> 58 | AA4: =IF(RIGHT($T4,1)="B",ROUND(100*EXP((R4-BU$6)/BU$7)/(1+EXP((R4-BU$6)/BU$7)),0),ROUND(100*EXP((R4-BU$9)/BU$10)/(1+EXP((R4-BU$9)/BU$10)),0)) -> 84 | AB4: 1 | AC4: =$AC$1&TEXT($AB4,"000") -> 99_001 | AD4: =IF(ISNA(VLOOKUP($AC4,RankData,AD$3,FALSE)),"",VLOOKUP($AC4,RankData,AD$3,FALSE)) -> 1 | AE4: =IF(ISNA(VLOOKUP($AC4,RankData,AE$3,FALSE)),"",VLOOKUP($AC4,RankData,AE$3,FALSE)) -> 1.01 | AF4: Ronald Acuna | AG4: ATL | AH4: OF | AI4: 28 | AJ4: 7 | AK4: 1.08 | AL4: Good Value in Rnd 1 | AM4: 0.397 | AN4: =IF(ISNA(VLOOKUP($AC4,RankData,AN$3,FALSE)),"",VLOOKUP($AC4,RankData,AN$3,FALSE)) -> 120 | AO4: 34 | AP4: 83 | AQ4: 35 | AR4: 178 | AS4: 69 | AT4: 54.2 | AU4: acunaronald_B | AV4: 96 | AW4: 96 | AX4: 91 | AY4: 77 | AZ4: 90 | BA4: 89 | BB4: 87 | BD4: 02_ | BE4: 1st Baseman | BF4: OBP | BG4: Runs | BH4: HRs | BI4: RBI | BJ4: SB | BK4: Hits | BL4: XBase Hits | BO4: Means/STD
B5: 01_002 | C5: 52 | D5: 5.04 | E5: Ben Rice | F5: NYY | G5: C,1B | H5: 27 | I5: 59 | J5: 5.12 | K5: Good Value in Rnd 5 | L5: 0.337 | M5: 77 | N5: 27 | O5: 77 | P5: 8 | Q5: 114 | R5: 51 | S5: 20.48 | T5: riceben_B | U5: =IF(RIGHT($T5,1)="B",ROUND(100*EXP((L5-BO$6)/BO$7)/(1+EXP((L5-BO$6)/BO$7)),0),ROUND(100*EXP((L5-BO$9)/BO$10)/(1+EXP((L5-BO$9)/BO$10)),0)) -> 65 | V5: =IF(RIGHT($T5,1)="B",ROUND(100*EXP((M5-BP$6)/BP$7)/(1+EXP((M5-BP$6)/BP$7)),0),ROUND(100*EXP((M5-BP$9)/BP$10)/(1+EXP((M5-BP$9)/BP$10)),0)) -> 67 | W5: =IF(RIGHT($T5,1)="B",ROUND(100*EXP((N5-BQ$6)/BQ$7)/(1+EXP((N5-BQ$6)/BQ$7)),0),ROUND(100*EXP((N5-BQ$9)/BQ$10)/(1+EXP((N5-BQ$9)/BQ$10)),0)) -> 80 | X5: =IF(RIGHT($T5,1)="B",ROUND(100*EXP((O5-BR$6)/BR$7)/(1+EXP((O5-BR$6)/BR$7)),0),ROUND(100*EXP((O5-BR$9)/BR$10)/(1+EXP((O5-BR$9)/BR$10)),0)) -> 71 | Y5: =IF(RIGHT($T5,1)="B",ROUND(100*EXP((P5-BS$6)/BS$7)/(1+EXP((P5-BS$6)/BS$7)),0),ROUND(100*EXP((P5-BS$9)/BS$10)/(1+EXP((P5-BS$9)/BS$10)),0)) -> 40 | Z5: =IF(RIGHT($T5,1)="B",ROUND(100*EXP((Q5-BT$6)/BT$7)/(1+EXP((Q5-BT$6)/BT$7)),0),ROUND(100*EXP((Q5-BT$9)/BT$10)/(1+EXP((Q5-BT$9)/BT$10)),0)) -> 45 | AA5: =IF(RIGHT($T5,1)="B",ROUND(100*EXP((R5-BU$6)/BU$7)/(1+EXP((R5-BU$6)/BU$7)),0),ROUND(100*EXP((R5-BU$9)/BU$10)/(1+EXP((R5-BU$9)/BU$10)),0)) -> 63 | AB5: 2 | AC5: =$AC$1&TEXT($AB5,"000") -> 99_002 | AD5: 2 | AE5: 1.02 | AF5: Juan Soto | AG5: NYM | AH5: OF | AI5: 27 | AJ5: 4 | AK5: 1.05 | AL5: Good Value in Rnd 1 | AM5: 0.43 | AN5: 113 | AO5: 37 | AP5: 102 | AQ5: 17 | AR5: 159 | AS5: 67 | AT5: 52.66 | AU5: sotojuan_B | AV5: 99 | AW5: 94 | AX5: 93 | AY5: 91 | AZ5: 61 | BA5: 80 | BB5: 85 | BD5: 03_ | BE5: 2nd Baseman | BF5: OBP | BG5: Runs | BH5: HRs | BI5: RBI | BJ5: SB | BK5: Hits | BL5: XBase Hits | BO5: OBP | BP5: Runs | BQ5: HRs | BR5: RBI | BS5: SB | BT5: Hits | BU5: Xhits | BW5: =COUNTIFS(B4:B10146,"*0*_*",B4:B10146,"<>") -> 988 | BX5: Position Players in Column B
B6: 01_003 | C6: 56 | D6: 5.08 | E6: Hunter Goodman | F6: COL | G6: C | H6: 27 | I6: 75 | J6: 7.04 | K6: Rnd 7 ADP Bargain | L6: 0.309 | M6: 79 | N6: 33 | O6: 103 | P6: 3 | Q6: 140 | R6: 70 | S6: 18.14 | T6: goodmanhunter_B | U6: 37 | V6: 69 | W6: 89 | X6: 91 | Y6: 29 | Z6: 67 | AA6: 88 | AB6: 3 | AC6: 99_003 | AD6: 3 | AE6: 1.03 | AF6: Shohei Ohtani | AG6: LAD | AH6: DH,SP | AI6: 32 | AJ6: 1 | AK6: 1.02 | AL6: Good Value in Rnd 1 | AM6: 0.394 | AN6: 116 | AO6: 45 | AP6: 105 | AQ6: 25 | AR6: 163 | AS6: 80 | AT6: 50.94 | AU6: ohtanishohei_B | AV6: 95 | AW6: 95 | AX6: 98 | AY6: 92 | AZ6: 77 | BA6: 82 | BB6: 94 | BD6: 04_ | BE6: 3rd Baseman | BF6: OBP | BG6: Runs | BH6: HRs | BI6: RBI | BJ6: SB | BK6: Hits | BL6: XBase Hits | BN6: Mean | BO6: =SUMIF(B4:B10146,"*98_*",L4:L10146)/COUNTIF(B4:B10146,"*98_*") -> 0.3216615087 | BP6: =SUMIF(B4:B10146,"*98_*",M4:M10146)/COUNTIF(B4:B10146,"*98_*") -> 64.90909091 | BQ6: =SUMIF(B4:B10146,"*98_*",N4:N10146)/COUNTIF(B4:B10146,"*98_*") -> 16.21083172 | BR6: =SUMIF(B4:B10146,"*98_*",O4:O10146)/COUNTIF(B4:B10146,"*98_*") -> 60.67891683 | BS6: =SUMIF(B4:B10146,"*98_*",P4:P10146)/COUNTIF(B4:B10146,"*98_*") -> 12.30367505 | BT6: =SUMIF(B4:B10146,"*98_*",Q4:Q10146)/COUNTIF(B4:B10146,"*98_*") -> 119.8742747 | BU6: =SUMIF(B4:B10146,"*98_*",R4:R10146)/COUNTIF(B4:B10146,"*98_*") -> 44.22630561 | BW6: =COUNTIFS(B5:B10146,"97_*",B5:B10146,"<>") -> 387 | BX6: Players in Column B with 97 code (Pitchers)
B7: 01_004 | C7: 65 | D7: 6.05 | E7: William Contreras | F7: MIL | G7: C | H7: 28 | I7: 52 | J7: 5.05 | K7: Fair Value in Rnd 6 | L7: 0.361 | M7: 88 | N7: 22 | O7: 82 | P7: 6 | Q7: 158 | R7: 56 | S7: 16.64 | T7: contreraswilliam_B | U7: 83 | V7: 79 | W7: 68 | X7: 76 | Y7: 35 | Z7: 80 | AA7: 71 | AB7: 4 | AC7: 99_004 | AD7: 4 | AE7: 1.04 | AF7: Aaron Judge | AG7: NYY | AH7: OF | AI7: 34 | AJ7: 2 | AK7: 1.03 | AL7: Good Value in Rnd 1 | AM7: 0.434 | AN7: 122 | AO7: 51 | AP7: 115 | AQ7: 9 | AR7: 168 | AS7: 81 | AT7: 48.4 | AU7: judgeaaron_B | AV7: 99 | AW7: 97 | AX7: 99 | AY7: 95 | AZ7: 42 | BA7: 85 | BB7: 94 | BD7: 05_ | BE7: Short Stops | BF7: OBP | BG7: Runs | BH7: HRs | BI7: RBI | BJ7: SB | BK7: Hits | BL7: XBase Hits | BN7: STD | BO7: =_xlfn.STDEV.P(INDIRECT(BO$3&$BW$10&":"&BO$3&$BW$11)) -> 0.02458065176 | BP7: 17.21244699 | BQ7: 7.852856093 | BR7: 18.23491137 | BS7: 10.52705118 | BT7: 27.88685442 | BU7: 13.035773 | BW7: =COUNTIFS(B6:B10146,"98_*",B6:B10146,"<>") -> 517 | BX7: Players in Column B with 98 code (Hitters)
B8: 01_005 | C8: 70 | D8: 6.10 | E8: Agustin Ramirez | F8: MIA | G8: C | H8: 25 | I8: 95 | J8: 8.12 | K8: Rnd 8 ADP Bargain | L8: 0.307 | M8: 79 | N8: 21 | O8: 83 | P8: 18 | Q8: 134 | R8: 58 | S8: 15.34 | T8: ramirezagustin_B | U8: 36 | V8: 69 | W8: 65 | X8: 77 | Y8: 63 | Z8: 62 | AA8: 74 | AB8: 5 | AC8: 99_005 | AD8: 5 | AE8: 1.05 | AF8: Bobby Witt | AG8: KCR | AH8: SS | AI8: 26 | AJ8: 3 | AK8: 1.04 | AL8: Good Value in Rnd 1 | AM8: 0.348 | AN8: 103 | AO8: 28 | AP8: 96 | AQ8: 37 | AR8: 179 | AS8: 75 | AT8: 47.48 | AU8: wittbobby_B | AV8: 74 | AW8: 90 | AX8: 82 | AY8: 87 | AZ8: 91 | BA8: 89 | BB8: 91 | BD8: 06_ | BE8: Outfielders | BF8: OBP | BG8: Runs | BH8: HRs | BI8: RBI | BJ8: SB | BK8: Hits | BL8: XBase Hits | BO8: Wins | BP8: Saves | BQ8: K9 | BR8: ERA | BS8: WHIP | BT8: Holds | BU8: Velocity | BW8: =BW5+4 -> 992 | BX8: Row Beginning 97
B9: 01_006 | C9: 74 | D9: 7.02 | E9: Salvador Perez | F9: KCR | G9: C,1B | H9: 36 | I9: 97 | J9: 9.02 | K9: Rnd 9 ADP Bargain | L9: 0.304 | M9: 65 | N9: 32 | O9: 99 | P9: 1 | Q9: 157 | R9: 63 | S9: 14.54 | T9: perezsalvador_B | U9: 33 | V9: 50 | W9: 88 | X9: 89 | Y9: 25 | Z9: 79 | AA9: 81 | AB9: 6 | AC9: 99_006 | AD9: 6 | AE9: 1.06 | AF9: Nick Kurtz | AG9: ATH | AH9: 1B | AI9: 23 | AJ9: 22 | AK9: 2.11 | AL9: Rnd 2 ADP Bargain | AM9: 0.396 | AN9: 117 | AO9: 46 | AP9: 119 | AQ9: 3 | AR9: 168 | AS9: 88 | AT9: 46.72 | AU9: kurtznick_B | AV9: 95 | AW9: 95 | AX9: 98 | AY9: 96 | AZ9: 29 | BA9: 85 | BB9: 97 | BD9: 07_ | BE9: Designated Hitters | BF9: OBP | BG9: Runs | BH9: HRs | BI9: RBI | BJ9: SB | BK9: Hits | BL9: XBase Hits | BN9: Mean | BO9: =SUMIF(B4:B10146,"*97_*",L4:L10146)/COUNTIF(B4:B10146,"*97_*") -> 7.547803618 | BP9: =SUMIF(B4:B10146,"*97_*",M4:M10146)/COUNTIF(B4:B10146,"*97_*") -> 2.826873385 | BQ9: =SUMIF(B4:B10146,"*97_*",N4:N10146)/COUNTIF(B4:B10146,"*97_*") -> 9.634366925 | BR9: =SUMIF(B4:B10146,"*97_*",O4:O10146)/COUNTIF(B4:B10146,"*97_*") -> 3.772144703 | BS9: =SUMIF(B4:B10146,"*97_*",P4:P10146)/COUNTIF(B4:B10146,"*97_*") -> 1.24129199 | BT9: =SUMIF(B4:B10146,"*97_*",Q4:Q10146)/COUNTIF(B4:B10146,"*97_*") -> 4.891472868 | BU9: =SUMIF(B4:B10146,"*97_*",R4:R10146)/COUNTIF(B4:B10146,"*97_*") -> 94.97932817 | BW9: =BW8+BW6-1 -> 1378 | BX9: End Beginning 97
B10: 01_007 | C10: 80 | D10: 7.08 | E10: Shea Langeliers | F10: ATH | G10: C | H10: 28 | I10: 62 | J10: 6.03 | K10: Fair Value in Rnd 7 | L10: 0.314 | M10: 76 | N10: 31 | O10: 82 | P10: 5 | Q10: 134 | R10: 60 | S10: 13.56 | T10: langeliersshea_B | U10: 42 | V10: 66 | W10: 87 | X10: 76 | Y10: 33 | Z10: 62 | AA10: 77 | AB10: 7 | AC10: 99_007 | AD10: 7 | AE10: 1.07 | AF10: Fernando Tatis | AG10: SDP | AH10: OF | AI10: 27 | AJ10: 14 | AK10: 2.03 | AL10: Rnd 2 ADP Bargain | AM10: 0.367 | AN10: 112 | AO10: 35 | AP10: 91 | AQ10: 29 | AR10: 172 | AS10: 73 | AT10: 46.54 | AU10: tatisfernando_B | AV10: 86 | AW10: 94 | AX10: 92 | AY10: 84 | AZ10: 83 | BA10: 87 | BB10: 90 | BD10: 08_ | BE10: Starting Pitchers | BF10: Wins | BG10: Saves | BH10: K9 | BI10: ERA | BJ10: WHIP | BK10: Holds | BL10: Velocity | BN10: STD | BO10: =_xlfn.STDEV.P(INDIRECT(BO$3&$BW$8&":"&BO$3&$BW$9)) -> 3.722223792 | BP10: 5.493101268 | BQ10: 1.293546814 | BR10: 0.5580478152 | BS10: 0.1080141871 | BT10: 5.780534443 | BU10: 2.139715879 | BW10: =BW8+BW6 -> 1379 | BX10: Row Beginning 98
B11: 01_008 | C11: 83 | D11: 7.11 | E11: Will Smith | F11: LAD | G11: C | H11: 31 | I11: 106 | J11: 9.11 | K11: Rnd 9 ADP Bargain | L11: 0.368 | M11: 86 | N11: 26 | O11: 90 | P11: 3 | Q11: 146 | R11: 59 | S11: 13.14 | T11: smithwill_B | U11: 87 | V11: 77 | W11: 78 | X11: 83 | Y11: 29 | Z11: 72 | AA11: 76 | AB11: 8 | AC11: 99_008 | AD11: 8 | AE11: 1.08 | AF11: Kyle Tucker | AG11: LAD | AH11: OF | AI11: 29 | AJ11: 12 | AK11: 2.01 | AL11: Rnd 2 ADP Bargain | AM11: 0.375 | AN11: 95 | AO11: 30 | AP11: 97 | AQ11: 25 | AR11: 156 | AS11: 68 | AT11: 46.54 | AU11: tuckerkyle_B | AV11: 90 | AW11: 85 | AX11: 85 | AY11: 88 | AZ11: 77 | BA11: 79 | BB11: 86 | BD11: 09_ | BE11: Relief Pitchers | BF11: Wins | BG11: Saves | BH11: K9 | BI11: ERA | BJ11: WHIP | BK11: Holds | BL11: Velocity | BW11: =BW10+BW7-1 -> 1895 | BX11: End Beginning 98
B12: 01_009 | C12: 128 | D12: 11.08 | E12: Yainer Diaz | F12: HOU | G12: C | H12: 27 | I12: 144 | J12: 13.01 | K12: Rnd 13 ADP Bargain | L12: 0.315 | M12: 72 | N12: 24 | O12: 92 | P12: 2 | Q12: 167 | R12: 58 | S12: 8.2 | T12: diazyainer_B | U12: 43 | V12: 60 | W12: 73 | X12: 85 | Y12: 27 | Z12: 84 | AA12: 74 | AB12: 9 | AC12: 99_009 | AD12: 9 | AE12: 1.09 | AF12: Julio Rodriguez | AG12: SEA | AH12: OF | AI12: 25 | AJ12: 10 | AK12: 1.11 | AL12: Good Value in Rnd 1 | AM12: 0.342 | AN12: 102 | AO12: 29 | AP12: 92 | AQ12: 31 | AR12: 178 | AS12: 62 | AT12: 45.54 | AU12: rodriguezjulio_B | AV12: 70 | AW12: 90 | AX12: 84 | AY12: 85 | AZ12: 86 | BA12: 89 | BB12: 80 | BD12: 97_ | BE12: All Pitchers | BF12: Wins | BG12: Saves | BH12: K9 | BI12: ERA | BJ12: WHIP | BK12: Holds | BL12: Velocity
B13: 01_010 | C13: 134 | D13: 12.02 | E13: Drake Baldwin | F13: ATL | G13: C | H13: 25 | I13: 99 | J13: 9.04 | K13: Rnd 9 ADP Bust | L13: 0.337 | M13: 68 | N13: 19 | O13: 85 | P13: 1 | Q13: 136 | R13: 45 | S13: 7.86 | T13: baldwindrake_B | U13: 65 | V13: 54 | W13: 59 | X13: 79 | Y13: 25 | Z13: 64 | AA13: 51 | AB13: 10 | AC13: 99_010 | AD13: 10 | AE13: 1.10 | AF13: Corbin Carroll | AG13: ARI | AH13: OF | AI13: 26 | AJ13: 13 | AK13: 2.02 | AL13: Rnd 2 ADP Bargain | AM13: 0.356 | AN13: 115 | AO13: 28 | AP13: 83 | AQ13: 39 | AR13: 155 | AS13: 73 | AT13: 44.28 | AU13: carrollcorbin_B | AV13: 80 | AW13: 95 | AX13: 82 | AY13: 77 | AZ13: 93 | BA13: 78 | BB13: 90 | BD13: 98_ | BE13: All Hitters | BF13: OBP | BG13: Runs | BH13: HRs | BI13: RBI | BJ13: SB | BK13: Hits | BL13: XBase Hits
B14: 01_011 | C14: 171 | D14: 15.03 | E14: Alejandro Kirk | F14: TOR | G14: C | H14: 27 | I14: 179 | J14: 15.12 | K14: Good Value in Rnd 15 | L14: 0.356 | M14: 51 | N14: 15 | O14: 74 | P14: 0 | Q14: 139 | R14: 38 | S14: 3.96 | T14: kirkalejandro_B | U14: 80 | V14: 31 | W14: 46 | X14: 67 | Y14: 24 | Z14: 67 | AA14: 38 | AB14: 11 | AC14: 99_011 | AD14: =IF(ISNA(VLOOKUP($AC14,RankData,AD$3,FALSE)),"",VLOOKUP($AC14,RankData,AD$3,FALSE)) -> 11 | AE14: 1.11 | AF14: Jose Ramirez | AG14: CLE | AH14: 3B | AI14: 33 | AJ14: 5 | AK14: 1.06 | AL14: Good Value in Rnd 1 | AM14: 0.368 | AN14: =IF(ISNA(VLOOKUP($AC14,RankData,AN$3,FALSE)),"",VLOOKUP($AC14,RankData,AN$3,FALSE)) -> 101 | AO14: 30 | AP14: 96 | AQ14: 32 | AR14: 170 | AS14: 75 | AT14: 43.08 | AU14: ramirezjose_B | AV14: 87 | AW14: 89 | AX14: 85 | AY14: 87 | AZ14: 87 | BA14: 86 | BB14: 91 | BD14: 99_ | BE14: All Players | BF14: OBP / Wins | BG14: Runs / Saves | BH14: HRs / K9 | BI14: RBI / ERA | BJ14: SB / WHIP | BK14: Hits / Holds | BL14: XHits / Velocity
B15: 01_012 | C15: 223 | D15: 19.07 | E15: Francisco Alvarez | F15: NYM | G15: C | H15: 24 | I15: 216 | J15: 19.01 | K15: Good Value in Rnd 19 | L15: 0.32 | M15: 68 | N15: 26 | O15: 76 | P15: 2 | Q15: 118 | R15: 53 | S15: 3.22 | T15: alvarezfrancisco_B | U15: 48 | V15: 54 | W15: 78 | X15: 70 | Y15: 27 | Z15: 48 | AA15: 66 | AB15: 12 | AC15: 99_012 | AD15: 12 | AE15: 1.12 | AF15: Elly DeLaCruz | AG15: CIN | AH15: SS | AI15: 24 | AJ15: 9 | AK15: 1.10 | AL15: Good Value in Rnd 1 | AM15: 0.332 | AN15: 100 | AO15: 25 | AP15: 86 | AQ15: 46 | AR15: 159 | AS15: 69 | AT15: 41.42 | AU15: delacruzelly_B | AV15: 60 | AW15: 88 | AX15: 75 | AY15: 80 | AZ15: 96 | BA15: 80 | BB15: 87
B16: 01_013 | C16: 248 | D16: 21.08 | E16: Gabriel Moreno | F16: ARI | G16: C | H16: 26 | I16: 218 | J16: 19.03 | K16: Rnd 19 ADP Bust | L16: 0.36 | M16: 66 | N16: 12 | O16: 75 | P16: 6 | Q16: 149 | R16: 43 | S16: 3.18 | T16: morenogabriel_B | U16: 83 | V16: 52 | W16: 37 | X16: 69 | Y16: 35 | Z16: 74 | AA16: 48 | AB16: 13 | AC16: 99_013 | AD16: 13 | AE16: 2.01 | AF16: Vladimir Guerrero | AG16: TOR | AH16: 1B | AI16: 27 | AJ16: 18 | AK16: 2.07 | AL16: Good Value in Rnd 2 | AM16: 0.379 | AN16: 94 | AO16: 29 | AP16: 96 | AQ16: 4 | AR16: 177 | AS16: 66 | AT16: 39.16 | AU16: guerrerovladimir_B | AV16: 91 | AW16: 84 | AX16: 84 | AY16: 87 | AZ16: 31 | BA16: 89 | BB16: 84
B17: 01_014 | C17: 263 | D17: 22.11 | E17: Samuel Basallo | F17: BAL | G17: C | H17: 22 | I17: 208 | J17: 18.05 | K17: Rnd 18 ADP Bust | L17: 0.302 | M17: 59 | N17: 19 | O17: 68 | P17: 6 | Q17: 120 | R17: 48 | S17: 3.08 | T17: basallosamuel_B | U17: 31 | V17: 42 | W17: 59 | X17: 60 | Y17: 35 | Z17: 50 | AA17: 57 | AB17: 14 | AC17: 99_014 | AD17: 14 | AE17: 2.02 | AF17: Gunnar Henderson | AG17: BAL | AH17: SS | AI17: 25 | AJ17: 15 | AK17: 2.04 | AL17: Good Value in Rnd 2 | AM17: 0.349 | AN17: 99 | AO17: 25 | AP17: 85 | AQ17: 22 | AR17: 154 | AS17: 65 | AT17: 38.06 | AU17: hendersongunnar_B | AV17: 75 | AW17: 88 | AX17: 75 | AY17: 79 | AZ17: 72 | BA17: 77 | BB17: 83 | BE17: ="Selection= "&VLOOKUP(AC1,Labels,2) -> Selection= All Players
B18: 01_015 | C18: 286 | D18: 24.10 | E18: Adley Rutschman | F18: BAL | G18: C | H18: 28 | I18: 155 | J18: 13.12 | K18: Rnd 13 ADP Bust | L18: 0.347 | M18: 76 | N18: 18 | O18: 67 | P18: 2 | Q18: 147 | R18: 54 | S18: 3.02 | T18: rutschmanadley_B | U18: 74 | V18: 66 | W18: 56 | X18: 59 | Y18: 27 | Z18: 73 | AA18: 68 | AB18: 15 | AC18: 99_015 | AD18: 15 | AE18: 2.03 | AF18: Pete Alonso | AG18: BAL | AH18: 1B | AI18: 31 | AJ18: 26 | AK18: 3.03 | AL18: Rnd 3 ADP Bargain | AM18: 0.346 | AN18: 91 | AO18: 41 | AP18: 113 | AQ18: 3 | AR18: 151 | AS18: 72 | AT18: 36.48 | AU18: alonsopete_B | AV18: 73 | AW18: 82 | AX18: 96 | AY18: 95 | AZ18: 29 | BA18: 75 | BB18: 89
B19: 01_016 | C19: 288 | D19: 24.12 | E19: Carter Jensen | F19: KCR | G19: C | H19: 23 | I19: 227 | J19: 19.12 | K19: Rnd 19 ADP Bust | L19: 0.331 | M19: 58 | N19: 13 | O19: 53 | P19: 10 | Q19: 107 | R19: 42 | S19: 3.02 | T19: jensencarter_B | U19: 59 | V19: 40 | W19: 40 | X19: 40 | Y19: 45 | Z19: 39 | AA19: 46 | AB19: 16 | AC19: 99_016 | AD19: 16 | AE19: 2.04 | AF19: Junior Caminero | AG19: TBR | AH19: 3B | AI19: 23 | AJ19: 17 | AK19: 2.06 | AL19: Good Value in Rnd 2 | AM19: 0.325 | AN19: 87 | AO19: 36 | AP19: 104 | AQ19: 8 | AR19: 158 | AS19: 61 | AT19: 35.38 | AU19: caminerojunior_B | AV19: 53 | AW19: 78 | AX19: 93 | AY19: 91 | AZ19: 40 | BA19: 80 | BB19: 78
B20: 01_017 | C20: 298 | D20: 25.10 | E20: JT Realmuto | F20: PHI | G20: C | H20: 35 | I20: 232 | J20: 20.05 | K20: Rnd 20 ADP Bust | L20: 0.332 | M20: 77 | N20: 20 | O20: 74 | P20: 11 | Q20: 161 | R20: 59 | S20: 3.08 | T20: realmutojt_B | U20: 60 | V20: 67 | W20: 62 | X20: 67 | Y20: 47 | Z20: 81 | AA20: 76 | AB20: 17 | AC20: 99_017 | AD20: 17 | AE20: 2.05 | AF20: Yordan Alvarez | AG20: HOU | AH20: DH | AI20: 29 | AJ20: 28 | AK20: 3.05 | AL20: Rnd 3 ADP Bargain | AM20: 0.395 | AN20: 89 | AO20: 35 | AP20: 103 | AQ20: 2 | AR20: 172 | AS20: 79 | AT20: 34.86 | AU20: alvarezyordan_B | AV20: 95 | AW20: 80 | AX20: 92 | AY20: 91 | AZ20: 27 | BA20: 87 | BB20: 94
B21: 01_018 | C21: 344 | D21: 29.08 | E21: Austin Wells | F21: NYY | G21: C | H21: 27 | I21: 257 | J21: 22.06 | K21: Rnd 22 ADP Bust | L21: 0.312 | M21: 70 | N21: 23 | O21: 86 | P21: 10 | Q21: 122 | R21: 55 | S21: 2.86 | T21: wellsaustin_B | U21: 40 | V21: 57 | W21: 70 | X21: 80 | Y21: 45 | Z21: 52 | AA21: 70 | AB21: 18 | AC21: 99_018 | AD21: 18 | AE21: 2.06 | AF21: Francisco Lindor | AG21: NYM | AH21: SS | AI21: 32 | AJ21: 25 | AK21: 3.02 | AL21: Rnd 3 ADP Bargain | AM21: 0.35 | AN21: 107 | AO21: 30 | AP21: 88 | AQ21: 24 | AR21: 172 | AS21: 68 | AT21: 33.78 | AU21: lindorfrancisco_B | AV21: 76 | AW21: 92 | AX21: 85 | AY21: 82 | AZ21: 75 | BA21: 87 | BB21: 86
B22: 01_019 | C22: 353 | D22: 30.05 | E22: Logan O'Hoppe | F22: LAA | G22: C | H22: 26 | I22: 249 | J22: 21.10 | K22: Rnd 21 ADP Bust | L22: 0.301 | M22: 64 | N22: 25 | O22: 69 | P22: 4 | Q22: 132 | R22: 47 | S22: 2.88 | T22: o'hoppelogan_B | U22: 30 | V22: 49 | W22: 75 | X22: 61 | Y22: 31 | Z22: 61 | AA22: 55 | AB22: 19 | AC22: 99_019 | AD22: 19 | AE22: 2.07 | AF22: Jazz Chisholm | AG22: NYY | AH22: 2B,3B | AI22: 28 | AJ22: 21 | AK22: 2.10 | AL22: Good Value in Rnd 2 | AM22: 0.331 | AN22: 85 | AO22: 29 | AP22: 84 | AQ22: 35 | AR22: 144 | AS22: 56 | AT22: 32.16 | AU22: chisholmjazz_B | AV22: 59 | AW22: 76 | AX22: 84 | AY22: 78 | AZ22: 90 | BA22: 70 | BB22: 71
B23: 01_020 | C23: 387 | D23: 33.03 | E23: Ryan Jeffers | F23: MIN | G23: C | H23: 29 | I23: 288 | J23: 25.01 | K23: Rnd 25 ADP Bust | L23: 0.324 | M23: 62 | N23: 20 | O23: 67 | P23: 2 | Q23: 121 | R23: 48 | S23: 2.88 | T23: jeffersryan_B | U23: 52 | V23: 46 | W23: 62 | X23: 59 | Y23: 27 | Z23: 51 | AA23: 57 | AB23: 20 | AC23: 99_020 | AD23: 20 | AE23: 2.08 | AF23: Yoshinobu Yamamoto | AG23: LAD | AH23: SP | AI23: 28 | AJ23: 24 | AK23: 3.01 | AL23: Rnd 3 ADP Bargain | AM23: 18 | AN23: 0 | AO23: 10.4 | AP23: 2.76 | AQ23: 1.04 | AR23: 0 | AS23: 95 | AT23: 31.88 | AU23: yamamotoyoshinobu_P | AV23: 94 | AW23: 37 | AX23: 64 | AY23: 14 | AZ23: 13 | BA23: 30 | BB23: 50
B24: 01_021 | C24: 410 | D24: 35.02 | E24: Tyler Stephenson | F24: CIN | G24: C | H24: 29 | I24: 279 | J24: 24.04 | K24: Rnd 24 ADP Bust | L24: 0.34 | M24: 66 | N24: 17 | O24: 68 | P24: 1 | Q24: 130 | R24: 46 | S24: 2.82 | T24: stephensontyler_B | U24: 68 | V24: 52 | W24: 53 | X24: 60 | Y24: 25 | Z24: 59 | AA24: 53 | AB24: 21 | AC24: 99_021 | AD24: =IF(ISNA(VLOOKUP($AC24,RankData,AD$3,FALSE)),"",VLOOKUP($AC24,RankData,AD$3,FALSE)) -> 21 | AE24: 2.09 | AF24: James Wood | AG24: WSN | AH24: OF | AI24: 24 | AJ24: 36 | AK24: 4.01 | AL24: Rnd 4 ADP Bargain | AM24: 0.354 | AN24: =IF(ISNA(VLOOKUP($AC24,RankData,AN$3,FALSE)),"",VLOOKUP($AC24,RankData,AN$3,FALSE)) -> 93 | AO24: 26 | AP24: 94 | AQ24: 22 | AR24: 151 | AS24: 64 | AT24: 31.86 | AU24: woodjames_B | AV24: 79 | AW24: 84 | AX24: 78 | AY24: 86 | AZ24: 72 | BA24: 75 | BB24: 82
B25: 01_022 | C25: 419 | D25: 35.11 | E25: Dillon Dingler | F25: DET | G25: C | H25: 28 | I25: 272 | J25: 23.09 | K25: Rnd 23 ADP Bust | L25: 0.298 | M25: 67 | N25: 18 | O25: 72 | P25: 3 | Q25: 129 | R25: 50 | S25: 2.78 | T25: dinglerdillon_B | U25: 28 | V25: 53 | W25: 56 | X25: 65 | Y25: 29 | Z25: 58 | AA25: 61 | AB25: 22 | AC25: 99_022 | AD25: 22 | AE25: 2.10 | AF25: Paul Skenes | AG25: PIT | AH25: SP | AI25: 24 | AJ25: 8 | AK25: 1.09 | AL25: Fair Value in Rnd 2 | AM25: 13 | AN25: 0 | AO25: 11.1 | AP25: 2.05 | AQ25: 0.96 | AR25: 0 | AS25: 98 | AT25: 31.18 | AU25: skenespaul_P | AV25: 81 | AW25: 37 | AX25: 76 | AY25: 4 | AZ25: 7 | BA25: 30 | BB25: 80
B26: 01_023 | C26: 428 | D26: 36.08 | E26: Luis Torrens | F26: NYM | G26: C | H26: 30 | I26: 728 | J26: 61.09 | K26: Rnd 61 ADP Bargain | L26: 0.298 | M26: 36 | N26: 11 | O26: 44 | P26: 1 | Q26: 83 | R26: 30 | S26: 2.82 | T26: torrensluis_B | U26: 28 | V26: 16 | W26: 34 | X26: 29 | Y26: 25 | Z26: 21 | AA26: 25 | AB26: 23 | AC26: 99_023 | AD26: 23 | AE26: 2.11 | AF26: Tarik Skubal | AG26: DET | AH26: SP | AI26: 29 | AJ26: 6 | AK26: 1.07 | AL26: Fair Value in Rnd 2 | AM26: 16 | AN26: 0 | AO26: 10.6 | AP26: 2.9 | AQ26: 1 | AR26: 0 | AS26: 96 | AT26: 29.34 | AU26: skubaltarik_P | AV26: 91 | AW26: 37 | AX26: 68 | AY26: 17 | AZ26: 10 | BA26: 30 | BB26: 62
B27: 01_024 | C27: 435 | D27: 37.03 | E27: Kyle Teel | F27: CHW | G27: C | H27: 24 | I27: 243 | J27: 21.04 | K27: Rnd 21 ADP Bust | L27: 0.355 | M27: 69 | N27: 13 | O27: 65 | P27: 9 | Q27: 123 | R27: 36 | S27: 2.72 | T27: teelkyle_B | U27: 80 | V27: 56 | W27: 40 | X27: 56 | Y27: 42 | Z27: 53 | AA27: 35 | AB27: 24 | AC27: 99_024 | AD27: 24 | AE27: 2.12 | AF27: Mason Miller | AG27: SDP | AH27: RP | AI27: 27 | AJ27: 39 | AK27: 4.04 | AL27: Rnd 4 ADP Bargain | AM27: 3 | AN27: 34 | AO27: 14.3 | AP27: 2.72 | AQ27: 0.93 | AR27: 6 | AS27: 100 | AT27: 28.78 | AU27: millermason_P | AV27: 23 | AW27: 100 | AX27: 97 | AY27: 13 | AZ27: 5 | BA27: 55 | BB27: 91
B28: 01_025 | C28: 487 | D28: 41.07 | E28: James McCann | F28: ARI | G28: C | H28: 36 | I28: 683 | J28: 57.12 | K28: Rnd 57 ADP Bargain | L28: 0.301 | M28: 45 | N28: 13 | O28: 52 | P28: 3 | Q28: 105 | R28: 34 | S28: 2.72 | T28: mccannjames_B | U28: 30 | V28: 24 | W28: 40 | X28: 38 | Y28: 29 | Z28: 37 | AA28: 31 | AB28: 25 | AC28: 99_025 | AD28: 25 | AE28: 3.01 | AF28: Bryce Harper | AG28: PHI | AH28: 1B | AI28: 33 | AJ28: 40 | AK28: 4.05 | AL28: Rnd 4 ADP Bargain | AM28: 0.397 | AN28: 98 | AO28: 32 | AP28: 97 | AQ28: 13 | AR28: 160 | AS28: 73 | AT28: 28.1 | AU28: harperbryce_B | AV28: 96 | AW28: 87 | AX28: 88 | AY28: 88 | AZ28: 52 | BA28: 81 | BB28: 90
B29: 01_026 | C29: 492 | D29: 41.12 | E29: Braxton Fulford | F29: COL | G29: C | H29: 27 | I29: 827 | J29: 69.12 | K29: Rnd 69 ADP Bargain | L29: 0.309 | M29: 63 | N29: 14 | O29: 52 | P29: 10 | Q29: 99 | R29: 40 | S29: 2.68 | T29: fulfordbraxton_B | U29: 37 | V29: 47 | W29: 43 | X29: 38 | Y29: 45 | Z29: 32 | AA29: 42 | AB29: 26 | AC29: 99_026 | AD29: 26 | AE29: 3.02 | AF29: Mookie Betts | AG29: LAD | AH29: SS | AI29: 34 | AJ29: 49 | AK29: 5.02 | AL29: Rnd 5 ADP Bargain | AM29: 0.377 | AN29: 118 | AO29: 30 | AP29: 94 | AQ29: 17 | AR29: 184 | AS29: 77 | AT29: 28.08 | AU29: bettsmookie_B | AV29: 90 | AW29: 96 | AX29: 85 | AY29: 86 | AZ29: 61 | BA29: 91 | BB29: 93
B30: 01_027 | C30: 493 | D30: 42.01 | E30: Yohel Pozo | F30: STL | G30: C | H30: 29 | I30: 868 | J30: 73.05 | K30: Rnd 73 ADP Bargain | L30: 0.3 | M30: 51 | N30: 16 | O30: 65 | P30: 2 | Q30: 126 | R30: 47 | S30: 2.68 | T30: pozoyohel_B | U30: 29 | V30: 31 | W30: 49 | X30: 56 | Y30: 27 | Z30: 55 | AA30: 55 | AB30: 27 | AC30: 99_027 | AD30: 27 | AE30: 3.03 | AF30: Kyle Schwarber | AG30: PHI | AH30: DH | AI30: 33 | AJ30: 19 | AK30: 2.08 | AL30: Fair Value in Rnd 3 | AM30: 0.362 | AN30: 100 | AO30: 44 | AP30: 102 | AQ30: 5 | AR30: 130 | AS30: 66 | AT30: 27.88 | AU30: schwarberkyle_B | AV30: 84 | AW30: 88 | AX30: 97 | AY30: 91 | AZ30: 33 | BA30: 59 | BB30: 84
B31: 01_028 | C31: 495 | D31: 42.03 | E31: Jose Trevino | F31: CIN | G31: C | H31: 33 | I31: 808 | J31: 68.05 | K31: Rnd 68 ADP Bargain | L31: 0.291 | M31: 41 | N31: 9 | O31: 41 | P31: 2 | Q31: 91 | R31: 28 | S31: 2.7 | T31: trevinojose_B | U31: 22 | V31: 20 | W31: 29 | X31: 25 | Y31: 27 | Z31: 26 | AA31: 22 | AB31: 28 | AC31: 99_028 | AD31: 28 | AE31: 3.04 | AF31: Garrett Crochet | AG31: BOS | AH31: SP | AI31: 27 | AJ31: 11 | AK31: 1.12 | AL31: Rnd 1 ADP Bust | AM31: 11 | AN31: 0 | AO31: 11.7 | AP31: 2.95 | AQ31: 1.09 | AR31: 4 | AS31: 97 | AT31: 27.74 | AU31: crochetgarrett_P | AV31: 72 | AW31: 37 | AX31: 83 | AY31: 19 | AZ31: 20 | BA31: 46 | BB31: 72
B32: 01_029 | C32: 498 | D32: 42.06 | E32: Travis d'Arnaud | F32: LAA | G32: C | H32: 37 | I32: 794 | J32: 67.03 | K32: Rnd 67 ADP Bargain | L32: 0.306 | M32: 49 | N32: 15 | O32: 57 | P32: 1 | Q32: 105 | R32: 40 | S32: 2.66 | T32: d'arnaudtravis_B | U32: 35 | V32: 28 | W32: 46 | X32: 45 | Y32: 25 | Z32: 37 | AA32: 42 | AB32: 29 | AC32: 99_029 | AD32: 29 | AE32: 3.05 | AF32: Logan Gilbert | AG32: SEA | AH32: SP | AI32: 29 | AJ32: 33 | AK32: 3.10 | AL32: Good Value in Rnd 3 | AM32: 16 | AN32: 0 | AO32: 9.8 | AP32: 3.53 | AQ32: 1.06 | AR32: 0 | AS32: 96 | AT32: 27.12 | AU32: gilbertlogan_P | AV32: 91 | AW32: 37 | AX32: 53 | AY32: 39 | AZ32: 16 | BA32: 30 | BB32: 62
B33: 01_030 | C33: 504 | D33: 42.12 | E33: Harry Ford | F33: WSN | G33: C | H33: 23 | I33: 476 | J33: 40.09 | K33: Rnd 40 ADP Bust | L33: 0.321 | M33: 53 | N33: 8 | O33: 42 | P33: 14 | Q33: 89 | R33: 31 | S33: 2.7 | T33: fordharry_B | U33: 49 | V33: 33 | W33: 26 | X33: 26 | Y33: 54 | Z33: 25 | AA33: 27 | AB33: 30 | AC33: 99_030 | AD33: 30 | AE33: 3.06 | AF33: Pete Crow-Armstrong | AG33: CHC | AH33: OF | AI33: 24 | AJ33: 32 | AK33: 3.09 | AL33: Good Value in Rnd 3 | AM33: 0.308 | AN33: 95 | AO33: 23 | AP33: 84 | AQ33: 39 | AR33: 145 | AS33: 60 | AT33: 26.08 | AU33: crow-armstrongpete_B | AV33: 36 | AW33: 85 | AX33: 70 | AY33: 78 | AZ33: 93 | BA33: 71 | BB33: 77
B34: 01_031 | C34: 508 | D34: 43.04 | E34: Hunter Feduccia | F34: TBR | G34: C | H34: 29 | I34: 814 | J34: 68.11 | K34: Rnd 68 ADP Bargain | L34: 0.323 | M34: 54 | N34: 11 | O34: 55 | P34: 2 | Q34: 95 | R34: 34 | S34: 2.66 | T34: feducciahunter_B | U34: 51 | V34: 35 | W34: 34 | X34: 42 | Y34: 27 | Z34: 29 | AA34: 31 | AB34: 31 | AC34: 99_031 | AD34: =IF(ISNA(VLOOKUP($AC34,RankData,AD$3,FALSE)),"",VLOOKUP($AC34,RankData,AD$3,FALSE)) -> 31 | AE34: 3.07 | AF34: Edwin Diaz | AG34: LAD | AH34: RP | AI34: 32 | AJ34: 41 | AK34: 4.06 | AL34: Rnd 4 ADP Bargain | AM34: 5 | AN34: =IF(ISNA(VLOOKUP($AC34,RankData,AN$3,FALSE)),"",VLOOKUP($AC34,RankData,AN$3,FALSE)) -> 36 | AO34: 14.1 | AP34: 2.71 | AQ34: 1.02 | AR34: 3 | AS34: 98 | AT34: 25.7 | AU34: diazedwin_P | AV34: 34 | AW34: 100 | AX34: 97 | AY34: 13 | AZ34: 11 | BA34: 42 | BB34: 80
B35: 01_032 | C35: 519 | D35: 44.03 | E35: Carlos Narvaez | F35: BOS | G35: C | H35: 27 | I35: 338 | J35: 29.03 | K35: Rnd 29 ADP Bust | L35: 0.311 | M35: 66 | N35: 16 | O35: 63 | P35: 6 | Q35: 111 | R35: 42 | S35: 2.62 | T35: narvaezcarlos_B | U35: 39 | V35: 52 | W35: 49 | X35: 53 | Y35: 35 | Z35: 42 | AA35: 46 | AB35: 32 | AC35: 99_032 | AD35: 32 | AE35: 3.08 | AF35: Ketel Marte | AG35: ARI | AH35: 2B | AI35: 32 | AJ35: 27 | AK35: 3.04 | AL35: Good Value in Rnd 3 | AM35: 0.367 | AN35: 90 | AO35: 24 | AP35: 78 | AQ35: 7 | AR35: 165 | AS35: 63 | AT35: 25.66 | AU35: marteketel_B | AV35: 86 | AW35: 81 | AX35: 73 | AY35: 72 | AZ35: 38 | BA35: 83 | BB35: 81
B36: 01_033 | C36: 539 | D36: 45.11 | E36: Edgar Quero | F36: CHW | G36: C | H36: 23 | I36: 365 | J36: 31.06 | K36: Rnd 31 ADP Bust | L36: 0.333 | M36: 62 | N36: 13 | O36: 70 | P36: 4 | Q36: 135 | R36: 43 | S36: 2.58 | T36: queroedgar_B | U36: 61 | V36: 46 | W36: 40 | X36: 63 | Y36: 31 | Z36: 63 | AA36: 48 | AB36: 33 | AC36: 99_033 | AD36: 33 | AE36: 3.09 | AF36: Cristopher Sanchez | AG36: PHI | AH36: SP | AI36: 29 | AJ36: 23 | AK36: 2.12 | AL36: Fair Value in Rnd 3 | AM36: 15 | AN36: 0 | AO36: 8.8 | AP36: 3.33 | AQ36: 1.19 | AR36: 0 | AS36: 94 | AT36: 25.54 | AU36: sanchezcristopher_P | AV36: 88 | AW36: 37 | AX36: 34 | AY36: 31 | AZ36: 38 | BA36: 30 | BB36: 39
B37: 01_034 | C37: 541 | D37: 46.01 | E37: Sean Murphy | F37: ATL | G37: C | H37: 32 | I37: 546 | J37: 46.07 | K37: Good Value in Rnd 46 | L37: 0.321 | M37: 55 | N37: 20 | O37: 60 | P37: 0 | Q37: 102 | R37: 46 | S37: 2.62 | T37: murphysean_B | U37: 49 | V37: 36 | W37: 62 | X37: 49 | Y37: 24 | Z37: 35 | AA37: 53 | AB37: 34 | AC37: 99_034 | AD37: 34 | AE37: 3.10 | AF37: Andres Munoz | AG37: SEA | AH37: RP | AI37: 27 | AJ37: 54 | AK37: 5.07 | AL37: Rnd 5 ADP Bargain | AM37: 4 | AN37: 24 | AO37: 12.2 | AP37: 2.41 | AQ37: 1.04 | AR37: 13 | AS37: 99 | AT37: 25.48 | AU37: munozandres_P | AV37: 28 | AW37: 98 | AX37: 88 | AY37: 8 | AZ37: 13 | BA37: 80 | BB37: 87
B38: 01_035 | C38: 545 | D38: 46.05 | E38: Jake Rogers | F38: DET | G38: C | H38: 31 | I38: 910 | J38: 76.11 | K38: Rnd 76 ADP Bargain | L38: 0.285 | M38: 49 | N38: 15 | O38: 46 | P38: 2 | Q38: 77 | R38: 35 | S38: 2.62 | T38: rogersjake_B | U38: 18 | V38: 28 | W38: 46 | X38: 31 | Y38: 27 | Z38: 18 | AA38: 33 | AB38: 35 | AC38: 99_035 | AD38: 35 | AE38: 3.11 | AF38: Cal Raleigh | AG38: SEA | AH38: C | AI38: 29 | AJ38: 16 | AK38: 2.05 | AL38: Fair Value in Rnd 3 | AM38: 0.335 | AN38: 86 | AO38: 41 | AP38: 101 | AQ38: 7 | AR38: 129 | AS38: 66 | AT38: 25.42 | AU38: raleighcal_B | AV38: 63 | AW38: 77 | AX38: 96 | AY38: 90 | AZ38: 38 | BA38: 58 | BB38: 84
B39: 01_036 | C39: 556 | D39: 47.04 | E39: Danny Jansen | F39: TEX | G39: C | H39: 31 | I39: 470 | J39: 40.03 | K39: Rnd 40 ADP Bust | L39: 0.315 | M39: 61 | N39: 21 | O39: 61 | P39: 0 | Q39: 105 | R39: 46 | S39: 2.62 | T39: jansendanny_B | U39: 43 | V39: 44 | W39: 65 | X39: 50 | Y39: 24 | Z39: 37 | AA39: 53 | AB39: 36 | AC39: 99_036 | AD39: 36 | AE39: 3.12 | AF39: Trea Turner | AG39: PHI | AH39: SS | AI39: 33 | AJ39: 30 | AK39: 3.07 | AL39: Good Value in Rnd 3 | AM39: 0.359 | AN39: 108 | AO39: 22 | AP39: 80 | AQ39: 38 | AR39: 197 | AS39: 66 | AT39: 24.52 | AU39: turnertrea_B | AV39: 82 | AW39: 92 | AX39: 68 | AY39: 74 | AZ39: 92 | BA39: 94 | BB39: 84
B40: 01_037 | C40: 573 | D40: 48.09 | E40: Keibert Ruiz | F40: WSN | G40: C | H40: 28 | I40: 551 | J40: 46.12 | K40: Rnd 46 ADP Bust | L40: 0.298 | M40: 53 | N40: 15 | O40: 64 | P40: 3 | Q40: 146 | R40: 48 | S40: 2.62 | T40: ruizkeibert_B | U40: 28 | V40: 33 | W40: 46 | X40: 55 | Y40: 29 | Z40: 72 | AA40: 57 | AB40: 37 | AC40: 99_037 | AD40: 37 | AE40: 4.01 | AF40: Hunter Brown | AG40: HOU | AH40: SP | AI40: 27 | AJ40: 34 | AK40: 3.11 | AL40: Fair Value in Rnd 4 | AM40: 16 | AN40: 0 | AO40: 10.1 | AP40: 3.32 | AQ40: 1.19 | AR40: 1 | AS40: 96 | AT40: 22.96 | AU40: brownhunter_P | AV40: 91 | AW40: 37 | AX40: 59 | AY40: 31 | AZ40: 38 | BA40: 34 | BB40: 62
B41: 01_038 | C41: 585 | D41: 49.09 | E41: Miguel Amaya | F41: CHC | G41: C | H41: 27 | I41: 572 | J41: 48.09 | K41: Fair Value in Rnd 49 | L41: 0.314 | M41: 38 | N41: 10 | O41: 51 | P41: 1 | Q41: 86 | R41: 31 | S41: 2.56 | T41: amayamiguel_B | U41: 42 | V41: 17 | W41: 31 | X41: 37 | Y41: 25 | Z41: 23 | AA41: 27 | AB41: 38 | AC41: 99_038 | AD41: 38 | AE41: 4.02 | AF41: Jackson Chourio | AG41: MIL | AH41: OF | AI41: 22 | AJ41: 20 | AK41: 2.09 | AL41: Rnd 2 ADP Bust | AM41: 0.316 | AN41: 93 | AO41: 23 | AP41: 89 | AQ41: 28 | AR41: 158 | AS41: 61 | AT41: 22.76 | AU41: chouriojackson_B | AV41: 44 | AW41: 84 | AX41: 70 | AY41: 83 | AZ41: 82 | BA41: 80 | BB41: 78
B42: 01_039 | C42: 591 | D42: 50.03 | E42: Bo Naylor | F42: CLE | G42: C | H42: 26 | I42: 414 | J42: 35.07 | K42: Rnd 35 ADP Bust | L42: 0.304 | M42: 59 | N42: 18 | O42: 59 | P42: 8 | Q42: 93 | R42: 42 | S42: 2.52 | T42: naylorbo_B | U42: 33 | V42: 42 | W42: 56 | X42: 48 | Y42: 40 | Z42: 28 | AA42: 46 | AB42: 39 | AC42: 99_039 | AD42: 39 | AE42: 4.03 | AF42: Matt Olson | AG42: ATL | AH42: 1B | AI42: 32 | AJ42: 38 | AK42: 4.03 | AL42: Good Value in Rnd 4 | AM42: 0.362 | AN42: 93 | AO42: 36 | AP42: 103 | AQ42: 1 | AR42: 151 | AS42: 71 | AT42: 22.44 | AU42: olsonmatt_B | AV42: 84 | AW42: 84 | AX42: 93 | AY42: 91 | AZ42: 25 | BA42: 75 | BB42: 89
B43: 01_040 | C43: 623 | D43: 52.11 | E43: Dalton Rushing | F43: LAD | G43: C | H43: 25 | I43: 579 | J43: 49.04 | K43: Rnd 49 ADP Bust | L43: 0.327 | M43: 55 | N43: 17 | O43: 61 | P43: 2 | Q43: 98 | R43: 42 | S43: 2.42 | T43: rushingdalton_B | U43: 55 | V43: 36 | W43: 53 | X43: 50 | Y43: 27 | Z43: 31 | AA43: 46 | AB43: 40 | AC43: 99_040 | AD43: 40 | AE43: 4.04 | AF43: Wyatt Langford | AG43: TEX | AH43: OF | AI43: 24 | AJ43: 45 | AK43: 4.10 | AL43: Good Value in Rnd 4 | AM43: 0.355 | AN43: 89 | AO43: 24 | AP43: 79 | AQ43: 25 | AR43: 150 | AS43: 60 | AT43: 22.4 | AU43: langfordwyatt_B | AV43: 80 | AW43: 80 | AX43: 73 | AY43: 73 | AZ43: 77 | BA43: 75 | BB43: 77
B44: 01_041 | C44: 638 | D44: 54.02 | E44: Joey Bart | F44: PIT | G44: C | H44: 29 | I44: 549 | J44: 46.10 | K44: Rnd 46 ADP Bust | L44: 0.317 | M44: 52 | N44: 12 | O44: 54 | P44: 1 | Q44: 119 | R44: 36 | S44: 2.46 | T44: bartjoey_B | U44: 45 | V44: 32 | W44: 37 | X44: 41 | Y44: 25 | Z44: 49 | AA44: 35 | AB44: 41 | AC44: 99_041 | AD44: =IF(ISNA(VLOOKUP($AC44,RankData,AD$3,FALSE)),"",VLOOKUP($AC44,RankData,AD$3,FALSE)) -> 41 | AE44: 4.05 | AF44: Brent Rooker | AG44: ATH | AH44: OF | AI44: 31 | AJ44: 37 | AK44: 4.02 | AL44: Good Value in Rnd 4 | AM44: 0.341 | AN44: =IF(ISNA(VLOOKUP($AC44,RankData,AN$3,FALSE)),"",VLOOKUP($AC44,RankData,AN$3,FALSE)) -> 87 | AO44: 35 | AP44: 97 | AQ44: 6 | AR44: 144 | AS44: 68 | AT44: 21.92 | AU44: rookerbrent_B | AV44: 69 | AW44: 78 | AX44: 92 | AY44: 88 | AZ44: 35 | BA44: 70 | BB44: 86
B45: 01_042 | C45: 645 | D45: 54.09 | E45: Liam Hicks | F45: MIA | G45: C,1B | H45: 27 | I45: 632 | J45: 53.09 | K45: Waiver Wire | L45: 0.339 | M45: 45 | N45: 6 | O45: 47 | P45: 4 | Q45: 94 | R45: 23 | S45: 2.46 | T45: hicksliam_B | U45: 67 | V45: 24 | W45: 21 | X45: 32 | Y45: 31 | Z45: 28 | AA45: 16 | AB45: 42 | AC45: 99_042 | AD45: 42 | AE45: 4.06 | AF45: Rafael Devers | AG45: SFG | AH45: 1B | AI45: 29 | AJ45: 51 | AK45: 5.04 | AL45: Rnd 5 ADP Bargain | AM45: 0.363 | AN45: 99 | AO45: 33 | AP45: 104 | AQ45: 4 | AR45: 170 | AS45: 75 | AT45: 21.8 | AU45: deversrafael_B | AV45: 84 | AW45: 88 | AX45: 89 | AY45: 91 | AZ45: 31 | BA45: 86 | BB45: 91
B46: 01_043 | C46: 666 | D46: 56.06 | E46: Carson Kelly | F46: CHC | G46: C | H46: 32 | I46: 383 | J46: 32.12 | K46: Rnd 32 ADP Bust | L46: 0.323 | M46: 55 | N46: 16 | O46: 58 | P46: 1 | Q46: 108 | R46: 39 | S46: 2.42 | T46: kellycarson_B | U46: 51 | V46: 36 | W46: 49 | X46: 46 | Y46: 25 | Z46: 40 | AA46: 40 | AB46: 43 | AC46: 99_043 | AD46: 43 | AE46: 4.07 | AF46: Manny Machado | AG46: SDP | AH46: 3B | AI46: 34 | AJ46: 31 | AK46: 3.08 | AL46: Fair Value in Rnd 4 | AM46: 0.353 | AN46: 90 | AO46: 31 | AP46: 100 | AQ46: 10 | AR46: 173 | AS46: 67 | AT46: 21.84 | AU46: machadomanny_B | AV46: 78 | AW46: 81 | AX46: 87 | AY46: 90 | AZ46: 45 | BA46: 87 | BB46: 85
B47: 01_044 | C47: 679 | D47: 57.07 | E47: JC Escarra | F47: NYY | G47: C | H47: 31 | I47: 1036 | J47: 87.05 | K47: Waiver Wire | L47: 0.302 | M47: 49 | N47: 9 | O47: 45 | P47: 5 | Q47: 87 | R47: 32 | S47: 2.42 | T47: escarrajc_B | U47: 31 | V47: 28 | W47: 29 | X47: 30 | Y47: 33 | Z47: 24 | AA47: 28 | AB47: 44 | AC47: 99_044 | AD47: 44 | AE47: 4.08 | AF47: Maikel Garcia | AG47: KCR | AH47: 3B | AI47: 26 | AJ47: 70 | AK47: 6.11 | AL47: Rnd 6 ADP Bargain | AM47: 0.335 | AN47: 88 | AO47: 10 | AP47: 68 | AQ47: 32 | AR47: 154 | AS47: 46 | AT47: 21.44 | AU47: garciamaikel_B | AV47: 63 | AW47: 79 | AX47: 31 | AY47: 60 | AZ47: 87 | BA47: 77 | BB47: 53
B48: 01_045 | C48: 695 | D48: 58.11 | E48: Pedro Pages | F48: STL | G48: C | H48: 28 | I48: 570 | J48: 48.07 | K48: Rnd 48 ADP Bust | L48: 0.291 | M48: 52 | N48: 15 | O48: 63 | P48: 2 | Q48: 117 | R48: 39 | S48: 2.42 | T48: pagespedro_B | U48: 22 | V48: 32 | W48: 46 | X48: 53 | Y48: 27 | Z48: 47 | AA48: 40 | AB48: 45 | AC48: 99_045 | AD48: 45 | AE48: 4.09 | AF48: Freddie Freeman | AG48: LAD | AH48: 1B | AI48: 37 | AJ48: 53 | AK48: 5.06 | AL48: Rnd 5 ADP Bargain | AM48: 0.4 | AN48: 103 | AO48: 28 | AP48: 98 | AQ48: 9 | AR48: 186 | AS48: 75 | AT48: 21.32 | AU48: freemanfreddie_B | AV48: 96 | AW48: 90 | AX48: 82 | AY48: 89 | AZ48: 42 | BA48: 91 | BB48: 91
B49: 01_046 | C49: 698 | D49: 59.02 | E49: Austin Wynns | F49: ATH | G49: C | H49: 35 | I49: 954 | J49: 80.07 | K49: Waiver Wire | L49: 0.313 | M49: 39 | N49: 10 | O49: 42 | P49: 2 | Q49: 86 | R49: 25 | S49: 2.4 | T49: wynnsaustin_B | U49: 41 | V49: 18 | W49: 31 | X49: 26 | Y49: 27 | Z49: 23 | AA49: 19 | AB49: 46 | AC49: 99_046 | AD49: 46 | AE49: 4.10 | AF49: Cody Bellinger | AG49: NYY | AH49: OF | AI49: 30 | AJ49: 60 | AK49: 6.01 | AL49: Rnd 6 ADP Bargain | AM49: 0.348 | AN49: 92 | AO49: 30 | AP49: 95 | AQ49: 14 | AR49: 152 | AS49: 64 | AT49: 21.26 | AU49: bellingercody_B | AV49: 74 | AW49: 83 | AX49: 85 | AY49: 87 | AZ49: 54 | BA49: 76 | BB49: 82
B50: 01_047 | C50: 722 | D50: 61.02 | E50: Kyle Higashioka | F50: TEX | G50: C | H50: 36 | I50: 576 | J50: 49.01 | K50: Rnd 49 ADP Bust | L50: 0.28 | M50: 38 | N50: 16 | O50: 51 | P50: 1 | Q50: 80 | R50: 35 | S50: 2.36 | T50: higashiokakyle_B | U50: 16 | V50: 17 | W50: 49 | X50: 37 | Y50: 25 | Z50: 19 | AA50: 33 | AB50: 47 | AC50: 99_047 | AD50: 47 | AE50: 4.11 | AF50: Zach Neto | AG50: LAA | AH50: SS | AI50: 25 | AJ50: 42 | AK50: 4.07 | AL50: Good Value in Rnd 4 | AM50: 0.318 | AN50: 88 | AO50: 26 | AP50: 77 | AQ50: 25 | AR50: 146 | AS50: 61 | AT50: 21.1 | AU50: netozach_B | AV50: 46 | AW50: 79 | AX50: 78 | AY50: 71 | AZ50: 77 | BA50: 72 | BB50: 78
B51: 01_048 | C51: 751 | D51: 63.07 | E51: Freddy Fermin | F51: SDP | G51: C | H51: 31 | I51: 521 | J51: 44.06 | K51: Rnd 44 ADP Bust | L51: 0.315 | M51: 58 | N51: 14 | O51: 58 | P51: 2 | Q51: 127 | R51: 38 | S51: 2.32 | T51: ferminfreddy_B | U51: 43 | V51: 40 | W51: 43 | X51: 46 | Y51: 27 | Z51: 56 | AA51: 38 | AB51: 48 | AC51: 99_048 | AD51: 48 | AE51: 4.12 | AF51: Cade Smith | AG51: CLE | AH51: RP | AI51: 27 | AJ51: 57 | AK51: 5.10 | AL51: Rnd 5 ADP Bargain | AM51: 8 | AN51: 19 | AO51: 11.8 | AP51: 2.85 | AQ51: 1.03 | AR51: 18 | AS51: 96 | AT51: 20.82 | AU51: smithcade_P | AV51: 53 | AW51: 95 | AX51: 84 | AY51: 16 | AZ51: 12 | BA51: 91 | BB51: 62
B52: 01_049 | C52: 765 | D52: 64.09 | E52: Rafael Marchan | F52: PHI | G52: C | H52: 27 | I52: 932 | J52: 78.09 | K52: Waiver Wire | L52: 0.292 | M52: 43 | N52: 7 | O52: 41 | P52: 2 | Q52: 88 | R52: 26 | S52: 2.32 | T52: marchanrafael_B | U52: 23 | V52: 22 | W52: 24 | X52: 25 | Y52: 27 | Z52: 24 | AA52: 20 | AB52: 49 | AC52: 99_049 | AD52: 49 | AE52: 5.01 | AF52: Brice Turang | AG52: MIL | AH52: 2B | AI52: 26 | AJ52: 47 | AK52: 4.12 | AL52: Fair Value in Rnd 5 | AM52: 0.332 | AN52: 80 | AO52: 12 | AP52: 68 | AQ52: 32 | AR52: 142 | AS52: 37 | AT52: 20.84 | AU52: turangbrice_B | AV52: 60 | AW52: 71 | AX52: 37 | AY52: 60 | AZ52: 87 | BA52: 69 | BB52: 36
B53: 01_050 | C53: 770 | D53: 65.02 | E53: Korey Lee | F53: CHW | G53: C | H53: 28 | I53: 1329 | J53: 111.10 | K53: Waiver Wire | L53: 0.277 | M53: 49 | N53: 13 | O53: 46 | P53: 8 | Q53: 95 | R53: 34 | S53: 2.3 | T53: leekorey_B | U53: 14 | V53: 28 | W53: 40 | X53: 31 | Y53: 40 | Z53: 29 | AA53: 31 | AB53: 50 | AC53: 99_050 | AD53: 50 | AE53: 5.02 | AF53: Jhoan Duran | AG53: PHI | AH53: RP | AI53: 28 | AJ53: 56 | AK53: 5.09 | AL53: Good Value in Rnd 5 | AM53: 6 | AN53: 31 | AO53: 11.2 | AP53: 2.61 | AQ53: 1.13 | AR53: 8 | AS53: 101 | AT53: 20.56 | AU53: duranjhoan_P | AV53: 40 | AW53: 99 | AX53: 77 | AY53: 11 | AZ53: 26 | BA53: 63 | BB53: 94
B54: 01_051 | C54: 773 | D54: 65.05 | E54: Henry Davis | F54: PIT | G54: C | H54: 27 | I54: 769 | J54: 65.02 | K54: Waiver Wire | L54: 0.297 | M54: 52 | N54: 14 | O54: 48 | P54: 9 | Q54: 94 | R54: 37 | S54: 2.26 | T54: davishenry_B | U54: 27 | V54: 32 | W54: 43 | X54: 33 | Y54: 42 | Z54: 28 | AA54: 36 | AB54: 51 | AC54: 99_051 | AD54: =IF(ISNA(VLOOKUP($AC54,RankData,AD$3,FALSE)),"",VLOOKUP($AC54,RankData,AD$3,FALSE)) -> 51 | AE54: 5.03 | AF54: Bryan Woo | AG54: SEA | AH54: SP | AI54: 26 | AJ54: 29 | AK54: 3.06 | AL54: Rnd 3 ADP Bust | AM54: 15 | AN54: =IF(ISNA(VLOOKUP($AC54,RankData,AN$3,FALSE)),"",VLOOKUP($AC54,RankData,AN$3,FALSE)) -> 0 | AO54: 9.6 | AP54: 3.16 | AQ54: 1 | AR54: 0 | AS54: 95 | AT54: 20.46 | AU54: woobryan_P | AV54: 88 | AW54: 37 | AX54: 49 | AY54: 25 | AZ54: 10 | BA54: 30 | BB54: 50
B55: 01_052 | C55: 786 | D55: 66.06 | E55: Victor Caratini | F55: MIN | G55: C | H55: 32 | I55: 481 | J55: 41.02 | K55: Rnd 41 ADP Bust | L55: 0.323 | M55: 45 | N55: 12 | O55: 52 | P55: 1 | Q55: 107 | R55: 30 | S55: 2.26 | T55: caratinivictor_B | U55: 51 | V55: 24 | W55: 37 | X55: 38 | Y55: 25 | Z55: 39 | AA55: 25 | AB55: 52 | AC55: 99_052 | AD55: 52 | AE55: 5.04 | AF55: Ben Rice | AG55: NYY | AH55: C,1B | AI55: 27 | AJ55: 59 | AK55: 5.12 | AL55: Good Value in Rnd 5 | AM55: 0.337 | AN55: 77 | AO55: 27 | AP55: 77 | AQ55: 8 | AR55: 114 | AS55: 51 | AT55: 20.48 | AU55: riceben_B | AV55: 65 | AW55: 67 | AX55: 80 | AY55: 71 | AZ55: 40 | BA55: 45 | BB55: 63
B56: 01_053 | C56: 803 | D56: 67.11 | E56: Tyler Heineman | F56: TOR | G56: C | H56: 35 | I56: 1064 | J56: 89.09 | K56: Waiver Wire | L56: 0.313 | M56: 41 | N56: 5 | O56: 34 | P56: 7 | Q56: 77 | R56: 19 | S56: 2.26 | T56: heinemantyler_B | U56: 41 | V56: 20 | W56: 19 | X56: 19 | Y56: 38 | Z56: 18 | AA56: 13 | AB56: 53 | AC56: 99_053 | AD56: 53 | AE56: 5.05 | AF56: Austin Riley | AG56: ATL | AH56: 3B | AI56: 29 | AJ56: 61 | AK56: 6.02 | AL56: Rnd 6 ADP Bargain | AM56: 0.339 | AN56: 88 | AO56: 31 | AP56: 89 | AQ56: 1 | AR56: 166 | AS56: 68 | AT56: 19.92 | AU56: rileyaustin_B | AV56: 67 | AW56: 79 | AX56: 87 | AY56: 83 | AZ56: 25 | BA56: 84 | BB56: 86
B57: 01_054 | C57: 811 | D57: 68.07 | E57: Nick Fortes | F57: TBR | G57: C | H57: 29 | I57: 623 | J57: 52.12 | K57: Waiver Wire | L57: 0.281 | M57: 45 | N57: 10 | O57: 43 | P57: 4 | Q57: 101 | R57: 30 | S57: 2.22 | T57: fortesnick_B | U57: 16 | V57: 24 | W57: 31 | X57: 27 | Y57: 31 | Z57: 34 | AA57: 25 | AB57: 54 | AC57: 99_054 | AD57: 54 | AE57: 5.06 | AF57: Riley Greene | AG57: DET | AH57: OF | AI57: 25 | AJ57: 68 | AK57: 6.09 | AL57: Rnd 6 ADP Bargain | AM57: 0.341 | AN57: 88 | AO57: 27 | AP57: 90 | AQ57: 7 | AR57: 161 | AS57: 61 | AT57: 19.1 | AU57: greeneriley_B | AV57: 69 | AW57: 79 | AX57: 80 | AY57: 83 | AZ57: 38 | BA57: 81 | BB57: 78
B58: 01_055 | C58: 812 | D58: 68.08 | E58: Jonah Heim | F58: ATL | G58: C | H58: 31 | I58: 566 | J58: 48.03 | K58: Rnd 48 ADP Bust | L58: 0.291 | M58: 42 | N58: 12 | O58: 52 | P58: 2 | Q58: 96 | R58: 33 | S58: 2.22 | T58: heimjonah_B | U58: 22 | V58: 21 | W58: 37 | X58: 38 | Y58: 27 | Z58: 30 | AA58: 30 | AB58: 55 | AC58: 99_055 | AD58: 55 | AE58: 5.07 | AF58: Oneil Cruz | AG58: PIT | AH58: OF | AI58: 27 | AJ58: 90 | AK58: 8.07 | AL58: Rnd 8 ADP Bargain | AM58: 0.317 | AN58: 83 | AO58: 25 | AP58: 80 | AQ58: 31 | AR58: 138 | AS58: 59 | AT58: 18.6 | AU58: cruzoneil_B | AV58: 45 | AW58: 74 | AX58: 75 | AY58: 74 | AZ58: 86 | BA58: 66 | BB58: 76
B59: 01_056 | C59: 824 | D59: 69.08 | E59: Connor Wong | F59: BOS | G59: C | H59: 30 | I59: 693 | J59: 58.10 | K59: Waiver Wire | L59: 0.294 | M59: 45 | N59: 10 | O59: 37 | P59: 7 | Q59: 102 | R59: 37 | S59: 2.22 | T59: wongconnor_B | U59: 25 | V59: 24 | W59: 31 | X59: 21 | Y59: 38 | Z59: 35 | AA59: 36 | AB59: 56 | AC59: 99_056 | AD59: 56 | AE59: 5.08 | AF59: Hunter Goodman | AG59: COL | AH59: C | AI59: 27 | AJ59: 75 | AK59: 7.04 | AL59: Rnd 7 ADP Bargain | AM59: 0.309 | AN59: 79 | AO59: 33 | AP59: 103 | AQ59: 3 | AR59: 140 | AS59: 70 | AT59: 18.14 | AU59: goodmanhunter_B | AV59: 37 | AW59: 69 | AX59: 89 | AY59: 91 | AZ59: 29 | BA59: 67 | BB59: 88
B60: 01_057 | C60: 847 | D60: 71.07 | E60: Andrew Knizner | F60: SEA | G60: C | H60: 31 | I60: 1334 | J60: 112.03 | K60: Waiver Wire | L60: 0.298 | M60: 40 | N60: 7 | O60: 38 | P60: 2 | Q60: 80 | R60: 23 | S60: 2.2 | T60: kniznerandrew_B | U60: 28 | V60: 19 | W60: 24 | X60: 22 | Y60: 27 | Z60: 19 | AA60: 16 | AB60: 57 | AC60: 99_057 | AD60: 57 | AE60: 5.09 | AF60: Geraldo Perdomo | AG60: ARI | AH60: SS | AI60: 26 | AJ60: 67 | AK60: 6.08 | AL60: Rnd 6 ADP Bargain | AM60: 0.354 | AN60: 85 | AO60: 12 | AP60: 68 | AQ60: 18 | AR60: 126 | AS60: 37 | AT60: 18.14 | AU60: perdomogeraldo_B | AV60: 79 | AW60: 76 | AX60: 37 | AY60: 60 | AZ60: 63 | BA60: 55 | BB60: 36
B61: 01_058 | C61: 850 | D61: 71.10 | E61: Gary Sanchez | F61: MIL | G61: C | H61: 33 | I61: 658 | J61: 55.11 | K61: Waiver Wire | L61: 0.313 | M61: 52 | N61: 23 | O61: 65 | P61: 1 | Q61: 98 | R61: 46 | S61: 2.12 | T61: sanchezgary_B | U61: 41 | V61: 32 | W61: 70 | X61: 56 | Y61: 25 | Z61: 31 | AA61: 53 | AB61: 58 | AC61: 99_058 | AD61: 58 | AE61: 5.10 | AF61: Dylan Cease | AG61: TOR | AH61: SP | AI61: 30 | AJ61: 77 | AK61: 7.06 | AL61: Rnd 7 ADP Bargain | AM61: 18 | AN61: 0 | AO61: 10.9 | AP61: 3.93 | AQ61: 1.26 | AR61: 0 | AS61: 97 | AT61: 17.66 | AU61: ceasedylan_P | AV61: 94 | AW61: 37 | AX61: 73 | AY61: 57 | AZ61: 54 | BA61: 30 | BB61: 72
B62: 01_059 | C62: 857 | D62: 72.05 | E62: Patrick Bailey | F62: SFG | G62: C | H62: 27 | I62: 529 | J62: 45.02 | K62: Rnd 45 ADP Bust | L62: 0.299 | M62: 62 | N62: 12 | O62: 65 | P62: 4 | Q62: 118 | R62: 40 | S62: 2.16 | T62: baileypatrick_B | U62: 28 | V62: 46 | W62: 37 | X62: 56 | Y62: 31 | Z62: 48 | AA62: 42 | AB62: 59 | AC62: 99_059 | AD62: 59 | AE62: 5.11 | AF62: Bo Bichette | AG62: NYM | AH62: SS | AI62: 28 | AJ62: 84 | AK62: 8.01 | AL62: Rnd 8 ADP Bargain | AM62: 0.351 | AN62: 90 | AO62: 23 | AP62: 92 | AQ62: 11 | AR62: 193 | AS62: 66 | AT62: 17.74 | AU62: bichettebo_B | AV62: 77 | AW62: 81 | AX62: 70 | AY62: 85 | AZ62: 47 | BA62: 93 | BB62: 84
B63: 01_060 | C63: 889 | D63: 75.01 | E63: Elias Diaz | F63: KCR | G63: C | H63: 35 | I63: 1026 | J63: 86.07 | K63: Waiver Wire | L63: 0.31 | M63: 40 | N63: 10 | O63: 46 | P63: 1 | Q63: 98 | R63: 32 | S63: 2.16 | T63: diazelias_B | U63: 38 | V63: 19 | W63: 31 | X63: 31 | Y63: 25 | Z63: 31 | AA63: 28 | AB63: 60 | AC63: 99_060 | AD63: 60 | AE63: 5.12 | AF63: Corey Seager | AG63: TEX | AH63: SS | AI63: 32 | AJ63: 87 | AK63: 8.04 | AL63: Rnd 8 ADP Bargain | AM63: 0.373 | AN63: 92 | AO63: 29 | AP63: 87 | AQ63: 3 | AR63: 177 | AS63: 71 | AT63: 17.7 | AU63: seagercorey_B | AV63: 89 | AW63: 83 | AX63: 84 | AY63: 81 | AZ63: 29 | BA63: 89 | BB63: 89
B64: 01_061 | C64: 970 | D64: 81.10 | E64: Reese McGuire | F64: MIL | G64: C | H64: 31 | I64: 1338 | J64: 112.07 | K64: Waiver Wire | L64: 0.299 | M64: 35 | N64: 8 | O64: 35 | P64: 3 | Q64: 85 | R64: 27 | S64: 2.06 | T64: mcguirereese_B | U64: 28 | V64: 15 | W64: 26 | X64: 20 | Y64: 29 | Z64: 22 | AA64: 21 | AB64: 61 | AC64: 99_061 | AD64: =IF(ISNA(VLOOKUP($AC64,RankData,AD$3,FALSE)),"",VLOOKUP($AC64,RankData,AD$3,FALSE)) -> 61 | AE64: 6.01 | AF64: Vinnie Pasquantino | AG64: KCR | AH64: 1B | AI64: 28 | AJ64: 76 | AK64: 7.05 | AL64: Rnd 7 ADP Bargain | AM64: 0.339 | AN64: =IF(ISNA(VLOOKUP($AC64,RankData,AN$3,FALSE)),"",VLOOKUP($AC64,RankData,AN$3,FALSE)) -> 76 | AO64: 28 | AP64: 102 | AQ64: 3 | AR64: 155 | AS64: 65 | AT64: 17.3 | AU64: pasquantinovinnie_B | AV64: 67 | AW64: 66 | AX64: 82 | AY64: 91 | AZ64: 29 | BA64: 78 | BB64: 83
B65: 01_062 | C65: 1003 | D65: 84.07 | E65: Ben Rortvedt | F65: NYM | G65: C | H65: 28 | I65: 1362 | J65: 114.07 | K65: Waiver Wire | L65: 0.288 | M65: 38 | N65: 9 | O65: 37 | P65: 2 | Q65: 73 | R65: 24 | S65: 2 | T65: rortvedtben_B | U65: 20 | V65: 17 | W65: 29 | X65: 21 | Y65: 27 | Z65: 16 | AA65: 17 | AB65: 62 | AC65: 99_062 | AD65: 62 | AE65: 6.02 | AF65: Roman Anthony | AG65: BOS | AH65: OF | AI65: 22 | AJ65: 46 | AK65: 4.11 | AL65: Rnd 4 ADP Bust | AM65: 0.362 | AN65: 92 | AO65: 17 | AP65: 69 | AQ65: 14 | AR65: 145 | AS65: 55 | AT65: 17.02 | AU65: anthonyroman_B | AV65: 84 | AW65: 83 | AX65: 53 | AY65: 61 | AZ65: 54 | BA65: 71 | BB65: 70
B66: 01_063 | C66: 1020 | D66: 85.12 | E66: Matt Thaiss | F66: BOS | G66: C | H66: 31 | I66: 1359 | J66: 114.04 | K66: Waiver Wire | L66: 0.328 | M66: 45 | N66: 11 | O66: 46 | P66: 4 | Q66: 87 | R66: 31 | S66: 1.96 | T66: thaissmatt_B | U66: 56 | V66: 24 | W66: 34 | X66: 31 | Y66: 31 | Z66: 24 | AA66: 27 | AB66: 63 | AC66: 99_063 | AD66: 63 | AE66: 6.03 | AF66: Chris Sale | AG66: ATL | AH66: SP | AI66: 37 | AJ66: 35 | AK66: 3.12 | AL66: Rnd 3 ADP Bust | AM66: 14 | AN66: 0 | AO66: 11.7 | AP66: 3 | AQ66: 1.04 | AR66: 0 | AS66: 95 | AT66: 16.72 | AU66: salechris_P | AV66: 85 | AW66: 37 | AX66: 83 | AY66: 20 | AZ66: 13 | BA66: 30 | BB66: 50
B67: 01_064 | C67: 1026 | D67: 86.06 | E67: Eric Haase | F67: SFG | G67: C | H67: 33 | I67: 1364 | J67: 114.09 | K67: Waiver Wire | L67: 0.296 | M67: 42 | N67: 14 | O67: 51 | P67: 2 | Q67: 88 | R67: 32 | S67: 1.96 | T67: haaseeric_B | U67: 26 | V67: 21 | W67: 43 | X67: 37 | Y67: 27 | Z67: 24 | AA67: 28 | AB67: 64 | AC67: 99_064 | AD67: 64 | AE67: 6.04 | AF67: Byron Buxton | AG67: MIN | AH67: OF | AI67: 32 | AJ67: 72 | AK67: 7.01 | AL67: Rnd 7 ADP Bargain | AM67: 0.323 | AN67: 93 | AO67: 31 | AP67: 80 | AQ67: 21 | AR67: 138 | AS67: 69 | AT67: 16.74 | AU67: buxtonbyron_B | AV67: 51 | AW67: 84 | AX67: 87 | AY67: 74 | AZ67: 70 | BA67: 66 | BB67: 87
B68: 01_065 | C68: 1085 | D68: 91.05 | E68: Tomas Nido | F68: DET | G68: C | H68: 32 | I68: 1370 | J68: 115.03 | K68: Waiver Wire | L68: 0.267 | M68: 36 | N68: 8 | O68: 34 | P68: 1 | Q68: 80 | R68: 21 | S68: 1.9 | T68: nidotomas_B | U68: 10 | V68: 16 | W68: 26 | X68: 19 | Y68: 25 | Z68: 19 | AA68: 14 | AB68: 65 | AC68: 99_065 | AD68: 65 | AE68: 6.05 | AF68: William Contreras | AG68: MIL | AH68: C | AI68: 28 | AJ68: 52 | AK68: 5.05 | AL68: Fair Value in Rnd 6 | AM68: 0.361 | AN68: 88 | AO68: 22 | AP68: 82 | AQ68: 6 | AR68: 158 | AS68: 56 | AT68: 16.64 | AU68: contreraswilliam_B | AV68: 83 | AW68: 79 | AX68: 68 | AY68: 76 | AZ68: 35 | BA68: 80 | BB68: 71
B69: 01_066 | C69: 1322 | D69: 111.02 | E69: Chad Wallach | F69: ATH | G69: C | H69: 34 | I69: 1380 | J69: 116.01 | K69: Waiver Wire | L69: 0.28 | M69: 34 | N69: 11 | O69: 39 | P69: 2 | Q69: 69 | R69: 26 | S69: 1.46 | T69: wallachchad_B | U69: =IF(RIGHT($T69,1)="B",ROUND(100*EXP((L69-BO$6)/BO$7)/(1+EXP((L69-BO$6)/BO$7)),0),ROUND(100*EXP((L69-BO$9)/BO$10)/(1+EXP((L69-BO$9)/BO$10)),0)) -> 16 | V69: =IF(RIGHT($T69,1)="B",ROUND(100*EXP((M69-BP$6)/BP$7)/(1+EXP((M69-BP$6)/BP$7)),0),ROUND(100*EXP((M69-BP$9)/BP$10)/(1+EXP((M69-BP$9)/BP$10)),0)) -> 14 | W69: =IF(RIGHT($T69,1)="B",ROUND(100*EXP((N69-BQ$6)/BQ$7)/(1+EXP((N69-BQ$6)/BQ$7)),0),ROUND(100*EXP((N69-BQ$9)/BQ$10)/(1+EXP((N69-BQ$9)/BQ$10)),0)) -> 34 | X69: =IF(RIGHT($T69,1)="B",ROUND(100*EXP((O69-BR$6)/BR$7)/(1+EXP((O69-BR$6)/BR$7)),0),ROUND(100*EXP((O69-BR$9)/BR$10)/(1+EXP((O69-BR$9)/BR$10)),0)) -> 23 | Y69: =IF(RIGHT($T69,1)="B",ROUND(100*EXP((P69-BS$6)/BS$7)/(1+EXP((P69-BS$6)/BS$7)),0),ROUND(100*EXP((P69-BS$9)/BS$10)/(1+EXP((P69-BS$9)/BS$10)),0)) -> 27 | Z69: =IF(RIGHT($T69,1)="B",ROUND(100*EXP((Q69-BT$6)/BT$7)/(1+EXP((Q69-BT$6)/BT$7)),0),ROUND(100*EXP((Q69-BT$9)/BT$10)/(1+EXP((Q69-BT$9)/BT$10)),0)) -> 14 | AA69: =IF(RIGHT($T69,1)="B",ROUND(100*EXP((R69-BU$6)/BU$7)/(1+EXP((R69-BU$6)/BU$7)),0),ROUND(100*EXP((R69-BU$9)/BU$10)/(1+EXP((R69-BU$9)/BU$10)),0)) -> 20 | AB69: 66 | AC69: =$AC$1&TEXT($AB69,"000") -> 99_066 | AD69: 66 | AE69: 6.06 | AF69: Max Fried | AG69: NYY | AH69: SP | AI69: 32 | AJ69: 43 | AK69: 4.08 | AL69: Rnd 4 ADP Bust | AM69: 17 | AN69: 0 | AO69: 8.8 | AP69: 3.05 | AQ69: 1.15 | AR69: 0 | AS69: 94 | AT69: 16.46 | AU69: friedmax_P | AV69: 93 | AW69: 37 | AX69: 34 | AY69: 22 | AZ69: 30 | BA69: 30 | BB69: 39
B70: 02_001 | C70: 6 | D70: 1.06 | E70: Nick Kurtz | F70: ATH | G70: 1B | H70: 23 | I70: 22 | J70: 2.11 | K70: Rnd 2 ADP Bargain | L70: 0.396 | M70: 117 | N70: 46 | O70: 119 | P70: 3 | Q70: 168 | R70: 88 | S70: 46.72 | T70: kurtznick_B | U70: 95 | V70: 95 | W70: 98 | X70: 96 | Y70: 29 | Z70: 85 | AA70: 97 | AB70: 67 | AC70: 99_067 | AD70: 67 | AE70: 6.07 | AF70: Christian Yelich | AG70: MIL | AH70: DH | AI70: 34 | AJ70: 104 | AK70: 9.09 | AL70: Rnd 9 ADP Bargain | AM70: 0.381 | AN70: 100 | AO70: 26 | AP70: 91 | AQ70: 21 | AR70: 169 | AS70: 61 | AT70: 16.44 | AU70: yelichchristian_B | AV70: 92 | AW70: 88 | AX70: 78 | AY70: 84 | AZ70: 70 | BA70: 85 | BB70: 78
B71: 02_002 | C71: 13 | D71: 2.01 | E71: Vladimir Guerrero | F71: TOR | G71: 1B | H71: 27 | I71: 18 | J71: 2.07 | K71: Good Value in Rnd 2 | L71: 0.379 | M71: 94 | N71: 29 | O71: 96 | P71: 4 | Q71: 177 | R71: 66 | S71: 39.16 | T71: guerrerovladimir_B | U71: 91 | V71: 84 | W71: 84 | X71: 87 | Y71: 31 | Z71: 89 | AA71: 84 | AB71: 68 | AC71: 99_068 | AD71: 68 | AE71: 6.08 | AF71: Michael Busch | AG71: CHC | AH71: 1B | AI71: 28 | AJ71: 103 | AK71: 9.08 | AL71: Rnd 9 ADP Bargain | AM71: 0.342 | AN71: 91 | AO71: 29 | AP71: 90 | AQ71: 4 | AR71: 140 | AS71: 63 | AT71: 16.08 | AU71: buschmichael_B | AV71: 70 | AW71: 82 | AX71: 84 | AY71: 83 | AZ71: 31 | BA71: 67 | BB71: 81
B72: 02_003 | C72: 15 | D72: 2.03 | E72: Pete Alonso | F72: BAL | G72: 1B | H72: 31 | I72: 26 | J72: 3.03 | K72: Rnd 3 ADP Bargain | L72: 0.346 | M72: 91 | N72: 41 | O72: 113 | P72: 3 | Q72: 151 | R72: 72 | S72: 36.48 | T72: alonsopete_B | U72: 73 | V72: 82 | W72: 96 | X72: 95 | Y72: 29 | Z72: 75 | AA72: 89 | AB72: 69 | AC72: 99_069 | AD72: 69 | AE72: 6.09 | AF72: Alex Bregman | AG72: CHC | AH72: 3B | AI72: 32 | AJ72: 88 | AK72: 8.05 | AL72: Rnd 8 ADP Bargain | AM72: 0.371 | AN72: 93 | AO72: 25 | AP72: 89 | AQ72: 5 | AR72: 163 | AS72: 68 | AT72: 16.04 | AU72: bregmanalex_B | AV72: 88 | AW72: 84 | AX72: 75 | AY72: 83 | AZ72: 33 | BA72: 82 | BB72: 86
B73: 02_004 | C73: 25 | D73: 3.01 | E73: Bryce Harper | F73: PHI | G73: 1B | H73: 33 | I73: 40 | J73: 4.05 | K73: Rnd 4 ADP Bargain | L73: 0.397 | M73: 98 | N73: 32 | O73: 97 | P73: 13 | Q73: 160 | R73: 73 | S73: 28.1 | T73: harperbryce_B | U73: 96 | V73: 87 | W73: 88 | X73: 88 | Y73: 52 | Z73: 81 | AA73: 90 | AB73: 70 | AC73: 99_070 | AD73: 70 | AE73: 6.10 | AF73: Agustin Ramirez | AG73: MIA | AH73: C | AI73: 25 | AJ73: 95 | AK73: 8.12 | AL73: Rnd 8 ADP Bargain | AM73: 0.307 | AN73: 79 | AO73: 21 | AP73: 83 | AQ73: 18 | AR73: 134 | AS73: 58 | AT73: 15.34 | AU73: ramirezagustin_B | AV73: 36 | AW73: 69 | AX73: 65 | AY73: 77 | AZ73: 63 | BA73: 62 | BB73: 74
B74: 02_005 | C74: 39 | D74: 4.03 | E74: Matt Olson | F74: ATL | G74: 1B | H74: 32 | I74: 38 | J74: 4.03 | K74: Good Value in Rnd 4 | L74: 0.362 | M74: 93 | N74: 36 | O74: 103 | P74: 1 | Q74: 151 | R74: 71 | S74: 22.44 | T74: olsonmatt_B | U74: 84 | V74: 84 | W74: 93 | X74: 91 | Y74: 25 | Z74: 75 | AA74: 89 | AB74: 71 | AC74: 99_071 | AD74: =IF(ISNA(VLOOKUP($AC74,RankData,AD$3,FALSE)),"",VLOOKUP($AC74,RankData,AD$3,FALSE)) -> 71 | AE74: 6.11 | AF74: George Springer | AG74: TOR | AH74: OF | AI74: 37 | AJ74: 83 | AK74: 7.12 | AL74: Rnd 7 ADP Bargain | AM74: 0.366 | AN74: =IF(ISNA(VLOOKUP($AC74,RankData,AN$3,FALSE)),"",VLOOKUP($AC74,RankData,AN$3,FALSE)) -> 107 | AO74: 31 | AP74: 87 | AQ74: 13 | AR74: 165 | AS74: 63 | AT74: 15.32 | AU74: springergeorge_B | AV74: 86 | AW74: 92 | AX74: 87 | AY74: 81 | AZ74: 52 | BA74: 83 | BB74: 81
B75: 02_006 | C75: 42 | D75: 4.06 | E75: Rafael Devers | F75: SFG | G75: 1B | H75: 29 | I75: 51 | J75: 5.04 | K75: Rnd 5 ADP Bargain | L75: 0.363 | M75: 99 | N75: 33 | O75: 104 | P75: 4 | Q75: 170 | R75: 75 | S75: 21.8 | T75: deversrafael_B | U75: 84 | V75: 88 | W75: 89 | X75: 91 | Y75: 31 | Z75: 86 | AA75: 91 | AB75: 72 | AC75: 99_072 | AD75: 72 | AE75: 6.12 | AF75: Shohei Ohtani | AG75: LAD | AH75: SP | AI75: 32 | AJ75: 66 | AK75: 6.07 | AL75: Good Value in Rnd 6 | AM75: 14 | AN75: 0 | AO75: 11.1 | AP75: 3.14 | AQ75: 1.1 | AR75: 0 | AS75: 97 | AT75: 14.76 | AU75: ohtanishohei_P | AV75: 85 | AW75: 37 | AX75: 76 | AY75: 24 | AZ75: 21 | BA75: 30 | BB75: 72
B76: 02_007 | C76: 45 | D76: 4.09 | E76: Freddie Freeman | F76: LAD | G76: 1B | H76: 37 | I76: 53 | J76: 5.06 | K76: Rnd 5 ADP Bargain | L76: 0.4 | M76: 103 | N76: 28 | O76: 98 | P76: 9 | Q76: 186 | R76: 75 | S76: 21.32 | T76: freemanfreddie_B | U76: 96 | V76: 90 | W76: 82 | X76: 89 | Y76: 42 | Z76: 91 | AA76: 91 | AB76: 73 | AC76: 99_073 | AD76: 73 | AE76: 7.01 | AF76: Devin Williams | AG76: NYM | AH76: RP | AI76: 31 | AJ76: 82 | AK76: 7.11 | AL76: Good Value in Rnd 7 | AM76: 6 | AN76: 22 | AO76: 13.8 | AP76: 2.75 | AQ76: 1.06 | AR76: 17 | AS76: 96 | AT76: 14.62 | AU76: williamsdevin_P | AV76: 40 | AW76: 97 | AX76: 96 | AY76: 14 | AZ76: 16 | BA76: 89 | BB76: 62
B77: 02_008 | C77: 52 | D77: 5.04 | E77: Ben Rice | F77: NYY | G77: C,1B | H77: 27 | I77: 59 | J77: 5.12 | K77: Good Value in Rnd 5 | L77: 0.337 | M77: 77 | N77: 27 | O77: 77 | P77: 8 | Q77: 114 | R77: 51 | S77: 20.48 | T77: riceben_B | U77: 65 | V77: 67 | W77: 80 | X77: 71 | Y77: 40 | Z77: 45 | AA77: 63 | AB77: 74 | AC77: 99_074 | AD77: 74 | AE77: 7.02 | AF77: Salvador Perez | AG77: KCR | AH77: C,1B | AI77: 36 | AJ77: 97 | AK77: 9.02 | AL77: Rnd 9 ADP Bargain | AM77: 0.304 | AN77: 65 | AO77: 32 | AP77: 99 | AQ77: 1 | AR77: 157 | AS77: 63 | AT77: 14.54 | AU77: perezsalvador_B | AV77: 33 | AW77: 50 | AX77: 88 | AY77: 89 | AZ77: 25 | BA77: 79 | BB77: 81
B78: 02_009 | C78: 61 | D78: 6.01 | E78: Vinnie Pasquantino | F78: KCR | G78: 1B | H78: 28 | I78: 76 | J78: 7.05 | K78: Rnd 7 ADP Bargain | L78: 0.339 | M78: 76 | N78: 28 | O78: 102 | P78: 3 | Q78: 155 | R78: 65 | S78: 17.3 | T78: pasquantinovinnie_B | U78: 67 | V78: 66 | W78: 82 | X78: 91 | Y78: 29 | Z78: 78 | AA78: 83 | AB78: 75 | AC78: 99_075 | AD78: 75 | AE78: 7.03 | AF78: Randy Arozarena | AG78: SEA | AH78: OF | AI78: 31 | AJ78: 78 | AK78: 7.07 | AL78: Good Value in Rnd 7 | AM78: 0.339 | AN78: 90 | AO78: 24 | AP78: 77 | AQ78: 26 | AR78: 146 | AS78: 58 | AT78: 14.56 | AU78: arozarenarandy_B | AV78: 67 | AW78: 81 | AX78: 73 | AY78: 71 | AZ78: 79 | BA78: 72 | BB78: 74
B79: 02_010 | C79: 68 | D79: 6.08 | E79: Michael Busch | F79: CHC | G79: 1B | H79: 28 | I79: 103 | J79: 9.08 | K79: Rnd 9 ADP Bargain | L79: 0.342 | M79: 91 | N79: 29 | O79: 90 | P79: 4 | Q79: 140 | R79: 63 | S79: 16.08 | T79: buschmichael_B | U79: 70 | V79: 82 | W79: 84 | X79: 83 | Y79: 31 | Z79: 67 | AA79: 81 | AB79: 76 | AC79: 99_076 | AD79: 76 | AE79: 7.04 | AF79: Nico Hoerner | AG79: CHC | AH79: 2B | AI79: 29 | AJ79: 91 | AK79: 8.08 | AL79: Rnd 8 ADP Bargain | AM79: 0.342 | AN79: 84 | AO79: 8 | AP79: 62 | AQ79: 29 | AR79: 167 | AS79: 40 | AT79: 14.16 | AU79: hoernernico_B | AV79: 70 | AW79: 75 | AX79: 26 | AY79: 52 | AZ79: 83 | BA79: 84 | BB79: 42
B80: 02_011 | C80: 74 | D80: 7.02 | E80: Salvador Perez | F80: KCR | G80: C,1B | H80: 36 | I80: 97 | J80: 9.02 | K80: Rnd 9 ADP Bargain | L80: 0.304 | M80: 65 | N80: 32 | O80: 99 | P80: 1 | Q80: 157 | R80: 63 | S80: 14.54 | T80: perezsalvador_B | U80: 33 | V80: 50 | W80: 88 | X80: 89 | Y80: 25 | Z80: 79 | AA80: 81 | AB80: 77 | AC80: 99_077 | AD80: 77 | AE80: 7.05 | AF80: Cole Ragans | AG80: KCR | AH80: SP | AI80: 28 | AJ80: 50 | AK80: 5.03 | AL80: Rnd 5 ADP Bust | AM80: 13 | AN80: 0 | AO80: 11.1 | AP80: 3.77 | AQ80: 1.2 | AR80: 1 | AS80: 95 | AT80: 13.96 | AU80: raganscole_P | AV80: 81 | AW80: 37 | AX80: 76 | AY80: 50 | AZ80: 41 | BA80: 34 | BB80: 50
B81: 02_012 | C81: 89 | D81: 8.05 | E81: Josh Naylor | F81: SEA | G81: 1B | H81: 29 | I81: 64 | J81: 6.05 | K81: Rnd 6 ADP Bust | L81: 0.343 | M81: 73 | N81: 22 | O81: 93 | P81: 15 | Q81: 149 | R81: 54 | S81: 12.14 | T81: naylorjosh_B | U81: 70 | V81: 62 | W81: 68 | X81: 85 | Y81: 56 | Z81: 74 | AA81: 68 | AB81: 78 | AC81: 99_078 | AD81: 78 | AE81: 7.06 | AF81: Jose Altuve | AG81: HOU | AH81: 2B,OF | AI81: 36 | AJ81: 100 | AK81: 9.05 | AL81: Rnd 9 ADP Bargain | AM81: 0.369 | AN81: 102 | AO81: 26 | AP81: 79 | AQ81: 17 | AR81: 190 | AS81: 65 | AT81: 13.82 | AU81: altuvejose_B | AV81: 87 | AW81: 90 | AX81: 78 | AY81: 73 | AZ81: 61 | BA81: 93 | BB81: 83
B82: 02_013 | C82: 95 | D82: 8.11 | E82: Yandy Diaz | F82: TBR | G82: 1B | H82: 35 | I82: 117 | J82: 10.10 | K82: Rnd 10 ADP Bargain | L82: 0.381 | M82: 82 | N82: 19 | O82: 76 | P82: 2 | Q82: 169 | R82: 52 | S82: 11.54 | T82: diazyandy_B | U82: 92 | V82: 73 | W82: 59 | X82: 70 | Y82: 27 | Z82: 85 | AA82: 64 | AB82: 79 | AC82: 99_079 | AD82: 79 | AE82: 7.07 | AF82: Trevor Story | AG82: BOS | AH82: SS | AI82: 33 | AJ82: 114 | AK82: 10.07 | AL82: Rnd 10 ADP Bargain | AM82: 0.333 | AN82: 91 | AO82: 29 | AP82: 93 | AQ82: 25 | AR82: 160 | AS82: 72 | AT82: 13.66 | AU82: storytrevor_B | AV82: 61 | AW82: 82 | AX82: 84 | AY82: 85 | AZ82: 77 | BA82: 81 | BB82: 89
B83: 02_014 | C83: 106 | D83: 9.10 | E83: Tyler Soderstrom | F83: ATH | G83: 1B,OF | H83: 24 | I83: 86 | J83: 8.03 | K83: Fair Value in Rnd 9 | L83: 0.315 | M83: 71 | N83: 27 | O83: 92 | P83: 4 | Q83: 136 | R83: 59 | S83: 10.24 | T83: soderstromtyler_B | U83: 43 | V83: 59 | W83: 80 | X83: 85 | Y83: 31 | Z83: 64 | AA83: 76 | AB83: 80 | AC83: 99_080 | AD83: 80 | AE83: 7.08 | AF83: Shea Langeliers | AG83: ATH | AH83: C | AI83: 28 | AJ83: 62 | AK83: 6.03 | AL83: Fair Value in Rnd 7 | AM83: 0.314 | AN83: 76 | AO83: 31 | AP83: 82 | AQ83: 5 | AR83: 134 | AS83: 60 | AT83: 13.56 | AU83: langeliersshea_B | AV83: 42 | AW83: 66 | AX83: 87 | AY83: 76 | AZ83: 33 | BA83: 62 | BB83: 77
B84: 02_015 | C84: 154 | D84: 13.10 | E84: Jonathan Aranda | F84: TBR | G84: 1B | H84: 28 | I84: 189 | J84: 16.10 | K84: Rnd 16 ADP Bargain | L84: 0.359 | M84: 84 | N84: 22 | O84: 83 | P84: 2 | Q84: 149 | R84: 53 | S84: 5.32 | T84: arandajonathan_B | U84: 82 | V84: 75 | W84: 68 | X84: 77 | Y84: 27 | Z84: 74 | AA84: 66 | AB84: 81 | AC84: 99_081 | AD84: =IF(ISNA(VLOOKUP($AC84,RankData,AD$3,FALSE)),"",VLOOKUP($AC84,RankData,AD$3,FALSE)) -> 81 | AE84: 7.09 | AF84: Seiya Suzuki | AG84: CHC | AH84: OF | AI84: 32 | AJ84: 93 | AK84: 8.10 | AL84: Rnd 8 ADP Bargain | AM84: 0.359 | AN84: =IF(ISNA(VLOOKUP($AC84,RankData,AN$3,FALSE)),"",VLOOKUP($AC84,RankData,AN$3,FALSE)) -> 82 | AO84: 27 | AP84: 90 | AQ84: 10 | AR84: 161 | AS84: 65 | AT84: 13.5 | AU84: suzukiseiya_B | AV84: 82 | AW84: 73 | AX84: 80 | AY84: 83 | AZ84: 45 | BA84: 81 | BB84: 83
B85: 02_016 | C85: 168 | D85: 14.12 | E85: Spencer Torkelson | F85: DET | G85: 1B | H85: 26 | I85: 171 | J85: 15.04 | K85: Rnd 15 ADP Bargain | L85: 0.323 | M85: 82 | N85: 27 | O85: 80 | P85: 2 | Q85: 129 | R85: 57 | S85: 4.02 | T85: torkelsonspencer_B | U85: 51 | V85: 73 | W85: 80 | X85: 74 | Y85: 27 | Z85: 58 | AA85: 73 | AB85: 82 | AC85: 99_082 | AD85: 82 | AE85: 7.10 | AF85: Jarren Duran | AG85: BOS | AH85: OF | AI85: 29 | AJ85: 58 | AK85: 5.11 | AL85: Rnd 5 ADP Bust | AM85: 0.329 | AN85: 90 | AO85: 18 | AP85: 73 | AQ85: 29 | AR85: 157 | AS85: 68 | AT85: 13.48 | AU85: duranjarren_B | AV85: 57 | AW85: 81 | AX85: 56 | AY85: 66 | AZ85: 83 | BA85: 79 | BB85: 86
B86: 02_017 | C86: 200 | D86: 17.08 | E86: Alec Burleson | F86: STL | G86: 1B,OF | H86: 27 | I86: 164 | J86: 14.09 | K86: Rnd 14 ADP Bust | L86: 0.327 | M86: 66 | N86: 21 | O86: 79 | P86: 6 | Q86: 149 | R86: 47 | S86: 3.42 | T86: burlesonalec_B | U86: 55 | V86: 52 | W86: 65 | X86: 73 | Y86: 35 | Z86: 74 | AA86: 55 | AB86: 83 | AC86: 99_083 | AD86: 83 | AE86: 7.11 | AF86: Will Smith | AG86: LAD | AH86: C | AI86: 31 | AJ86: 106 | AK86: 9.11 | AL86: Rnd 9 ADP Bargain | AM86: 0.368 | AN86: 86 | AO86: 26 | AP86: 90 | AQ86: 3 | AR86: 146 | AS86: 59 | AT86: 13.14 | AU86: smithwill_B | AV86: 87 | AW86: 77 | AX86: 78 | AY86: 83 | AZ86: 29 | BA86: 72 | BB86: 76
B87: 02_018 | C87: 230 | D87: 20.02 | E87: Willson Contreras | F87: BOS | G87: 1B | H87: 34 | I87: 161 | J87: 14.06 | K87: Rnd 14 ADP Bust | L87: 0.346 | M87: 76 | N87: 25 | O87: 80 | P87: 5 | Q87: 141 | R87: 58 | S87: 3.28 | T87: contreraswillson_B | U87: 73 | V87: 66 | W87: 75 | X87: 74 | Y87: 33 | Z87: 68 | AA87: 74 | AB87: 84 | AC87: 99_084 | AD87: 84 | AE87: 7.12 | AF87: David Bednar | AG87: NYY | AH87: RP | AI87: 31 | AJ87: 79 | AK87: 7.08 | AL87: Good Value in Rnd 7 | AM87: 5 | AN87: 26 | AO87: 11.2 | AP87: 3.02 | AQ87: 1.12 | AR87: 6 | AS87: 97 | AT87: 13 | AU87: bednardavid_P | AV87: 34 | AW87: 99 | AX87: 77 | AY87: 21 | AZ87: 25 | BA87: 55 | BB87: 72
B88: 02_019 | C88: 234 | D88: 20.06 | E88: Kyle Manzardo | F88: CLE | G88: 1B | H88: 26 | I88: 247 | J88: 21.08 | K88: Rnd 21 ADP Bargain | L88: 0.331 | M88: 65 | N88: 25 | O88: 73 | P88: 2 | Q88: 114 | R88: 55 | S88: 3.18 | T88: manzardokyle_B | U88: 59 | V88: 50 | W88: 75 | X88: 66 | Y88: 27 | Z88: 45 | AA88: 70 | AB88: 85 | AC88: 99_085 | AD88: 85 | AE88: 8.01 | AF88: Jackson Merrill | AG88: SDP | AH88: OF | AI88: 23 | AJ88: 65 | AK88: 6.06 | AL88: Rnd 6 ADP Bust | AM88: 0.324 | AN88: 80 | AO88: 19 | AP88: 82 | AQ88: 13 | AR88: 160 | AS88: 57 | AT88: 12.96 | AU88: merrilljackson_B | AV88: 52 | AW88: 71 | AX88: 59 | AY88: 76 | AZ88: 52 | BA88: 81 | BB88: 73
B89: 02_020 | C89: 245 | D89: 21.05 | E89: Luis Arraez | F89: SFG | G89: 1B | H89: 29 | I89: 220 | J89: 19.05 | K89: Rnd 19 ADP Bust | L89: 0.369 | M89: 80 | N89: 7 | O89: 59 | P89: 7 | Q89: 196 | R89: 42 | S89: 3.16 | T89: arraezluis_B | U89: 87 | V89: 71 | W89: 24 | X89: 48 | Y89: 38 | Z89: 94 | AA89: 46 | AB89: 86 | AC89: 99_086 | AD89: 86 | AE89: 8.02 | AF89: George Kirby | AG89: SEA | AH89: SP | AI89: 28 | AJ89: 63 | AK89: 6.04 | AL89: Rnd 6 ADP Bust | AM89: 14 | AN89: 0 | AO89: 9.1 | AP89: 3.6 | AQ89: 1.13 | AR89: 0 | AS89: 96 | AT89: 12.44 | AU89: kirbygeorge_P | AV89: 85 | AW89: 37 | AX89: 40 | AY89: 42 | AZ89: 26 | BA89: 30 | BB89: 62
B90: 02_021 | C90: 257 | D90: 22.05 | E90: Sal Stewart | F90: CIN | G90: 1B | H90: 22 | I90: 199 | J90: 17.08 | K90: Rnd 17 ADP Bust | L90: 0.337 | M90: 74 | N90: 16 | O90: 71 | P90: 13 | Q90: 137 | R90: 52 | S90: 3.08 | T90: stewartsal_B | U90: 65 | V90: 63 | W90: 49 | X90: 64 | Y90: 52 | Z90: 65 | AA90: 64 | AB90: 87 | AC90: 99_087 | AD90: 87 | AE90: 8.03 | AF90: Jesus Luzardo | AG90: PHI | AH90: SP | AI90: 28 | AJ90: 73 | AK90: 7.02 | AL90: Fair Value in Rnd 8 | AM90: 15 | AN90: 0 | AO90: 10 | AP90: 4.13 | AQ90: 1.24 | AR90: 1 | AS90: 96 | AT90: 12.16 | AU90: luzardojesus_P | AV90: 88 | AW90: 37 | AX90: 57 | AY90: 66 | AZ90: 50 | BA90: 34 | BB90: 62
B91: 02_022 | C91: 264 | D91: 22.12 | E91: Munetaka Murakami | F91: CHW | G91: 1B | H91: 26 | I91: 186 | J91: 16.07 | K91: Rnd 16 ADP Bust | L91: 0.314 | M91: 73 | N91: 18 | O91: 68 | P91: 15 | Q91: 127 | R91: 45 | S91: 3.12 | T91: murakamimunetaka_B | U91: 42 | V91: 62 | W91: 56 | X91: 60 | Y91: 56 | Z91: 56 | AA91: 51 | AB91: 88 | AC91: 99_088 | AD91: 88 | AE91: 8.04 | AF91: Jeremy Pena | AG91: HOU | AH91: SS | AI91: 28 | AJ91: 105 | AK91: 9.10 | AL91: Rnd 9 ADP Bargain | AM91: 0.328 | AN91: 72 | AO91: 16 | AP91: 60 | AQ91: 16 | AR91: 140 | AS91: 44 | AT91: 12.22 | AU91: penajeremy_B | AV91: 56 | AW91: 60 | AX91: 49 | AY91: 49 | AZ91: 59 | BA91: 67 | BB91: 50
B92: 02_023 | C92: 338 | D92: 29.02 | E92: Spencer Steer | F92: CIN | G92: 1B | H92: 28 | I92: 277 | J92: 24.02 | K92: Rnd 24 ADP Bust | L92: 0.324 | M92: 64 | N92: 19 | O92: 68 | P92: 9 | Q92: 112 | R92: 47 | S92: 2.92 | T92: steerspencer_B | U92: 52 | V92: 49 | W92: 59 | X92: 60 | Y92: 42 | Z92: 43 | AA92: 55 | AB92: 89 | AC92: 99_089 | AD92: 89 | AE92: 8.05 | AF92: Josh Naylor | AG92: SEA | AH92: 1B | AI92: 29 | AJ92: 64 | AK92: 6.05 | AL92: Rnd 6 ADP Bust | AM92: 0.343 | AN92: 73 | AO92: 22 | AP92: 93 | AQ92: 15 | AR92: 149 | AS92: 54 | AT92: 12.14 | AU92: naylorjosh_B | AV92: 70 | AW92: 62 | AX92: 68 | AY92: 85 | AZ92: 56 | BA92: 74 | BB92: 68
B93: 02_024 | C93: 339 | D93: 29.03 | E93: Christian Walker | F93: HOU | G93: 1B | H93: 35 | I93: 175 | J93: 15.08 | K93: Rnd 15 ADP Bust | L93: 0.328 | M93: 79 | N93: 28 | O93: 86 | P93: 4 | Q93: 141 | R93: 60 | S93: 2.92 | T93: walkerchristian_B | U93: 56 | V93: 69 | W93: 82 | X93: 80 | Y93: 31 | Z93: 68 | AA93: 77 | AB93: 90 | AC93: 99_090 | AD93: 90 | AE93: 8.06 | AF93: Luke Keaschall | AG93: MIN | AH93: 2B | AI93: 24 | AJ93: 111 | AK93: 10.04 | AL93: Rnd 10 ADP Bargain | AM93: 0.353 | AN93: 85 | AO93: 13 | AP93: 60 | AQ93: 34 | AR93: 149 | AS93: 48 | AT93: 12 | AU93: keaschallluke_B | AV93: 78 | AW93: 76 | AX93: 40 | AY93: 49 | AZ93: 89 | BA93: 74 | BB93: 57
B94: 02_025 | C94: 364 | D94: 31.04 | E94: Andres Chaparro | F94: WSN | G94: 1B | H94: 27 | I94: 863 | J94: 72.12 | K94: Rnd 72 ADP Bargain | L94: 0.313 | M94: 70 | N94: 22 | O94: 81 | P94: 4 | Q94: 133 | R94: 57 | S94: 2.8 | T94: chaparroandres_B | U94: 41 | V94: 57 | W94: 68 | X94: 75 | Y94: 31 | Z94: 62 | AA94: 73 | AB94: 91 | AC94: 99_091 | AD94: =IF(ISNA(VLOOKUP($AC94,RankData,AD$3,FALSE)),"",VLOOKUP($AC94,RankData,AD$3,FALSE)) -> 91 | AE94: 8.07 | AF94: Freddy Peralta | AG94: NYM | AH94: SP | AI94: 30 | AJ94: 55 | AK94: 5.08 | AL94: Rnd 5 ADP Bust | AM94: 14 | AN94: =IF(ISNA(VLOOKUP($AC94,RankData,AN$3,FALSE)),"",VLOOKUP($AC94,RankData,AN$3,FALSE)) -> 0 | AO94: 11 | AP94: 3.51 | AQ94: 1.13 | AR94: 2 | AS94: 94 | AT94: 11.92 | AU94: peraltafreddy_P | AV94: 85 | AW94: 37 | AX94: 74 | AY94: 38 | AZ94: 26 | BA94: 38 | BB94: 39
B95: 02_026 | C95: 366 | D95: 31.06 | E95: Miguel Vargas | F95: CHW | G95: 1B,3B | H95: 26 | I95: 280 | J95: 24.05 | K95: Rnd 24 ADP Bust | L95: 0.329 | M95: 90 | N95: 19 | O95: 76 | P95: 11 | Q95: 135 | R95: 55 | S95: 2.8 | T95: vargasmiguel_B | U95: 57 | V95: 81 | W95: 59 | X95: 70 | Y95: 47 | Z95: 63 | AA95: 70 | AB95: 92 | AC95: 99_092 | AD95: 92 | AE95: 8.08 | AF95: Eugenio Suarez | AG95: CIN | AH95: 3B | AI95: 34 | AJ95: 85 | AK95: 8.02 | AL95: Good Value in Rnd 8 | AM95: 0.335 | AN95: 84 | AO95: 36 | AP95: 99 | AQ95: 3 | AR95: 140 | AS95: 61 | AT95: 11.72 | AU95: suarezeugenio_B | AV95: 63 | AW95: 75 | AX95: 93 | AY95: 89 | AZ95: 29 | BA95: 67 | BB95: 78
B96: 02_027 | C96: 380 | D96: 32.08 | E96: Jake Burger | F96: TEX | G96: 1B | H96: 30 | I96: 256 | J96: 22.05 | K96: Rnd 22 ADP Bust | L96: 0.299 | M96: 70 | N96: 28 | O96: 79 | P96: 1 | Q96: 140 | R96: 58 | S96: 2.82 | T96: burgerjake_B | U96: 28 | V96: 57 | W96: 82 | X96: 73 | Y96: 25 | Z96: 67 | AA96: 74 | AB96: 93 | AC96: 99_093 | AD96: 93 | AE96: 8.09 | AF96: Luis Robert | AG96: NYM | AH96: OF | AI96: 28 | AJ96: 126 | AK96: 11.07 | AL96: Rnd 11 ADP Bargain | AM96: 0.314 | AN96: 81 | AO96: 26 | AP96: 77 | AQ96: 29 | AR96: 154 | AS96: 59 | AT96: 11.66 | AU96: robertluis_B | AV96: 42 | AW96: 72 | AX96: 78 | AY96: 71 | AZ96: 83 | BA96: 77 | BB96: 76
B97: 02_028 | C97: 388 | D97: 33.04 | E97: Rhys Hoskins | F97: CLE | G97: 1B | H97: 33 | I97: 542 | J97: 46.03 | K97: Rnd 46 ADP Bargain | L97: 0.348 | M97: 75 | N97: 29 | O97: 84 | P97: 4 | Q97: 135 | R97: 66 | S97: 2.78 | T97: hoskinsrhys_B | U97: 74 | V97: 64 | W97: 84 | X97: 78 | Y97: 31 | Z97: 63 | AA97: 84 | AB97: 94 | AC97: 99_094 | AD97: 94 | AE97: 8.10 | AF97: Spencer Strider | AG97: ATL | AH97: SP | AI97: 27 | AJ97: 101 | AK97: 9.06 | AL97: Rnd 9 ADP Bargain | AM97: 14 | AN97: 0 | AO97: 12.2 | AP97: 3.79 | AQ97: 1.18 | AR97: 1 | AS97: 97 | AT97: 11.5 | AU97: striderspencer_P | AV97: 85 | AW97: 37 | AX97: 88 | AY97: 51 | AZ97: 36 | BA97: 34 | BB97: 72
B98: 02_029 | C98: 397 | D98: 34.01 | E98: Coby Mayo | F98: BAL | G98: 1B | H98: 24 | I98: 396 | J98: 34.01 | K98: Good Value in Rnd 34 | L98: 0.314 | M98: 70 | N98: 22 | O98: 73 | P98: 6 | Q98: 128 | R98: 61 | S98: 2.76 | T98: mayocoby_B | U98: 42 | V98: 57 | W98: 68 | X98: 66 | Y98: 35 | Z98: 57 | AA98: 78 | AB98: 95 | AC98: 99_095 | AD98: 95 | AE98: 8.11 | AF98: Yandy Diaz | AG98: TBR | AH98: 1B | AI98: 35 | AJ98: 117 | AK98: 10.10 | AL98: Rnd 10 ADP Bargain | AM98: 0.381 | AN98: 82 | AO98: 19 | AP98: 76 | AQ98: 2 | AR98: 169 | AS98: 52 | AT98: 11.54 | AU98: diazyandy_B | AV98: 92 | AW98: 73 | AX98: 59 | AY98: 70 | AZ98: 27 | BA98: 85 | BB98: 64
B99: 02_030 | C99: 457 | D99: 39.01 | E99: Kody Clemens | F99: MIN | G99: 1B,2B,OF | H99: 30 | I99: 485 | J99: 41.06 | K99: Rnd 41 ADP Bargain | L99: 0.29 | M99: 55 | N99: 19 | O99: 58 | P99: 6 | Q99: 91 | R99: 42 | S99: 2.76 | T99: clemenskody_B | U99: 22 | V99: 36 | W99: 59 | X99: 46 | Y99: 35 | Z99: 26 | AA99: 46 | AB99: 96 | AC99: 99_096 | AD99: 96 | AE99: 8.12 | AF99: Mike Trout | AG99: LAA | AH99: OF | AI99: 35 | AJ99: 169 | AK99: 15.02 | AL99: Rnd 15 ADP Bargain | AM99: 0.408 | AN99: 104 | AO99: 39 | AP99: 92 | AQ99: 13 | AR99: 162 | AS99: 75 | AT99: 11.28 | AU99: troutmike_B | AV99: 97 | AW99: 91 | AX99: 95 | AY99: 85 | AZ99: 52 | BA99: 82 | BB99: 91
B100: 02_031 | C100: 464 | D100: 39.08 | E100: Andrew Vaughn | F100: MIL | G100: 1B | H100: 28 | I100: 270 | J100: 23.07 | K100: Rnd 23 ADP Bust | L100: 0.316 | M100: 61 | N100: 20 | O100: 79 | P100: 1 | Q100: 147 | R100: 53 | S100: 2.72 | T100: vaughnandrew_B | U100: 44 | V100: 44 | W100: 62 | X100: 73 | Y100: 25 | Z100: 73 | AA100: 66 | AB100: 97 | AC100: 99_097 | AD100: 97 | AE100: 9.01 | AF100: Kyle Stowers | AG100: MIA | AH100: OF | AI100: 28 | AJ100: 123 | AK100: 11.04 | AL100: Rnd 11 ADP Bargain | AM100: 0.33 | AN100: 72 | AO100: 27 | AP100: 89 | AQ100: 5 | AR100: 127 | AS100: 59 | AT100: 11.1 | AU100: stowerskyle_B | AV100: 58 | AW100: 60 | AX100: 80 | AY100: 83 | AZ100: 33 | BA100: 56 | BB100: 76
B101: 02_032 | C101: 473 | D101: 40.05 | E101: Paul Goldschmidt | F101: NYY | G101: 1B | H101: 38 | I101: 502 | J101: 42.11 | K101: Rnd 42 ADP Bargain | L101: 0.371 | M101: 76 | N101: 20 | O101: 67 | P101: 9 | Q101: 139 | R101: 53 | S101: 2.72 | T101: goldschmidtpaul_B | U101: 88 | V101: 66 | W101: 62 | X101: 59 | Y101: 42 | Z101: 67 | AA101: 66 | AB101: 98 | AC101: 99_098 | AD101: 98 | AE101: 9.02 | AF101: Chase Burns | AG101: CIN | AH101: RP | AI101: 23 | AJ101: 108 | AK101: 10.01 | AL101: Rnd 10 ADP Bargain | AM101: 9 | AN101: 0 | AO101: 12.3 | AP101: 3.16 | AQ101: 1.05 | AR101: 2 | AS101: 100 | AT101: 10.78 | AU101: burnschase_P | AV101: 60 | AW101: 37 | AX101: 89 | AY101: 25 | AZ101: 15 | BA101: 38 | BB101: 91
B102: 02_033 | C102: 478 | D102: 40.10 | E102: Edouard Julien | F102: COL | G102: 1B,2B | H102: 27 | I102: 653 | J102: 55.06 | K102: Rnd 55 ADP Bargain | L102: 0.355 | M102: 64 | N102: 15 | O102: 49 | P102: 12 | Q102: 110 | R102: 40 | S102: 2.62 | T102: julienedouard_B | U102: 80 | V102: 49 | W102: 46 | X102: 35 | Y102: 49 | Z102: 41 | AA102: 42 | AB102: 99 | AC102: 99_099 | AD102: 99 | AE102: 9.03 | AF102: Andy Pages | AG102: LAD | AH102: OF | AI102: 25 | AJ102: 132 | AK102: 12.01 | AL102: Rnd 12 ADP Bargain | AM102: 0.318 | AN102: 84 | AO102: 27 | AP102: 85 | AQ102: 10 | AR102: 137 | AS102: 59 | AT102: 10.8 | AU102: pagesandy_B | AV102: 46 | AW102: 75 | AX102: 80 | AY102: 79 | AZ102: 45 | BA102: 65 | BB102: 76
B103: 02_034 | C103: 499 | D103: 42.07 | E103: Nolan Schanuel | F103: LAA | G103: 1B | H103: 24 | I103: 335 | J103: 28.12 | K103: Rnd 28 ADP Bust | L103: 0.362 | M103: 77 | N103: 13 | O103: 60 | P103: 7 | Q103: 152 | R103: 38 | S103: 2.68 | T103: schanuelnolan_B | U103: 84 | V103: 67 | W103: 40 | X103: 49 | Y103: 38 | Z103: 76 | AA103: 38 | AB103: 100 | AC103: 99_100 | AD103: 100 | AE103: 9.04 | AF103: Willy Adames | AG103: SFG | AH103: SS | AI103: 31 | AJ103: 115 | AK103: 10.08 | AL103: Rnd 10 ADP Bargain | AM103: 0.334 | AN103: 87 | AO103: 28 | AP103: 86 | AQ103: 10 | AR103: 143 | AS103: 59 | AT103: 10.64 | AU103: adameswilly_B | AV103: 62 | AW103: 78 | AX103: 82 | AY103: 80 | AZ103: 45 | BA103: 70 | BB103: 76
B104: 02_035 | C104: 509 | D104: 43.05 | E104: Josh Smith | F104: TEX | G104: 1B,3B,SS | H104: 28 | I104: 341 | J104: 29.06 | K104: Rnd 29 ADP Bust | L104: 0.33 | M104: 67 | N104: 12 | O104: 49 | P104: 14 | Q104: 115 | R104: 37 | S104: 2.66 | T104: smithjosh_B | U104: 58 | V104: 53 | W104: 37 | X104: 35 | Y104: 54 | Z104: 46 | AA104: 36 | AB104: 101 | AC104: 99_101 | AD104: =IF(ISNA(VLOOKUP($AC104,RankData,AD$3,FALSE)),"",VLOOKUP($AC104,RankData,AD$3,FALSE)) -> 101 | AE104: 9.05 | AF104: Jacob deGrom | AG104: TEX | AH104: SP | AI104: 38 | AJ104: 48 | AK104: 5.01 | AL104: Rnd 5 ADP Bust | AM104: 12 | AN104: =IF(ISNA(VLOOKUP($AC104,RankData,AN$3,FALSE)),"",VLOOKUP($AC104,RankData,AN$3,FALSE)) -> 0 | AO104: 10.9 | AP104: 2.71 | AQ104: 0.97 | AR104: 0 | AS104: 97 | AT104: 10.42 | AU104: degromjacob_P | AV104: 77 | AW104: 37 | AX104: 73 | AY104: 13 | AZ104: 8 | BA104: 30 | BB104: 72
B105: 02_036 | C105: 529 | D105: 45.01 | E105: Spencer Horwitz | F105: PIT | G105: 1B | H105: 28 | I105: 434 | J105: 37.03 | K105: Rnd 37 ADP Bust | L105: 0.359 | M105: 70 | N105: 13 | O105: 63 | P105: 4 | Q105: 131 | R105: 48 | S105: 2.58 | T105: horwitzspencer_B | U105: 82 | V105: 57 | W105: 40 | X105: 53 | Y105: 31 | Z105: 60 | AA105: 57 | AB105: 102 | AC105: 99_102 | AD105: 102 | AE105: 9.06 | AF105: Michael Harris | AG105: ATL | AH105: OF | AI105: 25 | AJ105: 96 | AK105: 9.01 | AL105: Good Value in Rnd 9 | AM105: 0.313 | AN105: 75 | AO105: 19 | AP105: 80 | AQ105: 24 | AR105: 162 | AS105: 56 | AT105: 10.44 | AU105: harrismichael_B | AV105: 41 | AW105: 64 | AX105: 59 | AY105: 74 | AZ105: 75 | BA105: 82 | BB105: 71
B106: 02_037 | C106: 543 | D106: 46.03 | E106: Ryan O'Hearn | F106: PIT | G106: 1B,OF | H106: 32 | I106: 265 | J106: 23.02 | K106: Rnd 23 ADP Bust | L106: 0.339 | M106: 63 | N106: 20 | O106: 69 | P106: 3 | Q106: 124 | R106: 46 | S106: 2.62 | T106: o'hearnryan_B | U106: 67 | V106: 47 | W106: 62 | X106: 61 | Y106: 29 | Z106: 54 | AA106: 53 | AB106: 103 | AC106: 99_103 | AD106: 103 | AE106: 9.07 | AF106: Aroldis Chapman | AG106: BOS | AH106: RP | AI106: 38 | AJ106: 80 | AK106: 7.09 | AL106: Rnd 7 ADP Bust | AM106: 5 | AN106: 29 | AO106: 13.7 | AP106: 2.57 | AQ106: 1.07 | AR106: 6 | AS106: 100 | AT106: 10.26 | AU106: chapmanaroldis_P | AV106: 34 | AW106: 99 | AX106: 96 | AY106: 10 | AZ106: 17 | BA106: 55 | BB106: 91
B107: 02_038 | C107: 583 | D107: 49.07 | E107: Josh Bell | F107: MIN | G107: 1B | H107: 33 | I107: 403 | J107: 34.08 | K107: Rnd 34 ADP Bust | L107: 0.35 | M107: 71 | N107: 23 | O107: 79 | P107: 0 | Q107: 143 | R107: 54 | S107: 2.52 | T107: belljosh_B | U107: 76 | V107: 59 | W107: 70 | X107: 73 | Y107: 24 | Z107: 70 | AA107: 68 | AB107: 104 | AC107: 99_104 | AD107: 104 | AE107: 9.08 | AF107: Lawrence Butler | AG107: ATH | AH107: OF | AI107: 26 | AJ107: 139 | AK107: 12.08 | AL107: Rnd 12 ADP Bargain | AM107: 0.316 | AN107: 79 | AO107: 20 | AP107: 67 | AQ107: 22 | AR107: 123 | AS107: 50 | AT107: 10.26 | AU107: butlerlawrence_B | AV107: 44 | AW107: 69 | AX107: 62 | AY107: 59 | AZ107: 72 | BA107: 53 | BB107: 61
B108: 02_039 | C108: 610 | D108: 51.10 | E108: Triston Casas | F108: BOS | G108: 1B | H108: 26 | I108: 464 | J108: 39.09 | K108: Rnd 39 ADP Bust | L108: 0.339 | M108: 53 | N108: 17 | O108: 54 | P108: 2 | Q108: 109 | R108: 46 | S108: 2.52 | T108: casastriston_B | U108: 67 | V108: 33 | W108: 53 | X108: 41 | Y108: 27 | Z108: 40 | AA108: 53 | AB108: 105 | AC108: 99_105 | AD108: 105 | AE108: 9.09 | AF108: Emmet Sheehan | AG108: LAD | AH108: SP | AI108: 26 | AJ108: 127 | AK108: 11.08 | AL108: Rnd 11 ADP Bargain | AM108: 15 | AN108: 0 | AO108: 11.7 | AP108: 3.38 | AQ108: 1.05 | AR108: 0 | AS108: 96 | AT108: 10.1 | AU108: sheehanemmet_P | AV108: 88 | AW108: 37 | AX108: 83 | AY108: 33 | AZ108: 15 | BA108: 30 | BB108: 62
B109: 02_040 | C109: 626 | D109: 53.02 | E109: Jared Triolo | F109: PIT | G109: 1B,3B,SS | H109: 28 | I109: 525 | J109: 44.10 | K109: Rnd 44 ADP Bust | L109: 0.329 | M109: 70 | N109: 11 | O109: 54 | P109: 20 | Q109: 133 | R109: 42 | S109: 2.48 | T109: triolojared_B | U109: 57 | V109: 57 | W109: 34 | X109: 41 | Y109: 68 | Z109: 62 | AA109: 46 | AB109: 106 | AC109: 99_106 | AD109: 106 | AE109: 9.10 | AF109: Tyler Soderstrom | AG109: ATH | AH109: 1B,OF | AI109: 24 | AJ109: 86 | AK109: 8.03 | AL109: Fair Value in Rnd 9 | AM109: 0.315 | AN109: 71 | AO109: 27 | AP109: 92 | AQ109: 4 | AR109: 136 | AS109: 59 | AT109: 10.24 | AU109: soderstromtyler_B | AV109: 43 | AW109: 59 | AX109: 80 | AY109: 85 | AZ109: 31 | BA109: 64 | BB109: 76
B110: 02_041 | C110: 627 | D110: 53.03 | E110: Lenyn Sosa | F110: CHW | G110: 1B,2B | H110: 26 | I110: 346 | J110: 29.11 | K110: Rnd 29 ADP Bust | L110: 0.29 | M110: 62 | N110: 20 | O110: 70 | P110: 3 | Q110: 146 | R110: 48 | S110: 2.48 | T110: sosalenyn_B | U110: 22 | V110: 46 | W110: 62 | X110: 63 | Y110: 29 | Z110: 72 | AA110: 57 | AB110: 107 | AC110: 99_107 | AD110: 107 | AE110: 9.11 | AF110: Ozzie Albies | AG110: ATL | AH110: 2B | AI110: 29 | AJ110: 135 | AK110: 12.04 | AL110: Rnd 12 ADP Bargain | AM110: 0.327 | AN110: 91 | AO110: 22 | AP110: 87 | AQ110: 14 | AR110: 169 | AS110: 66 | AT110: 10.18 | AU110: albiesozzie_B | AV110: 55 | AW110: 82 | AX110: 68 | AY110: 81 | AZ110: 54 | BA110: 85 | BB110: 84
B111: 02_042 | C111: 629 | D111: 53.05 | E111: Luke Raley | F111: SEA | G111: 1B,OF | H111: 31 | I111: 540 | J111: 46.01 | K111: Rnd 46 ADP Bust | L111: 0.306 | M111: 58 | N111: 19 | O111: 59 | P111: 9 | Q111: 105 | R111: 43 | S111: 2.42 | T111: raleyluke_B | U111: 35 | V111: 40 | W111: 59 | X111: 48 | Y111: 42 | Z111: 37 | AA111: 48 | AB111: 108 | AC111: 99_108 | AD111: 108 | AE111: 9.12 | AF111: Teoscar Hernandez | AG111: LAD | AH111: OF | AI111: 33 | AJ111: 110 | AK111: 10.03 | AL111: Rnd 10 ADP Bargain | AM111: 0.325 | AN111: 80 | AO111: 31 | AP111: 94 | AQ111: 8 | AR111: 154 | AS111: 66 | AT111: 10.16 | AU111: hernandezteoscar_B | AV111: 53 | AW111: 71 | AX111: 87 | AY111: 86 | AZ111: 40 | BA111: 77 | BB111: 84
B112: 02_043 | C112: 642 | D112: 54.06 | E112: Dominic Smith | F112: ATL | G112: 1B | H112: 31 | I112: 939 | J112: 79.04 | K112: Waiver Wire | L112: 0.318 | M112: 51 | N112: 13 | O112: 54 | P112: 3 | Q112: 110 | R112: 40 | S112: 2.46 | T112: smithdominic_B | U112: 46 | V112: 31 | W112: 40 | X112: 41 | Y112: 29 | Z112: 41 | AA112: 42 | AB112: 109 | AC112: 99_109 | AD112: 109 | AE112: 10.01 | AF112: Jacob Misiorowski | AG112: MIL | AH112: SP | AI112: 24 | AJ112: 116 | AK112: 10.09 | AL112: Good Value in Rnd 10 | AM112: 12 | AN112: 0 | AO112: 11 | AP112: 3.56 | AQ112: 1.23 | AR112: 0 | AS112: 99 | AT112: 9.96 | AU112: misiorowskijacob_P | AV112: 77 | AW112: 37 | AX112: 74 | AY112: 41 | AZ112: 47 | BA112: 30 | BB112: 87
B113: 02_044 | C113: 644 | D113: 54.08 | E113: Jake Bauers | F113: MIL | G113: 1B,OF | H113: 30 | I113: 557 | J113: 47.06 | K113: Rnd 47 ADP Bust | L113: 0.321 | M113: 43 | N113: 13 | O113: 43 | P113: 9 | Q113: 76 | R113: 32 | S113: 2.46 | T113: bauersjake_B | U113: 49 | V113: 22 | W113: 40 | X113: 27 | Y113: 42 | Z113: 17 | AA113: 28 | AB113: 110 | AC113: 99_110 | AD113: 110 | AE113: 10.02 | AF113: Brandon Nimmo | AG113: TEX | AH113: OF | AI113: 33 | AJ113: 125 | AK113: 11.06 | AL113: Rnd 11 ADP Bargain | AM113: 0.361 | AN113: 87 | AO113: 21 | AP113: 72 | AQ113: 9 | AR113: 145 | AS113: 53 | AT113: 9.76 | AU113: nimmobrandon_B | AV113: 83 | AW113: 78 | AX113: 65 | AY113: 65 | AZ113: 42 | BA113: 71 | BB113: 66
B114: 02_045 | C114: 645 | D114: 54.09 | E114: Liam Hicks | F114: MIA | G114: C,1B | H114: 27 | I114: 632 | J114: 53.09 | K114: Waiver Wire | L114: 0.339 | M114: 45 | N114: 6 | O114: 47 | P114: 4 | Q114: 94 | R114: 23 | S114: 2.46 | T114: hicksliam_B | U114: 67 | V114: 24 | W114: 21 | X114: 32 | Y114: 31 | Z114: 28 | AA114: 16 | AB114: 111 | AC114: 99_111 | AD114: =IF(ISNA(VLOOKUP($AC114,RankData,AD$3,FALSE)),"",VLOOKUP($AC114,RankData,AD$3,FALSE)) -> 111 | AE114: 10.03 | AF114: Tyler Glasnow | AG114: LAD | AH114: SP | AI114: 33 | AJ114: 102 | AK114: 9.07 | AL114: Fair Value in Rnd 10 | AM114: 13 | AN114: =IF(ISNA(VLOOKUP($AC114,RankData,AN$3,FALSE)),"",VLOOKUP($AC114,RankData,AN$3,FALSE)) -> 0 | AO114: 11.3 | AP114: 3.64 | AQ114: 1.15 | AR114: 1 | AS114: 96 | AT114: 9.66 | AU114: glasnowtyler_P | AV114: 81 | AW114: 37 | AX114: 78 | AY114: 44 | AZ114: 30 | BA114: 34 | BB114: 62
B115: 02_046 | C115: 648 | D115: 54.12 | E115: Tim Tawa | F115: ARI | G115: 1B,2B,OF | H115: 27 | I115: 418 | J115: 35.11 | K115: Rnd 35 ADP Bust | L115: 0.293 | M115: 55 | N115: 15 | O115: 51 | P115: 11 | Q115: 102 | R115: 40 | S115: 2.42 | T115: tawatim_B | U115: 24 | V115: 36 | W115: 46 | X115: 37 | Y115: 47 | Z115: 35 | AA115: 42 | AB115: 112 | AC115: 99_112 | AD115: 112 | AE115: 10.04 | AF115: Nolan McLean | AG115: NYM | AH115: SP | AI115: 25 | AJ115: 94 | AK115: 8.11 | AL115: Rnd 8 ADP Bust | AM115: 13 | AN115: 0 | AO115: 9 | AP115: 2.98 | AQ115: 1.18 | AR115: 0 | AS115: 96 | AT115: 9.68 | AU115: mcleannolan_P | AV115: 81 | AW115: 37 | AX115: 38 | AY115: 19 | AZ115: 36 | BA115: 30 | BB115: 62
B116: 02_047 | C116: 657 | D116: 55.09 | E116: Ryan Mountcastle | F116: BAL | G116: 1B | H116: 29 | I116: 361 | J116: 31.02 | K116: Rnd 31 ADP Bust | L116: 0.319 | M116: 54 | N116: 17 | O116: 64 | P116: 3 | Q116: 130 | R116: 46 | S116: 2.42 | T116: mountcastleryan_B | U116: 47 | V116: 35 | W116: 53 | X116: 55 | Y116: 29 | Z116: 59 | AA116: 53 | AB116: 113 | AC116: 99_113 | AD116: 113 | AE116: 10.05 | AF116: CJ Abrams | AG116: WSN | AH116: SS | AI116: 25 | AJ116: 69 | AK116: 6.10 | AL116: Rnd 6 ADP Bust | AM116: 0.308 | AN116: 90 | AO116: 17 | AP116: 67 | AQ116: 36 | AR116: 152 | AS116: 55 | AT116: 9.72 | AU116: abramscj_B | AV116: 36 | AW116: 81 | AX116: 53 | AY116: 59 | AZ116: 90 | BA116: 76 | BB116: 70
B117: 02_048 | C117: 660 | D117: 55.12 | E117: Nathaniel Lowe | F117: CIN | G117: 1B | H117: 30 | I117: 362 | J117: 31.03 | K117: Rnd 31 ADP Bust | L117: 0.351 | M117: 57 | N117: 15 | O117: 61 | P117: 2 | Q117: 121 | R117: 39 | S117: 2.46 | T117: lowenathaniel_B | U117: 77 | V117: 39 | W117: 46 | X117: 50 | Y117: 27 | Z117: 51 | AA117: 40 | AB117: 114 | AC117: 99_114 | AD117: 114 | AE117: 10.06 | AF117: Matt McLain | AG117: CIN | AH117: 2B | AI117: 26 | AJ117: 172 | AK117: 15.05 | AL117: Rnd 15 ADP Bargain | AM117: 0.325 | AN117: 86 | AO117: 21 | AP117: 73 | AQ117: 26 | AR117: 137 | AS117: 56 | AT117: 9.62 | AU117: mclainmatt_B | AV117: 53 | AW117: 77 | AX117: 65 | AY117: 66 | AZ117: 79 | BA117: 65 | BB117: 71
B118: 02_049 | C118: 723 | D118: 61.03 | E118: Romy Gonzalez | F118: BOS | G118: 1B,2B | H118: 29 | I118: 405 | J118: 34.10 | K118: Rnd 34 ADP Bust | L118: 0.32 | M118: 45 | N118: 12 | O118: 49 | P118: 12 | Q118: 86 | R118: 32 | S118: 2.4 | T118: gonzalezromy_B | U118: 48 | V118: 24 | W118: 37 | X118: 35 | Y118: 49 | Z118: 23 | AA118: 28 | AB118: 115 | AC118: 99_115 | AD118: 115 | AE118: 10.07 | AF118: Jo Adell | AG118: LAA | AH118: OF | AI118: 27 | AJ118: 119 | AK118: 10.12 | AL118: Good Value in Rnd 10 | AM118: 0.296 | AN118: 73 | AO118: 32 | AP118: 90 | AQ118: 10 | AR118: 125 | AS118: 59 | AT118: 9.58 | AU118: adelljo_B | AV118: 26 | AW118: 62 | AX118: 88 | AY118: 83 | AZ118: 45 | BA118: 55 | BB118: 76
B119: 02_050 | C119: 734 | D119: 62.02 | E119: Carlos Santana | F119: ARI | G119: 1B | H119: 40 | I119: 698 | J119: 59.03 | K119: Waiver Wire | L119: 0.345 | M119: 72 | N119: 22 | O119: 74 | P119: 4 | Q119: 135 | R119: 53 | S119: 2.32 | T119: santanacarlos_B | U119: 72 | V119: 60 | W119: 68 | X119: 67 | Y119: 31 | Z119: 63 | AA119: 66 | AB119: 116 | AC119: 99_116 | AD119: 116 | AE119: 10.08 | AF119: Cam Schlittler | AG119: NYY | AH119: SP | AI119: 25 | AJ119: 128 | AK119: 11.09 | AL119: Rnd 11 ADP Bargain | AM119: 14 | AN119: 0 | AO119: 9.9 | AP119: 3.32 | AQ119: 1.28 | AR119: 0 | AS119: 98 | AT119: 9.14 | AU119: schlittlercam_P | AV119: 85 | AW119: 37 | AX119: 55 | AY119: 31 | AZ119: 59 | BA119: 30 | BB119: 80
B120: 02_051 | C120: 744 | D120: 62.12 | E120: Pavin Smith | F120: ARI | G120: 1B | H120: 30 | I120: 359 | J120: 30.12 | K120: Rnd 30 ADP Bust | L120: 0.355 | M120: 62 | N120: 15 | O120: 61 | P120: 2 | Q120: 117 | R120: 43 | S120: 2.26 | T120: smithpavin_B | U120: 80 | V120: 46 | W120: 46 | X120: 50 | Y120: 27 | Z120: 47 | AA120: 48 | AB120: 117 | AC120: 99_117 | AD120: 117 | AE120: 10.09 | AF120: Joe Ryan | AG120: MIN | AH120: SP | AI120: 30 | AJ120: 71 | AK120: 6.12 | AL120: Rnd 6 ADP Bust | AM120: 12 | AN120: 0 | AO120: 10.3 | AP120: 3.7 | AQ120: 1.04 | AR120: 0 | AS120: 93 | AT120: 8.96 | AU120: ryanjoe_P | AV120: 77 | AW120: 37 | AX120: 63 | AY120: 47 | AZ120: 13 | BA120: 30 | BB120: 28
B121: 02_052 | C121: 754 | D121: 63.10 | E121: Endy Rodriguez | F121: PIT | G121: 1B | H121: 26 | I121: 739 | J121: 62.08 | K121: Waiver Wire | L121: 0.321 | M121: 57 | N121: 12 | O121: 50 | P121: 3 | Q121: 97 | R121: 39 | S121: 2.36 | T121: rodriguezendy_B | U121: 49 | V121: 39 | W121: 37 | X121: 36 | Y121: 29 | Z121: 31 | AA121: 40 | AB121: 118 | AC121: 99_118 | AD121: 118 | AE121: 10.10 | AF121: Michael King | AG121: SDP | AH121: SP | AI121: 31 | AJ121: 121 | AK121: 11.02 | AL121: Rnd 11 ADP Bargain | AM121: 12 | AN121: 1 | AO121: 10.1 | AP121: 3.4 | AQ121: 1.2 | AR121: 8 | AS121: 94 | AT121: 8.88 | AU121: kingmichael_P | AV121: 77 | AW121: 42 | AX121: 59 | AY121: 34 | AZ121: 41 | BA121: 63 | BB121: 39
B122: 02_053 | C122: 776 | D122: 65.08 | E122: Tyler Locklear | F122: ARI | G122: 1B | H122: 25 | I122: 1049 | J122: 88.06 | K122: Waiver Wire | L122: 0.317 | M122: 65 | N122: 16 | O122: 65 | P122: 11 | Q122: 117 | R122: 46 | S122: 2.32 | T122: lockleartyler_B | U122: 45 | V122: 50 | W122: 49 | X122: 56 | Y122: 47 | Z122: 47 | AA122: 53 | AB122: 119 | AC122: 99_119 | AD122: 119 | AE122: 10.11 | AF122: Gavin Williams | AG122: CLE | AH122: SP | AI122: 27 | AJ122: 141 | AK122: 12.10 | AL122: Rnd 12 ADP Bargain | AM122: 14 | AN122: 0 | AO122: 9.7 | AP122: 3.2 | AQ122: 1.21 | AR122: 0 | AS122: 96 | AT122: 8.8 | AU122: williamsgavin_P | AV122: 85 | AW122: 37 | AX122: 51 | AY122: 26 | AZ122: 43 | BA122: 30 | BB122: 62
B123: 02_054 | C123: 778 | D123: 65.10 | E123: Christian Encarnacion-Strand | F123: CIN | G123: 1B | H123: 26 | I123: 422 | J123: 36.03 | K123: Rnd 36 ADP Bust | L123: 0.303 | M123: 50 | N123: 18 | O123: 62 | P123: 3 | Q123: 109 | R123: 50 | S123: 2.2 | T123: encarnacion-strandchristian_B | U123: 32 | V123: 30 | W123: 56 | X123: 52 | Y123: 29 | Z123: 40 | AA123: 61 | AB123: 120 | AC123: 99_120 | AD123: 120 | AE123: 10.12 | AF123: Brandon Woodruff | AG123: MIL | AH123: SP | AI123: 33 | AJ123: 120 | AK123: 11.01 | AL123: Rnd 11 ADP Bargain | AM123: 18 | AN123: 0 | AO123: 10.4 | AP123: 3.17 | AQ123: 1.04 | AR123: 1 | AS123: 96 | AT123: 8.72 | AU123: woodruffbrandon_P | AV123: 94 | AW123: 37 | AX123: 64 | AY123: 25 | AZ123: 13 | BA123: 34 | BB123: 62
B124: 02_055 | C124: 806 | D124: 68.02 | E124: TJ Rumfield | F124: COL | G124: 1B | H124: 26 | I124: 544 | J124: 46.05 | K124: Rnd 46 ADP Bust | L124: 0.313 | M124: 55 | N124: 12 | O124: 58 | P124: 5 | Q124: 103 | R124: 35 | S124: 2.16 | T124: rumfieldtj_B | U124: 41 | V124: 36 | W124: 37 | X124: 46 | Y124: 33 | Z124: 35 | AA124: 33 | AB124: 121 | AC124: 99_121 | AD124: =IF(ISNA(VLOOKUP($AC124,RankData,AD$3,FALSE)),"",VLOOKUP($AC124,RankData,AD$3,FALSE)) -> 121 | AE124: 11.01 | AF124: Kevin Gausman | AG124: TOR | AH124: SP | AI124: 35 | AJ124: 98 | AK124: 9.03 | AL124: Rnd 9 ADP Bust | AM124: 15 | AN124: =IF(ISNA(VLOOKUP($AC124,RankData,AN$3,FALSE)),"",VLOOKUP($AC124,RankData,AN$3,FALSE)) -> 0 | AO124: 9.3 | AP124: 3.75 | AQ124: 1.21 | AR124: 0 | AS124: 95 | AT124: 8.78 | AU124: gausmankevin_P | AV124: 88 | AW124: 37 | AX124: 44 | AY124: 49 | AZ124: 43 | BA124: 30 | BB124: 50
B125: 02_056 | C125: 837 | D125: 70.09 | E125: Blaine Crim | F125: COL | G125: 1B | H125: 29 | I125: 806 | J125: 68.03 | K125: Waiver Wire | L125: 0.314 | M125: 59 | N125: 17 | O125: 64 | P125: 2 | Q125: 121 | R125: 46 | S125: 2.14 | T125: crimblaine_B | U125: 42 | V125: 42 | W125: 53 | X125: 55 | Y125: 27 | Z125: 51 | AA125: 53 | AB125: 122 | AC125: 99_122 | AD125: 122 | AE125: 11.02 | AF125: Kyle Bradish | AG125: BAL | AH125: SP | AI125: 29 | AJ125: 81 | AK125: 7.10 | AL125: Rnd 7 ADP Bust | AM125: 11 | AN125: 0 | AO125: 10.2 | AP125: 3.4 | AQ125: 1.16 | AR125: 0 | AS125: 95 | AT125: 8.76 | AU125: bradishkyle_P | AV125: 72 | AW125: 37 | AX125: 61 | AY125: 34 | AZ125: 32 | BA125: 30 | BB125: 50
B126: 02_057 | C126: 985 | D126: 83.01 | E126: Ezequiel Duran | F126: TEX | G126: 1B,SS | H126: 27 | I126: 914 | J126: 77.03 | K126: Waiver Wire | L126: 0.295 | M126: 50 | N126: 11 | O126: 48 | P126: 13 | Q126: 112 | R126: 43 | S126: 1.96 | T126: duranezequiel_B | U126: 25 | V126: 30 | W126: 34 | X126: 33 | Y126: 52 | Z126: 43 | AA126: 48 | AB126: 123 | AC126: 99_123 | AD126: 123 | AE126: 11.03 | AF126: Logan Webb | AG126: SFG | AH126: SP | AI126: 29 | AJ126: 44 | AK126: 4.09 | AL126: Rnd 4 ADP Bust | AM126: 14 | AN126: 0 | AO126: 8.6 | AP126: 3.35 | AQ126: 1.2 | AR126: 0 | AS126: 93 | AT126: 8.48 | AU126: webblogan_P | AV126: 85 | AW126: 37 | AX126: 31 | AY126: 32 | AZ126: 41 | BA126: 30 | BB126: 28
B127: 02_058 | C127: 989 | D127: 83.05 | E127: Eric Wagaman | F127: MIN | G127: 1B,OF | H127: 28 | I127: 749 | J127: 63.06 | K127: Waiver Wire | L127: 0.299 | M127: 49 | N127: 12 | O127: 47 | P127: 7 | Q127: 102 | R127: 38 | S127: 2 | T127: wagamaneric_B | U127: 28 | V127: 28 | W127: 37 | X127: 32 | Y127: 38 | Z127: 35 | AA127: 38 | AB127: 124 | AC127: 99_124 | AD127: 124 | AE127: 11.04 | AF127: Framber Valdez | AG127: DET | AH127: SP | AI127: 32 | AJ127: 74 | AK127: 7.03 | AL127: Rnd 7 ADP Bust | AM127: 15 | AN127: 0 | AO127: 8.8 | AP127: 3.4 | AQ127: 1.22 | AR127: 0 | AS127: 94 | AT127: 8.38 | AU127: valdezframber_P | AV127: 88 | AW127: 37 | AX127: 34 | AY127: 34 | AZ127: 45 | BA127: 30 | BB127: 39
B128: 02_059 | C128: 992 | D128: 83.08 | E128: Ty France | F128: SDP | G128: 1B | H128: 31 | I128: 771 | J128: 65.04 | K128: Waiver Wire | L128: 0.32 | M128: 50 | N128: 10 | O128: 50 | P128: 0 | Q128: 119 | R128: 37 | S128: 2 | T128: francety_B | U128: 48 | V128: 30 | W128: 31 | X128: 36 | Y128: 24 | Z128: 49 | AA128: 36 | AB128: 125 | AC128: 99_125 | AD128: 125 | AE128: 11.05 | AF128: Jakob Marsee | AG128: MIA | AH128: OF | AI128: 25 | AJ128: 140 | AK128: 12.09 | AL128: Rnd 12 ADP Bargain | AM128: 0.331 | AN128: 82 | AO128: 13 | AP128: 50 | AQ128: 45 | AR128: 118 | AS128: 41 | AT128: 8.42 | AU128: marseejakob_B | AV128: 59 | AW128: 73 | AX128: 40 | AY128: 36 | AZ128: 96 | BA128: 48 | BB128: 44
B129: 02_060 | C129: 1066 | D129: 89.10 | E129: Tyler Black | F129: MIL | G129: 1B | H129: 26 | I129: 987 | J129: 83.04 | K129: Waiver Wire | L129: 0.334 | M129: 54 | N129: 9 | O129: 45 | P129: 21 | Q129: 88 | R129: 31 | S129: 1.86 | T129: blacktyler_B | U129: 62 | V129: 35 | W129: 29 | X129: 30 | Y129: 70 | Z129: 24 | AA129: 27 | AB129: 126 | AC129: 99_126 | AD129: 126 | AE129: 11.06 | AF129: Nick Pivetta | AG129: SDP | AH129: SP | AI129: 33 | AJ129: 92 | AK129: 8.09 | AL129: Rnd 8 ADP Bust | AM129: 13 | AN129: 0 | AO129: 9.8 | AP129: 4.22 | AQ129: 1.22 | AR129: 1 | AS129: 94 | AT129: 8.28 | AU129: pivettanick_P | AV129: 81 | AW129: 37 | AX129: 53 | AY129: 69 | AZ129: 45 | BA129: 34 | BB129: 39
B130: 02_061 | C130: 1095 | D130: 92.03 | E130: LaMonte Wade | F130: CHW | G130: 1B,OF | H130: 32 | I130: 977 | J130: 82.06 | K130: Waiver Wire | L130: 0.345 | M130: 42 | N130: 10 | O130: 35 | P130: 2 | Q130: 74 | R130: 26 | S130: 1.9 | T130: wadelamonte_B | U130: 72 | V130: 21 | W130: 31 | X130: 20 | Y130: 27 | Z130: 16 | AA130: 20 | AB130: 127 | AC130: 99_127 | AD130: 127 | AE130: 11.07 | AF130: Ryan Helsley | AG130: BAL | AH130: RP | AI130: 31 | AJ130: 112 | AK130: 10.05 | AL130: Fair Value in Rnd 11 | AM130: 6 | AN130: 24 | AO130: 10.5 | AP130: 3.26 | AQ130: 1.23 | AR130: 6 | AS130: 99 | AT130: 8.2 | AU130: helsleyryan_P | AV130: 40 | AW130: 98 | AX130: 66 | AY130: 29 | AZ130: 47 | BA130: 55 | BB130: 87
B131: 02_062 | C131: 1168 | D131: 98.04 | E131: Curtis Mead | F131: CHW | G131: 1B,3B | H131: 25 | I131: 963 | J131: 81.04 | K131: Waiver Wire | L131: 0.311 | M131: 52 | N131: 11 | O131: 45 | P131: 8 | Q131: 115 | R131: 44 | S131: 1.76 | T131: meadcurtis_B | U131: 39 | V131: 32 | W131: 34 | X131: 30 | Y131: 40 | Z131: 46 | AA131: 50 | AB131: 128 | AC131: 99_128 | AD131: 128 | AE131: 11.08 | AF131: Yainer Diaz | AG131: HOU | AH131: C | AI131: 27 | AJ131: 144 | AK131: 13.01 | AL131: Rnd 13 ADP Bargain | AM131: 0.315 | AN131: 72 | AO131: 24 | AP131: 92 | AQ131: 2 | AR131: 167 | AS131: 58 | AT131: 8.2 | AU131: diazyainer_B | AV131: 43 | AW131: 60 | AX131: 73 | AY131: 85 | AZ131: 27 | BA131: 84 | BB131: 74
B132: 02_063 | C132: 1270 | D132: 106.10 | E132: Enmanuel Valdez | F132: PIT | G132: 1B | H132: 27 | I132: 1433 | J132: 120.06 | K132: Waiver Wire | L132: 0.311 | M132: 46 | N132: 15 | O132: 55 | P132: 5 | Q132: 85 | R132: 38 | S132: 1.5 | T132: valdezenmanuel_B | U132: 39 | V132: 25 | W132: 46 | X132: 42 | Y132: 33 | Z132: 22 | AA132: 38 | AB132: 129 | AC132: 99_129 | AD132: 129 | AE132: 11.09 | AF132: Eury Perez | AG132: MIA | AH132: SP | AI132: 23 | AJ132: 89 | AK132: 8.06 | AL132: Rnd 8 ADP Bust | AM132: 11 | AN132: 0 | AO132: 10.6 | AP132: 3.47 | AQ132: 1.07 | AR132: 0 | AS132: 98 | AT132: 7.9 | AU132: perezeury_P | AV132: 72 | AW132: 37 | AX132: 68 | AY132: 37 | AZ132: 17 | BA132: 30 | BB132: 80
B133: 02_064 | C133: 1361 | D133: 114.05 | E133: Michael Toglia | F133: CIN | G133: 1B | H133: 27 | I133: 1415 | J133: 118.12 | K133: Waiver Wire | L133: 0.296 | M133: 44 | N133: 16 | O133: 50 | P133: 4 | Q133: 83 | R133: 38 | S133: 1.36 | T133: togliamichael_B | U133: =IF(RIGHT($T133,1)="B",ROUND(100*EXP((L133-BO$6)/BO$7)/(1+EXP((L133-BO$6)/BO$7)),0),ROUND(100*EXP((L133-BO$9)/BO$10)/(1+EXP((L133-BO$9)/BO$10)),0)) -> 26 | V133: =IF(RIGHT($T133,1)="B",ROUND(100*EXP((M133-BP$6)/BP$7)/(1+EXP((M133-BP$6)/BP$7)),0),ROUND(100*EXP((M133-BP$9)/BP$10)/(1+EXP((M133-BP$9)/BP$10)),0)) -> 23 | W133: =IF(RIGHT($T133,1)="B",ROUND(100*EXP((N133-BQ$6)/BQ$7)/(1+EXP((N133-BQ$6)/BQ$7)),0),ROUND(100*EXP((N133-BQ$9)/BQ$10)/(1+EXP((N133-BQ$9)/BQ$10)),0)) -> 49 | X133: =IF(RIGHT($T133,1)="B",ROUND(100*EXP((O133-BR$6)/BR$7)/(1+EXP((O133-BR$6)/BR$7)),0),ROUND(100*EXP((O133-BR$9)/BR$10)/(1+EXP((O133-BR$9)/BR$10)),0)) -> 36 | Y133: =IF(RIGHT($T133,1)="B",ROUND(100*EXP((P133-BS$6)/BS$7)/(1+EXP((P133-BS$6)/BS$7)),0),ROUND(100*EXP((P133-BS$9)/BS$10)/(1+EXP((P133-BS$9)/BS$10)),0)) -> 31 | Z133: =IF(RIGHT($T133,1)="B",ROUND(100*EXP((Q133-BT$6)/BT$7)/(1+EXP((Q133-BT$6)/BT$7)),0),ROUND(100*EXP((Q133-BT$9)/BT$10)/(1+EXP((Q133-BT$9)/BT$10)),0)) -> 21 | AA133: =IF(RIGHT($T133,1)="B",ROUND(100*EXP((R133-BU$6)/BU$7)/(1+EXP((R133-BU$6)/BU$7)),0),ROUND(100*EXP((R133-BU$9)/BU$10)/(1+EXP((R133-BU$9)/BU$10)),0)) -> 38 | AB133: 130 | AC133: =$AC$1&TEXT($AB133,"000") -> 99_130 | AD133: 130 | AE133: 11.10 | AF133: Carlos Estevez | AG133: KCR | AH133: RP | AI133: 33 | AJ133: 134 | AK133: 12.03 | AL133: Rnd 12 ADP Bargain | AM133: 5 | AN133: 24 | AO133: 8.9 | AP133: 3.82 | AQ133: 1.29 | AR133: 9 | AS133: 98 | AT133: 7.96 | AU133: estevezcarlos_P | AV133: 34 | AW133: 98 | AX133: 36 | AY133: 52 | AZ133: 61 | BA133: 67 | BB133: 80
B134: 02_065 | C134: 1364 | D134: 114.08 | E134: Justin Foscue | F134: TEX | G134: 1B | H134: 27 | I134: 1448 | J134: 121.09 | K134: Waiver Wire | L134: 0.311 | M134: 54 | N134: 14 | O134: 55 | P134: 6 | Q134: 91 | R134: 41 | S134: 1.36 | T134: foscuejustin_B | U134: 39 | V134: 35 | W134: 43 | X134: 42 | Y134: 35 | Z134: 26 | AA134: 44 | AB134: 131 | AC134: 99_131 | AD134: =IF(ISNA(VLOOKUP($AC134,RankData,AD$3,FALSE)),"",VLOOKUP($AC134,RankData,AD$3,FALSE)) -> 131 | AE134: 11.11 | AF134: Tanner Bibee | AG134: CLE | AH134: SP | AI134: 27 | AJ134: 166 | AK134: 14.11 | AL134: Rnd 14 ADP Bargain | AM134: 16 | AN134: =IF(ISNA(VLOOKUP($AC134,RankData,AN$3,FALSE)),"",VLOOKUP($AC134,RankData,AN$3,FALSE)) -> 0 | AO134: 9.1 | AP134: 3.46 | AQ134: 1.15 | AR134: 0 | AS134: 95 | AT134: 7.72 | AU134: bibeetanner_P | AV134: 91 | AW134: 37 | AX134: 40 | AY134: 36 | AZ134: 30 | BA134: 30 | BB134: 50
B135: 02_066 | C135: 1393 | D135: 117.01 | E135: Abraham Toro | F135: KCR | G135: 1B | H135: 29 | I135: 1451 | J135: 121.12 | K135: Waiver Wire | L135: 0.306 | M135: 48 | N135: 11 | O135: 47 | P135: 6 | Q135: 99 | R135: 35 | S135: 1.3 | T135: toroabraham_B | U135: 35 | V135: 27 | W135: 34 | X135: 32 | Y135: 35 | Z135: 32 | AA135: 33 | AB135: 132 | AC135: 99_132 | AD135: 132 | AE135: 11.12 | AF135: Daniel Palencia | AG135: CHC | AH135: RP | AI135: 26 | AJ135: 142 | AK135: 12.11 | AL135: Rnd 12 ADP Bargain | AM135: 4 | AN135: 20 | AO135: 11 | AP135: 4.16 | AQ135: 1.28 | AR135: 4 | AS135: 99 | AT135: 7.74 | AU135: palenciadaniel_P | AV135: 28 | AW135: 96 | AX135: 74 | AY135: 67 | AZ135: 59 | BA135: 46 | BB135: 87
B136: 02_067 | C136: 1526 | D136: 128.02 | E136: Warming Bernabel | F136: WSN | G136: 1B | H136: 24 | I136: 1012 | J136: 85.05 | K136: Waiver Wire | L136: 0.284 | M136: 41 | N136: 8 | O136: 43 | P136: 8 | Q136: 98 | R136: 30 | S136: 1.1 | T136: bernabelwarming_B | U136: 18 | V136: 20 | W136: 26 | X136: 27 | Y136: 40 | Z136: 31 | AA136: 25 | AB136: 133 | AC136: 99_133 | AD136: 133 | AE136: 12.01 | AF136: Nick Lodolo | AG136: CIN | AH136: SP | AI136: 28 | AJ136: 130 | AK136: 11.11 | AL136: Fair Value in Rnd 12 | AM136: 13 | AN136: 0 | AO136: 10.2 | AP136: 3.82 | AQ136: 1.18 | AR136: 0 | AS136: 94 | AT136: 7.78 | AU136: lodolonick_P | AV136: 81 | AW136: 37 | AX136: 61 | AY136: 52 | AZ136: 36 | BA136: 30 | BB136: 39
B137: 03_001 | C137: 19 | D137: 2.07 | E137: Jazz Chisholm | F137: NYY | G137: 2B,3B | H137: 28 | I137: 21 | J137: 2.10 | K137: Good Value in Rnd 2 | L137: 0.331 | M137: 85 | N137: 29 | O137: 84 | P137: 35 | Q137: 144 | R137: 56 | S137: 32.16 | T137: chisholmjazz_B | U137: 59 | V137: 76 | W137: 84 | X137: 78 | Y137: 90 | Z137: 70 | AA137: 71 | AB137: 134 | AC137: 99_134 | AD137: 134 | AE137: 12.02 | AF137: Drake Baldwin | AG137: ATL | AH137: C | AI137: 25 | AJ137: 99 | AK137: 9.04 | AL137: Rnd 9 ADP Bust | AM137: 0.337 | AN137: 68 | AO137: 19 | AP137: 85 | AQ137: 1 | AR137: 136 | AS137: 45 | AT137: 7.86 | AU137: baldwindrake_B | AV137: 65 | AW137: 54 | AX137: 59 | AY137: 79 | AZ137: 25 | BA137: 64 | BB137: 51
B138: 03_002 | C138: 32 | D138: 3.08 | E138: Ketel Marte | F138: ARI | G138: 2B | H138: 32 | I138: 27 | J138: 3.04 | K138: Good Value in Rnd 3 | L138: 0.367 | M138: 90 | N138: 24 | O138: 78 | P138: 7 | Q138: 165 | R138: 63 | S138: 25.66 | T138: marteketel_B | U138: 86 | V138: 81 | W138: 73 | X138: 72 | Y138: 38 | Z138: 83 | AA138: 81 | AB138: 135 | AC138: 99_135 | AD138: 135 | AE138: 12.03 | AF138: Ryan Pepiot | AG138: TBR | AH138: SP | AI138: 28 | AJ138: 131 | AK138: 11.12 | AL138: Fair Value in Rnd 12 | AM138: 12 | AN138: 0 | AO138: 9.6 | AP138: 3.66 | AQ138: 1.17 | AR138: 0 | AS138: 95 | AT138: 7.64 | AU138: pepiotryan_P | AV138: 77 | AW138: 37 | AX138: 49 | AY138: 45 | AZ138: 34 | BA138: 30 | BB138: 50
B139: 03_003 | C139: 49 | D139: 5.01 | E139: Brice Turang | F139: MIL | G139: 2B | H139: 26 | I139: 47 | J139: 4.12 | K139: Fair Value in Rnd 5 | L139: 0.332 | M139: 80 | N139: 12 | O139: 68 | P139: 32 | Q139: 142 | R139: 37 | S139: 20.84 | T139: turangbrice_B | U139: 60 | V139: 71 | W139: 37 | X139: 60 | Y139: 87 | Z139: 69 | AA139: 36 | AB139: 136 | AC139: 99_136 | AD139: 136 | AE139: 12.04 | AF139: Raisel Iglesias | AG139: ATL | AH139: RP | AI139: 36 | AJ139: 113 | AK139: 10.06 | AL139: Rnd 10 ADP Bust | AM139: 5 | AN139: 19 | AO139: 10.5 | AP139: 2.88 | AQ139: 1.04 | AR139: 4 | AS139: 95 | AT139: 7.04 | AU139: iglesiasraisel_P | AV139: 34 | AW139: 95 | AX139: 66 | AY139: 17 | AZ139: 13 | BA139: 46 | BB139: 50
B140: 03_004 | C140: 76 | D140: 7.04 | E140: Nico Hoerner | F140: CHC | G140: 2B | H140: 29 | I140: 91 | J140: 8.08 | K140: Rnd 8 ADP Bargain | L140: 0.342 | M140: 84 | N140: 8 | O140: 62 | P140: 29 | Q140: 167 | R140: 40 | S140: 14.16 | T140: hoernernico_B | U140: 70 | V140: 75 | W140: 26 | X140: 52 | Y140: 83 | Z140: 84 | AA140: 42 | AB140: 137 | AC140: 99_137 | AD140: 137 | AE140: 12.05 | AF140: Pete Fairbanks | AG140: MIA | AH140: RP | AI140: 32 | AJ140: 147 | AK140: 13.04 | AL140: Rnd 13 ADP Bargain | AM140: 5 | AN140: 23 | AO140: 10.8 | AP140: 3.22 | AQ140: 1.17 | AR140: 8 | AS140: 98 | AT140: 6.86 | AU140: fairbankspete_P | AV140: 34 | AW140: 98 | AX140: 71 | AY140: 27 | AZ140: 34 | BA140: 63 | BB140: 80
B141: 03_005 | C141: 78 | D141: 7.06 | E141: Jose Altuve | F141: HOU | G141: 2B,OF | H141: 36 | I141: 100 | J141: 9.05 | K141: Rnd 9 ADP Bargain | L141: 0.369 | M141: 102 | N141: 26 | O141: 79 | P141: 17 | Q141: 190 | R141: 65 | S141: 13.82 | T141: altuvejose_B | U141: 87 | V141: 90 | W141: 78 | X141: 73 | Y141: 61 | Z141: 93 | AA141: 83 | AB141: 138 | AC141: 99_138 | AD141: 138 | AE141: 12.06 | AF141: Jeff Hoffman | AG141: TOR | AH141: RP | AI141: 33 | AJ141: 122 | AK141: 11.03 | AL141: Fair Value in Rnd 12 | AM141: 7 | AN141: 14 | AO141: 10 | AP141: 4.58 | AQ141: 1.33 | AR141: 8 | AS141: 96 | AT141: 6.74 | AU141: hoffmanjeff_P | AV141: 46 | AW141: 88 | AX141: 57 | AY141: 81 | AZ141: 69 | BA141: 63 | BB141: 62
B142: 03_006 | C142: 90 | D142: 8.06 | E142: Luke Keaschall | F142: MIN | G142: 2B | H142: 24 | I142: 111 | J142: 10.04 | K142: Rnd 10 ADP Bargain | L142: 0.353 | M142: 85 | N142: 13 | O142: 60 | P142: 34 | Q142: 149 | R142: 48 | S142: 12 | T142: keaschallluke_B | U142: 78 | V142: 76 | W142: 40 | X142: 49 | Y142: 89 | Z142: 74 | AA142: 57 | AB142: 139 | AC142: 99_139 | AD142: 139 | AE142: 12.07 | AF142: Emilio Pagan | AG142: CIN | AH142: RP | AI142: 35 | AJ142: 146 | AK142: 13.03 | AL142: Rnd 13 ADP Bargain | AM142: 4 | AN142: 14 | AO142: 10.3 | AP142: 3.62 | AQ142: 1.07 | AR142: 10 | AS142: 95 | AT142: 6.58 | AU142: paganemilio_P | AV142: 28 | AW142: 88 | AX142: 63 | AY142: 43 | AZ142: 17 | BA142: 71 | BB142: 50
B143: 03_007 | C143: 107 | D143: 9.11 | E143: Ozzie Albies | F143: ATL | G143: 2B | H143: 29 | I143: 135 | J143: 12.04 | K143: Rnd 12 ADP Bargain | L143: 0.327 | M143: 91 | N143: 22 | O143: 87 | P143: 14 | Q143: 169 | R143: 66 | S143: 10.18 | T143: albiesozzie_B | U143: 55 | V143: 82 | W143: 68 | X143: 81 | Y143: 54 | Z143: 85 | AA143: 84 | AB143: 140 | AC143: 99_140 | AD143: 140 | AE143: 12.08 | AF143: Noelvi Marte | AG143: CIN | AH143: 3B,OF | AI143: 24 | AJ143: 150 | AK143: 13.07 | AL143: Rnd 13 ADP Bargain | AM143: 0.31 | AN143: 80 | AO143: 17 | AP143: 71 | AQ143: 22 | AR143: 144 | AS143: 50 | AT143: 6.58 | AU143: martenoelvi_B | AV143: 38 | AW143: 71 | AX143: 53 | AY143: 64 | AZ143: 72 | BA143: 70 | BB143: 61
B144: 03_008 | C144: 114 | D144: 10.06 | E144: Matt McLain | F144: CIN | G144: 2B | H144: 26 | I144: 172 | J144: 15.05 | K144: Rnd 15 ADP Bargain | L144: 0.325 | M144: 86 | N144: 21 | O144: 73 | P144: 26 | Q144: 137 | R144: 56 | S144: 9.62 | T144: mclainmatt_B | U144: 53 | V144: 77 | W144: 65 | X144: 66 | Y144: 79 | Z144: 65 | AA144: 71 | AB144: 141 | AC144: 99_141 | AD144: =IF(ISNA(VLOOKUP($AC144,RankData,AD$3,FALSE)),"",VLOOKUP($AC144,RankData,AD$3,FALSE)) -> 141 | AE144: 12.09 | AF144: Edward Cabrera | AG144: CHC | AH144: SP | AI144: 28 | AJ144: 190 | AK144: 16.11 | AL144: Rnd 16 ADP Bargain | AM144: 14 | AN144: =IF(ISNA(VLOOKUP($AC144,RankData,AN$3,FALSE)),"",VLOOKUP($AC144,RankData,AN$3,FALSE)) -> 0 | AO144: 10.3 | AP144: 3.7 | AQ144: 1.25 | AR144: 0 | AS144: 97 | AT144: 6.36 | AU144: cabreraedward_P | AV144: 85 | AW144: 37 | AX144: 63 | AY144: 47 | AZ144: 52 | BA144: 30 | BB144: 72
B145: 03_009 | C145: 143 | D145: 12.11 | E145: Brandon Lowe | F145: PIT | G145: 2B | H145: 31 | I145: 168 | J145: 15.01 | K145: Rnd 15 ADP Bargain | L145: 0.332 | M145: 85 | N145: 32 | O145: 91 | P145: 6 | Q145: 140 | R145: 63 | S145: 6.38 | T145: lowebrandon_B | U145: 60 | V145: 76 | W145: 88 | X145: 84 | Y145: 35 | Z145: 67 | AA145: 81 | AB145: 142 | AC145: 99_142 | AD145: 142 | AE145: 12.10 | AF145: Sandy Alcantara | AG145: MIA | AH145: SP | AI145: 31 | AJ145: 143 | AK145: 12.12 | AL145: Good Value in Rnd 12 | AM145: 13 | AN145: 0 | AO145: 7.7 | AP145: 3.9 | AQ145: 1.19 | AR145: 0 | AS145: 97 | AT145: 6.36 | AU145: alcantarasandy_P | AV145: 81 | AW145: 37 | AX145: 18 | AY145: 56 | AZ145: 38 | BA145: 30 | BB145: 72
B146: 03_010 | C146: 144 | D146: 12.12 | E146: Ceddanne Rafaela | F146: BOS | G146: 2B,OF | H146: 26 | I146: 136 | J146: 12.05 | K146: Good Value in Rnd 12 | L146: 0.291 | M146: 86 | N146: 18 | O146: 76 | P146: 26 | Q146: 146 | R146: 57 | S146: 6.34 | T146: rafaelaceddanne_B | U146: 22 | V146: 77 | W146: 56 | X146: 70 | Y146: 79 | Z146: 72 | AA146: 73 | AB146: 143 | AC146: 99_143 | AD146: 143 | AE146: 12.11 | AF146: Brandon Lowe | AG146: PIT | AH146: 2B | AI146: 31 | AJ146: 168 | AK146: 15.01 | AL146: Rnd 15 ADP Bargain | AM146: 0.332 | AN146: 85 | AO146: 32 | AP146: 91 | AQ146: 6 | AR146: 140 | AS146: 63 | AT146: 6.38 | AU146: lowebrandon_B | AV146: 60 | AW146: 76 | AX146: 88 | AY146: 84 | AZ146: 35 | BA146: 67 | BB146: 81
B147: 03_011 | C147: 216 | D147: 18.12 | E147: Xavier Edwards | F147: MIA | G147: 2B,SS | H147: 27 | I147: 170 | J147: 15.03 | K147: Rnd 15 ADP Bust | L147: 0.344 | M147: 80 | N147: 5 | O147: 49 | P147: 32 | Q147: 164 | R147: 33 | S147: 3.38 | T147: edwardsxavier_B | U147: 71 | V147: 71 | W147: 19 | X147: 35 | Y147: 87 | Z147: 83 | AA147: 30 | AB147: 144 | AC147: 99_144 | AD147: 144 | AE147: 12.12 | AF147: Ceddanne Rafaela | AG147: BOS | AH147: 2B,OF | AI147: 26 | AJ147: 136 | AK147: 12.05 | AL147: Good Value in Rnd 12 | AM147: 0.291 | AN147: 86 | AO147: 18 | AP147: 76 | AQ147: 26 | AR147: 146 | AS147: 57 | AT147: 6.34 | AU147: rafaelaceddanne_B | AV147: 22 | AW147: 77 | AX147: 56 | AY147: 70 | AZ147: 79 | BA147: 72 | BB147: 73
B148: 03_012 | C148: 220 | D148: 19.04 | E148: Bryson Stott | F148: PHI | G148: 2B | H148: 28 | I148: 180 | J148: 16.01 | K148: Rnd 16 ADP Bust | L148: 0.333 | M148: 69 | N148: 13 | O148: 59 | P148: 22 | Q148: 131 | R148: 40 | S148: 3.32 | T148: stottbryson_B | U148: 61 | V148: 56 | W148: 40 | X148: 48 | Y148: 72 | Z148: 60 | AA148: 42 | AB148: 145 | AC148: 99_145 | AD148: 145 | AE148: 13.01 | AF148: Ryan Walker | AG148: SFG | AH148: RP | AI148: 30 | AJ148: 184 | AK148: 16.05 | AL148: Rnd 16 ADP Bargain | AM148: 7 | AN148: 14 | AO148: 10.3 | AP148: 3.24 | AQ148: 1.18 | AR148: 8 | AS148: 96 | AT148: 6.22 | AU148: walkerryan_P | AV148: 46 | AW148: 88 | AX148: 63 | AY148: 28 | AZ148: 36 | BA148: 63 | BB148: 62
B149: 03_013 | C149: 237 | D149: 20.09 | E149: Gleyber Torres | F149: DET | G149: 2B | H149: 29 | I149: 198 | J149: 17.07 | K149: Rnd 17 ADP Bust | L149: 0.35 | M149: 82 | N149: 22 | O149: 78 | P149: 8 | Q149: 156 | R149: 52 | S149: 3.18 | T149: torresgleyber_B | U149: 76 | V149: 73 | W149: 68 | X149: 72 | Y149: 40 | Z149: 79 | AA149: 64 | AB149: 146 | AC149: 99_146 | AD149: 146 | AE149: 13.02 | AF149: Luis Castillo | AG149: SEA | AH149: SP | AI149: 33 | AJ149: 148 | AK149: 13.05 | AL149: Good Value in Rnd 13 | AM149: 13 | AN149: 0 | AO149: 9.2 | AP149: 3.58 | AQ149: 1.19 | AR149: 0 | AS149: 96 | AT149: 6.14 | AU149: castilloluis_P | AV149: 81 | AW149: 37 | AX149: 42 | AY149: 41 | AZ149: 38 | BA149: 30 | BB149: 62
B150: 03_014 | C150: 281 | D150: 24.05 | E150: Otto Lopez | F150: MIA | G150: 2B,SS | H150: 28 | I150: 231 | J150: 20.04 | K150: Rnd 20 ADP Bust | L150: 0.314 | M150: 75 | N150: 9 | O150: 66 | P150: 20 | Q150: 149 | R150: 40 | S150: 3.12 | T150: lopezotto_B | U150: 42 | V150: 64 | W150: 29 | X150: 57 | Y150: 68 | Z150: 74 | AA150: 42 | AB150: 147 | AC150: 99_147 | AD150: 147 | AE150: 13.03 | AF150: Cade Horton | AG150: CHC | AH150: SP | AI150: 25 | AJ150: 176 | AK150: 15.09 | AL150: Rnd 15 ADP Bargain | AM150: 14 | AN150: 0 | AO150: 8.7 | AP150: 2.88 | AQ150: 1.08 | AR150: 0 | AS150: 96 | AT150: 5.92 | AU150: hortoncade_P | AV150: 85 | AW150: 37 | AX150: 33 | AY150: 17 | AZ150: 18 | BA150: 30 | BB150: 62
B151: 03_015 | C151: 285 | D151: 24.09 | E151: Jose Caballero | F151: NYY | G151: 2B,3B,SS,OF | H151: 29 | I151: 219 | J151: 19.04 | K151: Rnd 19 ADP Bust | L151: 0.327 | M151: 63 | N151: 8 | O151: 47 | P151: 51 | Q151: 99 | R151: 32 | S151: 3.02 | T151: caballerojose_B | U151: 55 | V151: 47 | W151: 26 | X151: 32 | Y151: 98 | Z151: 32 | AA151: 28 | AB151: 148 | AC151: 99_148 | AD151: 148 | AE151: 13.04 | AF151: Drew Rasmussen | AG151: TBR | AH151: SP | AI151: 31 | AJ151: 151 | AK151: 13.08 | AL151: Good Value in Rnd 13 | AM151: 11 | AN151: 0 | AO151: 8.4 | AP151: 2.99 | AQ151: 1.07 | AR151: 2 | AS151: 96 | AT151: 5.9 | AU151: rasmussendrew_P | AV151: 72 | AW151: 37 | AX151: 28 | AY151: 20 | AZ151: 17 | BA151: 38 | BB151: 62
B152: 03_016 | C152: 297 | D152: 25.09 | E152: Luis Garcia | F152: WSN | G152: 2B | H152: 26 | I152: 244 | J152: 21.05 | K152: Rnd 21 ADP Bust | L152: 0.316 | M152: 64 | N152: 16 | O152: 64 | P152: 11 | Q152: 138 | R152: 45 | S152: 3.08 | T152: garcialuis_B | U152: 44 | V152: 49 | W152: 49 | X152: 55 | Y152: 47 | Z152: 66 | AA152: 51 | AB152: 149 | AC152: 99_149 | AD152: 149 | AE152: 13.05 | AF152: Nathan Eovaldi | AG152: TEX | AH152: SP | AI152: 36 | AJ152: 124 | AK152: 11.05 | AL152: Rnd 11 ADP Bust | AM152: 13 | AN152: 0 | AO152: 8.7 | AP152: 3.55 | AQ152: 1.13 | AR152: 1 | AS152: 96 | AT152: 5.78 | AU152: eovaldinathan_P | AV152: 81 | AW152: 37 | AX152: 33 | AY152: 40 | AZ152: 26 | BA152: 34 | BB152: 62
B153: 03_017 | C153: 300 | D153: 25.12 | E153: Max Muncy | F153: ATH | G153: 2B,3B | H153: 24 | I153: 573 | J153: 48.10 | K153: Sleeper | L153: 0.295 | M153: 67 | N153: 16 | O153: 66 | P153: 11 | Q153: 128 | R153: 50 | S153: 3.08 | T153: muncymax1_B | U153: 25 | V153: 53 | W153: 49 | X153: 57 | Y153: 47 | Z153: 57 | AA153: 61 | AB153: 150 | AC153: 99_150 | AD153: 150 | AE153: 13.06 | AF153: Jose Ferrer | AG153: SEA | AH153: RP | AI153: 26 | AJ153: 289 | AK153: 25.02 | AL153: Rnd 25 ADP Bargain | AM153: 6 | AN153: 7 | AO153: 8.6 | AP153: 3.67 | AQ153: 1.22 | AR153: 12 | AS153: 98 | AT153: 5.52 | AU153: ferrerjose_P | AV153: 40 | AW153: 68 | AX153: 31 | AY153: 45 | AZ153: 45 | BA153: 77 | BB153: 80
B154: 03_018 | C154: 327 | D154: 28.03 | E154: Marcus Semien | F154: NYM | G154: 2B | H154: 35 | I154: 213 | J154: 18.10 | K154: Rnd 18 ADP Bust | L154: 0.331 | M154: 93 | N154: 24 | O154: 79 | P154: 13 | Q154: 161 | R154: 63 | S154: 2.92 | T154: semienmarcus_B | U154: 59 | V154: 84 | W154: 73 | X154: 73 | Y154: 52 | Z154: 81 | AA154: 81 | AB154: 151 | AC154: 99_151 | AD154: =IF(ISNA(VLOOKUP($AC154,RankData,AD$3,FALSE)),"",VLOOKUP($AC154,RankData,AD$3,FALSE)) -> 151 | AE154: 13.07 | AF154: Sonny Gray | AG154: BOS | AH154: SP | AI154: 36 | AJ154: 109 | AK154: 10.02 | AL154: Rnd 10 ADP Bust | AM154: 13 | AN154: =IF(ISNA(VLOOKUP($AC154,RankData,AN$3,FALSE)),"",VLOOKUP($AC154,RankData,AN$3,FALSE)) -> 0 | AO154: 9.5 | AP154: 3.85 | AQ154: 1.22 | AR154: 0 | AS154: 93 | AT154: 5.42 | AU154: graysonny_P | AV154: 81 | AW154: 37 | AX154: 47 | AY154: 53 | AZ154: 45 | BA154: 30 | BB154: 28
B155: 03_019 | C155: 331 | D155: 28.07 | E155: Jorge Polanco | F155: NYM | G155: 2B | H155: 32 | I155: 200 | J155: 17.09 | K155: Rnd 17 ADP Bust | L155: 0.343 | M155: 77 | N155: 23 | O155: 81 | P155: 8 | Q155: 156 | R155: 58 | S155: 2.92 | T155: polancojorge_B | U155: 70 | V155: 67 | W155: 70 | X155: 75 | Y155: 40 | Z155: 79 | AA155: 74 | AB155: 152 | AC155: 99_152 | AD155: 152 | AE155: 13.08 | AF155: Shota Imanaga | AG155: CHC | AH155: SP | AI155: 32 | AJ155: 162 | AK155: 14.07 | AL155: Rnd 14 ADP Bargain | AM155: 15 | AN155: 0 | AO155: 8.3 | AP155: 3.36 | AQ155: 1.02 | AR155: 0 | AS155: 91 | AT155: 5.34 | AU155: imanagashota_P | AV155: 88 | AW155: 37 | AX155: 26 | AY155: 32 | AZ155: 11 | BA155: 30 | BB155: 13
B156: 03_020 | C156: 352 | D156: 30.04 | E156: Brett Baty | F156: NYM | G156: 2B,3B | H156: 26 | I156: 283 | J156: 24.08 | K156: Rnd 24 ADP Bust | L156: 0.322 | M156: 63 | N156: 19 | O156: 64 | P156: 5 | Q156: 118 | R156: 41 | S156: 2.88 | T156: batybrett_B | U156: 50 | V156: 47 | W156: 59 | X156: 55 | Y156: 33 | Z156: 48 | AA156: 44 | AB156: 153 | AC156: 99_153 | AD156: 153 | AE156: 13.09 | AF156: MacKenzie Gore | AG156: TEX | AH156: SP | AI156: 27 | AJ156: 154 | AK156: 13.11 | AL156: Good Value in Rnd 13 | AM156: 11 | AN156: 0 | AO156: 10.1 | AP156: 4.13 | AQ156: 1.38 | AR156: 0 | AS156: 95 | AT156: 5.34 | AU156: goremackenzie_P | AV156: 72 | AW156: 37 | AX156: 59 | AY156: 66 | AZ156: 78 | BA156: 30 | BB156: 50
B157: 03_021 | C157: 382 | D157: 32.10 | E157: Jackson Holliday | F157: BAL | G157: 2B | H157: 22 | I157: 182 | J157: 16.03 | K157: Rnd 16 ADP Bust | L157: 0.346 | M157: 81 | N157: 14 | O157: 56 | P157: 16 | Q157: 121 | R157: 41 | S157: 2.82 | T157: hollidayjackson_B | U157: 73 | V157: 72 | W157: 43 | X157: 44 | Y157: 59 | Z157: 51 | AA157: 44 | AB157: 154 | AC157: 99_154 | AD157: 154 | AE157: 13.10 | AF157: Jonathan Aranda | AG157: TBR | AH157: 1B | AI157: 28 | AJ157: 189 | AK157: 16.10 | AL157: Rnd 16 ADP Bargain | AM157: 0.359 | AN157: 84 | AO157: 22 | AP157: 83 | AQ157: 2 | AR157: 149 | AS157: 53 | AT157: 5.32 | AU157: arandajonathan_B | AV157: 82 | AW157: 75 | AX157: 68 | AY157: 77 | AZ157: 27 | BA157: 74 | BB157: 66
B158: 03_022 | C158: 406 | D158: 34.10 | E158: Brendan Donovan | F158: SEA | G158: 2B | H158: 29 | I158: 230 | J158: 20.03 | K158: Rnd 20 ADP Bust | L158: 0.355 | M158: 78 | N158: 13 | O158: 65 | P158: 7 | Q158: 157 | R158: 45 | S158: 2.82 | T158: donovanbrendan_B | U158: 80 | V158: 68 | W158: 40 | X158: 56 | Y158: 38 | Z158: 79 | AA158: 51 | AB158: 155 | AC158: 99_155 | AD158: 155 | AE158: 13.11 | AF158: Aaron Nola | AG158: PHI | AH158: SP | AI158: 33 | AJ158: 193 | AK158: 17.02 | AL158: Rnd 17 ADP Bargain | AM158: 16 | AN158: 0 | AO158: 9.8 | AP158: 4.13 | AQ158: 1.18 | AR158: 0 | AS158: 93 | AT158: 5.1 | AU158: nolaaaron_P | AV158: 91 | AW158: 37 | AX158: 53 | AY158: 66 | AZ158: 36 | BA158: 30 | BB158: 28
B159: 03_023 | C159: 433 | D159: 37.01 | E159: Chase Meidroth | F159: CHW | G159: 2B,SS | H159: 25 | I159: 409 | J159: 35.02 | K159: Rnd 35 ADP Bust | L159: 0.346 | M159: 83 | N159: 9 | O159: 51 | P159: 16 | Q159: 138 | R159: 33 | S159: 2.78 | T159: meidrothchase_B | U159: 73 | V159: 74 | W159: 29 | X159: 37 | Y159: 59 | Z159: 66 | AA159: 30 | AB159: 156 | AC159: 99_156 | AD159: 156 | AE159: 13.12 | AF159: Trevor Rogers | AG159: BAL | AH159: SP | AI159: 28 | AJ159: 137 | AK159: 12.06 | AL159: Fair Value in Rnd 13 | AM159: 12 | AN159: 0 | AO159: 9 | AP159: 3.73 | AQ159: 1.25 | AR159: 0 | AS159: 94 | AT159: 5.14 | AU159: rogerstrevor_P | AV159: 77 | AW159: 37 | AX159: 38 | AY159: 48 | AZ159: 52 | BA159: 30 | BB159: 39
B160: 03_024 | C160: 442 | D160: 37.10 | E160: Willi Castro | F160: COL | G160: 2B,3B,OF | H160: 29 | I160: 250 | J160: 21.11 | K160: Rnd 21 ADP Bust | L160: 0.312 | M160: 74 | N160: 13 | O160: 49 | P160: 17 | Q160: 130 | R160: 43 | S160: 2.72 | T160: castrowilli_B | U160: 40 | V160: 63 | W160: 40 | X160: 35 | Y160: 61 | Z160: 59 | AA160: 48 | AB160: 157 | AC160: 99_157 | AD160: 157 | AE160: 14.01 | AF160: Andrew Abbott | AG160: CIN | AH160: SP | AI160: 27 | AJ160: 202 | AK160: 17.11 | AL160: Rnd 17 ADP Bargain | AM160: 15 | AN160: 0 | AO160: 9.3 | AP160: 3.45 | AQ160: 1.22 | AR160: 0 | AS160: 93 | AT160: 5.02 | AU160: abbottandrew_P | AV160: 88 | AW160: 37 | AX160: 44 | AY160: 36 | AZ160: 45 | BA160: 30 | BB160: 28
B161: 03_025 | C161: 455 | D161: 38.11 | E161: Brooks Lee | F161: MIN | G161: 2B,3B,SS | H161: 25 | I161: 333 | J161: 28.10 | K161: Rnd 28 ADP Bust | L161: 0.304 | M161: 67 | N161: 17 | O161: 78 | P161: 5 | Q161: 142 | R161: 48 | S161: 2.72 | T161: leebrooks_B | U161: 33 | V161: 53 | W161: 53 | X161: 72 | Y161: 33 | Z161: 69 | AA161: 57 | AB161: 158 | AC161: 99_158 | AD161: 158 | AE161: 14.02 | AF161: Shane McClanahan | AG161: TBR | AH161: SP | AI161: 29 | AJ161: 207 | AK161: 18.04 | AL161: Rnd 18 ADP Bargain | AM161: 12 | AN161: 0 | AO161: 10 | AP161: 3.23 | AQ161: 1.14 | AR161: 0 | AS161: 97 | AT161: 4.7 | AU161: mcclanahanshane_P | AV161: 77 | AW161: 37 | AX161: 57 | AY161: 27 | AZ161: 28 | BA161: 30 | BB161: 72
B162: 03_026 | C162: 457 | D162: 39.01 | E162: Kody Clemens | F162: MIN | G162: 1B,2B,OF | H162: 30 | I162: 485 | J162: 41.06 | K162: Rnd 41 ADP Bargain | L162: 0.29 | M162: 55 | N162: 19 | O162: 58 | P162: 6 | Q162: 91 | R162: 42 | S162: 2.76 | T162: clemenskody_B | U162: 22 | V162: 36 | W162: 59 | X162: 46 | Y162: 35 | Z162: 26 | AA162: 46 | AB162: 159 | AC162: 99_159 | AD162: 159 | AE162: 14.03 | AF162: Bubba Chandler | AG162: PIT | AH162: SP | AI162: 24 | AJ162: 158 | AK162: 14.03 | AL162: Good Value in Rnd 14 | AM162: 11 | AN162: 1 | AO162: 9.4 | AP162: 3.94 | AQ162: 1.27 | AR162: 0 | AS162: 99 | AT162: 4.76 | AU162: chandlerbubba_P | AV162: 72 | AW162: 42 | AX162: 45 | AY162: 57 | AZ162: 57 | BA162: 30 | BB162: 87
B163: 03_027 | C163: 460 | D163: 39.04 | E163: Andres Gimenez | F163: TOR | G163: 2B | H163: 28 | I163: 311 | J163: 26.12 | K163: Rnd 26 ADP Bust | L163: 0.303 | M163: 66 | N163: 13 | O163: 59 | P163: 24 | Q163: 138 | R163: 41 | S163: 2.76 | T163: gimenezandres_B | U163: 32 | V163: 52 | W163: 40 | X163: 48 | Y163: 75 | Z163: 66 | AA163: 44 | AB163: 160 | AC163: 99_160 | AD163: 160 | AE163: 14.04 | AF163: Zack Wheeler | AG163: PHI | AH163: SP | AI163: 36 | AJ163: 107 | AK163: 9.12 | AL163: Rnd 9 ADP Bust | AM163: 11 | AN163: 0 | AO163: 10 | AP163: 3.18 | AQ163: 1.08 | AR163: 0 | AS163: 96 | AT163: 4.78 | AU163: wheelerzack_P | AV163: 72 | AW163: 37 | AX163: 57 | AY163: 26 | AZ163: 18 | BA163: 30 | BB163: 62
B164: 03_028 | C164: 478 | D164: 40.10 | E164: Edouard Julien | F164: COL | G164: 1B,2B | H164: 27 | I164: 653 | J164: 55.06 | K164: Rnd 55 ADP Bargain | L164: 0.355 | M164: 64 | N164: 15 | O164: 49 | P164: 12 | Q164: 110 | R164: 40 | S164: 2.62 | T164: julienedouard_B | U164: 80 | V164: 49 | W164: 46 | X164: 35 | Y164: 49 | Z164: 41 | AA164: 42 | AB164: 161 | AC164: 99_161 | AD164: =IF(ISNA(VLOOKUP($AC164,RankData,AD$3,FALSE)),"",VLOOKUP($AC164,RankData,AD$3,FALSE)) -> 161 | AE164: 14.05 | AF164: Abner Uribe | AG164: MIL | AH164: RP | AI164: 26 | AJ164: 203 | AK164: 17.12 | AL164: Rnd 17 ADP Bargain | AM164: 5 | AN164: =IF(ISNA(VLOOKUP($AC164,RankData,AN$3,FALSE)),"",VLOOKUP($AC164,RankData,AN$3,FALSE)) -> 19 | AO164: 11.5 | AP164: 2.47 | AQ164: 1.21 | AR164: 20 | AS164: 100 | AT164: 4.4 | AU164: uribeabner_P | AV164: 34 | AW164: 95 | AX164: 81 | AY164: 9 | AZ164: 43 | BA164: 93 | BB164: 91
B165: 03_029 | C165: 503 | D165: 42.11 | E165: Jake Cronenworth | F165: SDP | G165: 2B | H165: 32 | I165: 431 | J165: 36.12 | K165: Rnd 36 ADP Bust | L165: 0.339 | M165: 77 | N165: 16 | O165: 72 | P165: 5 | Q165: 141 | R165: 52 | S165: 2.68 | T165: cronenworthjake_B | U165: 67 | V165: 67 | W165: 49 | X165: 65 | Y165: 33 | Z165: 68 | AA165: 64 | AB165: 162 | AC165: 99_162 | AD165: 162 | AE165: 14.06 | AF165: Tatsuya Imai | AG165: HOU | AH165: SP | AI165: 28 | AJ165: 174 | AK165: 15.07 | AL165: Rnd 15 ADP Bargain | AM165: 9 | AN165: 1 | AO165: 9.3 | AP165: 4.01 | AQ165: 1.3 | AR165: 3 | AS165: 94 | AT165: 4.54 | AU165: imaitatsuya_P | AV165: 60 | AW165: 42 | AX165: 44 | AY165: 60 | AZ165: 63 | BA165: 42 | BB165: 39
B166: 03_030 | C166: 506 | D166: 43.02 | E166: Jonathan India | F166: KCR | G166: 2B,3B,OF | H166: 29 | I166: 357 | J166: 30.10 | K166: Rnd 30 ADP Bust | L166: 0.338 | M166: 84 | N166: 15 | O166: 62 | P166: 8 | Q166: 144 | R166: 50 | S166: 2.62 | T166: indiajonathan_B | U166: 66 | V166: 75 | W166: 46 | X166: 52 | Y166: 40 | Z166: 70 | AA166: 61 | AB166: 163 | AC166: 99_163 | AD166: 163 | AE166: 14.07 | AF166: Kenley Jansen | AG166: DET | AH166: RP | AI166: 38 | AJ166: 156 | AK166: 14.01 | AL166: Good Value in Rnd 14 | AM166: 5 | AN166: 26 | AO166: 10.9 | AP166: 2.86 | AQ166: 1 | AR166: 0 | AS166: 95 | AT166: 4.58 | AU166: jansenkenley_P | AV166: 34 | AW166: 99 | AX166: 73 | AY166: 16 | AZ166: 10 | BA166: 30 | BB166: 50
B167: 03_031 | C167: 510 | D167: 43.06 | E167: Mauricio Dubon | F167: ATL | G167: 2B,3B,SS,OF | H167: 31 | I167: 520 | J167: 44.05 | K167: Rnd 44 ADP Bargain | L167: 0.311 | M167: 58 | N167: 9 | O167: 47 | P167: 6 | Q167: 124 | R167: 36 | S167: 2.66 | T167: dubonmauricio_B | U167: 39 | V167: 40 | W167: 29 | X167: 32 | Y167: 35 | Z167: 54 | AA167: 35 | AB167: 164 | AC167: 99_164 | AD167: 164 | AE167: 14.08 | AF167: Bryan Abreu | AG167: HOU | AH167: RP | AI167: 29 | AJ167: 215 | AK167: 18.12 | AL167: Rnd 18 ADP Bargain | AM167: 4 | AN167: 14 | AO167: 12.4 | AP167: 2.64 | AQ167: 1.18 | AR167: 22 | AS167: 97 | AT167: 4.2 | AU167: abreubryan_P | AV167: 28 | AW167: 88 | AX167: 89 | AY167: 12 | AZ167: 36 | BA167: 95 | BB167: 72
B168: 03_032 | C168: 521 | D168: 44.05 | E168: Nolan Gorman | F168: STL | G168: 2B,3B | H168: 26 | I168: 425 | J168: 36.06 | K168: Rnd 36 ADP Bust | L168: 0.302 | M168: 71 | N168: 27 | O168: 74 | P168: 5 | Q168: 124 | R168: 52 | S168: 2.56 | T168: gormannolan_B | U168: 31 | V168: 59 | W168: 80 | X168: 67 | Y168: 33 | Z168: 54 | AA168: 64 | AB168: 165 | AC168: 99_165 | AD168: 165 | AE168: 14.09 | AF168: Shane Baz | AG168: BAL | AH168: SP | AI168: 27 | AJ168: 212 | AK168: 18.09 | AL168: Rnd 18 ADP Bargain | AM168: 11 | AN168: 0 | AO168: 9.7 | AP168: 3.92 | AQ168: 1.2 | AR168: 0 | AS168: 97 | AT168: 4.26 | AU168: bazshane_P | AV168: 72 | AW168: 37 | AX168: 51 | AY168: 57 | AZ168: 41 | BA168: 30 | BB168: 72
B169: 03_033 | C169: 525 | D169: 44.09 | E169: Brice Matthews | F169: HOU | G169: 2B | H169: 24 | I169: 646 | J169: 54.11 | K169: Rnd 54 ADP Bargain | L169: 0.308 | M169: 56 | N169: 16 | O169: 48 | P169: 34 | Q169: 101 | R169: 40 | S169: 2.56 | T169: matthewsbrice_B | U169: 36 | V169: 37 | W169: 49 | X169: 33 | Y169: 89 | Z169: 34 | AA169: 42 | AB169: 166 | AC169: 99_166 | AD169: 166 | AE169: 14.10 | AF169: Wilyer Abreu | AG169: BOS | AH169: OF | AI169: 27 | AJ169: 225 | AK169: 19.10 | AL169: Rnd 19 ADP Bargain | AM169: 0.339 | AN169: 81 | AO169: 23 | AP169: 80 | AQ169: 14 | AR169: 123 | AS169: 53 | AT169: 4.08 | AU169: abreuwilyer_B | AV169: 67 | AW169: 72 | AX169: 70 | AY169: 74 | AZ169: 54 | BA169: 53 | BB169: 66
B170: 03_034 | C170: 538 | D170: 45.10 | E170: Luisangel Acuna | F170: CHW | G170: 2B | H170: 24 | I170: 370 | J170: 31.11 | K170: Rnd 31 ADP Bust | L170: 0.296 | M170: 76 | N170: 8 | O170: 51 | P170: 41 | Q170: 135 | R170: 35 | S170: 2.58 | T170: acunaluisangel_B | U170: 26 | V170: 66 | W170: 26 | X170: 37 | Y170: 94 | Z170: 63 | AA170: 33 | AB170: 167 | AC170: 99_167 | AD170: 167 | AE170: 14.11 | AF170: Jack Flaherty | AG170: DET | AH170: SP | AI170: 30 | AJ170: 201 | AK170: 17.10 | AL170: Rnd 17 ADP Bargain | AM170: 13 | AN170: 0 | AO170: 10.3 | AP170: 3.91 | AQ170: 1.21 | AR170: 0 | AS170: 94 | AT170: 4.06 | AU170: flahertyjack_P | AV170: 81 | AW170: 37 | AX170: 63 | AY170: 56 | AZ170: 43 | BA170: 30 | BB170: 39
B171: 03_035 | C171: 544 | D171: 46.04 | E171: Ernie Clement | F171: TOR | G171: 2B,3B,SS | H171: 30 | I171: 260 | J171: 22.09 | K171: Rnd 22 ADP Bust | L171: 0.31 | M171: 70 | N171: 11 | O171: 56 | P171: 9 | Q171: 133 | R171: 41 | S171: 2.56 | T171: clementernie_B | U171: 38 | V171: 57 | W171: 34 | X171: 44 | Y171: 42 | Z171: 62 | AA171: 44 | AB171: 168 | AC171: 99_168 | AD171: 168 | AE171: 14.12 | AF171: Spencer Torkelson | AG171: DET | AH171: 1B | AI171: 26 | AJ171: 171 | AK171: 15.04 | AL171: Rnd 15 ADP Bargain | AM171: 0.323 | AN171: 82 | AO171: 27 | AP171: 80 | AQ171: 2 | AR171: 129 | AS171: 57 | AT171: 4.02 | AU171: torkelsonspencer_B | AV171: 51 | AW171: 73 | AX171: 80 | AY171: 74 | AZ171: 27 | BA171: 58 | BB171: 73
B172: 03_036 | C172: 550 | D172: 46.10 | E172: Adam Frazier | F172: LAA | G172: 2B,OF | H172: 34 | I172: 697 | J172: 59.02 | K172: Rnd 59 ADP Bargain | L172: 0.326 | M172: 55 | N172: 8 | O172: 43 | P172: 8 | Q172: 122 | R172: 35 | S172: 2.62 | T172: frazieradam_B | U172: 54 | V172: 36 | W172: 26 | X172: 27 | Y172: 40 | Z172: 52 | AA172: 33 | AB172: 169 | AC172: 99_169 | AD172: 169 | AE172: 15.01 | AF172: Matt Chapman | AG172: SFG | AH172: 3B | AI172: 33 | AJ172: 145 | AK172: 13.02 | AL172: Rnd 13 ADP Bust | AM172: 0.339 | AN172: 89 | AO172: 27 | AP172: 77 | AQ172: 6 | AR172: 139 | AS172: 67 | AT172: 4.02 | AU172: chapmanmatt_B | AV172: 67 | AW172: 80 | AX172: 80 | AY172: 71 | AZ172: 35 | BA172: 67 | BB172: 85
B173: 03_037 | C173: 553 | D173: 47.01 | E173: Nick Gonzales | F173: PIT | G173: 2B | H173: 27 | I173: 276 | J173: 24.01 | K173: Rnd 24 ADP Bust | L173: 0.315 | M173: 74 | N173: 14 | O173: 61 | P173: 5 | Q173: 151 | R173: 58 | S173: 2.58 | T173: gonzalesnick_B | U173: 43 | V173: 63 | W173: 43 | X173: 50 | Y173: 33 | Z173: 75 | AA173: 74 | AB173: 170 | AC173: 99_170 | AD173: 170 | AE173: 15.02 | AF173: Ivan Herrera | AG173: STL | AH173: DH | AI173: 26 | AJ173: 177 | AK173: 15.10 | AL173: Good Value in Rnd 15 | AM173: 0.353 | AN173: 77 | AO173: 19 | AP173: 78 | AQ173: 10 | AR173: 136 | AS173: 43 | AT173: 3.98 | AU173: herreraivan_B | AV173: 78 | AW173: 67 | AX173: 59 | AY173: 72 | AZ173: 45 | BA173: 64 | BB173: 48
B174: 03_038 | C174: 562 | D174: 47.10 | E174: Colt Keith | F174: DET | G174: 2B,3B | H174: 25 | I174: 323 | J174: 27.12 | K174: Rnd 27 ADP Bust | L174: 0.335 | M174: 70 | N174: 16 | O174: 65 | P174: 4 | Q174: 130 | R174: 45 | S174: 2.52 | T174: keithcolt_B | U174: 63 | V174: 57 | W174: 49 | X174: 56 | Y174: 31 | Z174: 59 | AA174: 51 | AB174: 171 | AC174: 99_171 | AD174: =IF(ISNA(VLOOKUP($AC174,RankData,AD$3,FALSE)),"",VLOOKUP($AC174,RankData,AD$3,FALSE)) -> 171 | AE174: 15.03 | AF174: Alejandro Kirk | AG174: TOR | AH174: C | AI174: 27 | AJ174: 179 | AK174: 15.12 | AL174: Good Value in Rnd 15 | AM174: 0.356 | AN174: =IF(ISNA(VLOOKUP($AC174,RankData,AN$3,FALSE)),"",VLOOKUP($AC174,RankData,AN$3,FALSE)) -> 51 | AO174: 15 | AP174: 74 | AQ174: 0 | AR174: 139 | AS174: 38 | AT174: 3.96 | AU174: kirkalejandro_B | AV174: 80 | AW174: 31 | AX174: 46 | AY174: 67 | AZ174: 24 | BA174: 67 | BB174: 38
B175: 03_039 | C175: 565 | D175: 48.01 | E175: Cole Young | F175: SEA | G175: 2B | H175: 23 | I175: 455 | J175: 38.12 | K175: Rnd 38 ADP Bust | L175: 0.32 | M175: 64 | N175: 9 | O175: 50 | P175: 14 | Q175: 121 | R175: 40 | S175: 2.58 | T175: youngcole_B | U175: 48 | V175: 49 | W175: 29 | X175: 36 | Y175: 54 | Z175: 51 | AA175: 42 | AB175: 172 | AC175: 99_172 | AD175: 172 | AE175: 15.04 | AF175: Trevor Megill | AG175: MIL | AH175: RP | AI175: 32 | AJ175: 160 | AK175: 14.05 | AL175: Fair Value in Rnd 15 | AM175: 5 | AN175: 15 | AO175: 11.5 | AP175: 3.98 | AQ175: 1.29 | AR175: 5 | AS175: 99 | AT175: 3.92 | AU175: megilltrevor_P | AV175: 34 | AW175: 90 | AX175: 81 | AY175: 59 | AZ175: 61 | BA175: 50 | BB175: 87
B176: 03_040 | C176: 570 | D176: 48.06 | E176: Thomas Saggese | F176: STL | G176: 2B,SS | H176: 24 | I176: 514 | J176: 43.11 | K176: Rnd 43 ADP Bust | L176: 0.302 | M176: 55 | N176: 12 | O176: 54 | P176: 8 | Q176: 115 | R176: 41 | S176: 2.5 | T176: saggesethomas_B | U176: 31 | V176: 36 | W176: 37 | X176: 41 | Y176: 40 | Z176: 46 | AA176: 44 | AB176: 173 | AC176: 99_173 | AD176: 173 | AE176: 15.05 | AF176: Josh Hader | AG176: HOU | AH176: RP | AI176: 32 | AJ176: 129 | AK176: 11.10 | AL176: Rnd 11 ADP Bust | AM176: 5 | AN176: 11 | AO176: 14.1 | AP176: 2.64 | AQ176: 0.94 | AR176: 5 | AS176: 96 | AT176: 3.8 | AU176: haderjosh_P | AV176: 34 | AW176: 82 | AX176: 97 | AY176: 12 | AZ176: 6 | BA176: 50 | BB176: 62
B177: 03_041 | C177: 577 | D177: 49.01 | E177: Gabriel Arias | F177: CLE | G177: 2B,SS | H177: 26 | I177: 662 | J177: 56.03 | K177: Rnd 56 ADP Bargain | L177: 0.287 | M177: 59 | N177: 14 | O177: 54 | P177: 10 | Q177: 119 | R177: 44 | S177: 2.56 | T177: ariasgabriel_B | U177: 20 | V177: 42 | W177: 43 | X177: 41 | Y177: 45 | Z177: 49 | AA177: 50 | AB177: 174 | AC177: 99_174 | AD177: 174 | AE177: 15.06 | AF177: Matthew Boyd | AG177: CHC | AH177: SP | AI177: 35 | AJ177: 192 | AK177: 17.01 | AL177: Rnd 17 ADP Bargain | AM177: 14 | AN177: 0 | AO177: 8.7 | AP177: 4.11 | AQ177: 1.22 | AR177: 0 | AS177: 92 | AT177: 3.72 | AU177: boydmatthew_P | AV177: 85 | AW177: 37 | AX177: 33 | AY177: 65 | AZ177: 45 | BA177: 30 | BB177: 20
B178: 03_042 | C178: 578 | D178: 49.02 | E178: Tommy Edman | F178: LAD | G178: 2B,OF | H178: 31 | I178: 382 | J178: 32.11 | K178: Rnd 32 ADP Bust | L178: 0.314 | M178: 69 | N178: 13 | O178: 53 | P178: 17 | Q178: 128 | R178: 42 | S178: 2.56 | T178: edmantommy_B | U178: 42 | V178: 56 | W178: 40 | X178: 40 | Y178: 61 | Z178: 57 | AA178: 46 | AB178: 175 | AC178: 99_175 | AD178: 175 | AE178: 15.07 | AF178: Dennis Santana | AG178: PIT | AH178: RP | AI178: 30 | AJ178: 187 | AK178: 16.08 | AL178: Rnd 16 ADP Bargain | AM178: 5 | AN178: 11 | AO178: 8.6 | AP178: 3.98 | AQ178: 1.24 | AR178: 12 | AS178: 95 | AT178: 3.72 | AU178: santanadennis_P | AV178: 34 | AW178: 82 | AX178: 31 | AY178: 59 | AZ178: 50 | BA178: 77 | BB178: 50
B179: 03_043 | C179: 620 | D179: 52.08 | E179: Christian Moore | F179: LAA | G179: 2B | H179: 23 | I179: 541 | J179: 46.02 | K179: Rnd 46 ADP Bust | L179: 0.317 | M179: 50 | N179: 12 | O179: 47 | P179: 9 | Q179: 90 | R179: 30 | S179: 2.56 | T179: moorechristian_B | U179: 45 | V179: 30 | W179: 37 | X179: 32 | Y179: 42 | Z179: 26 | AA179: 25 | AB179: 176 | AC179: 99_176 | AD179: 176 | AE179: 15.08 | AF179: Ranger Suarez | AG179: BOS | AH179: SP | AI179: 30 | AJ179: 163 | AK179: 14.08 | AL179: Fair Value in Rnd 15 | AM179: 11 | AN179: 0 | AO179: 8.4 | AP179: 3.33 | AQ179: 1.25 | AR179: 2 | AS179: 93 | AT179: 3.72 | AU179: suarezranger_P | AV179: 72 | AW179: 37 | AX179: 28 | AY179: 31 | AZ179: 52 | BA179: 38 | BB179: 28
B180: 03_044 | C180: 627 | D180: 53.03 | E180: Lenyn Sosa | F180: CHW | G180: 1B,2B | H180: 26 | I180: 346 | J180: 29.11 | K180: Rnd 29 ADP Bust | L180: 0.29 | M180: 62 | N180: 20 | O180: 70 | P180: 3 | Q180: 146 | R180: 48 | S180: 2.48 | T180: sosalenyn_B | U180: 22 | V180: 46 | W180: 62 | X180: 63 | Y180: 29 | Z180: 72 | AA180: 57 | AB180: 177 | AC180: 99_177 | AD180: 177 | AE180: 15.09 | AF180: Blake Snell | AG180: LAD | AH180: SP | AI180: 33 | AJ180: 118 | AK180: 10.11 | AL180: Rnd 10 ADP Bust | AM180: 11 | AN180: 0 | AO180: 11.2 | AP180: 3.06 | AQ180: 1.21 | AR180: 0 | AS180: 95 | AT180: 3.76 | AU180: snellblake_P | AV180: 72 | AW180: 37 | AX180: 77 | AY180: 22 | AZ180: 43 | BA180: 30 | BB180: 50
B181: 03_045 | C181: 637 | D181: 54.01 | E181: Davis Schneider | F181: TOR | G181: 2B,OF | H181: 27 | I181: 545 | J181: 46.06 | K181: Rnd 46 ADP Bust | L181: 0.333 | M181: 55 | N181: 17 | O181: 52 | P181: 8 | Q181: 88 | R181: 41 | S181: 2.48 | T181: schneiderdavis_B | U181: 61 | V181: 36 | W181: 53 | X181: 38 | Y181: 40 | Z181: 24 | AA181: 44 | AB181: 178 | AC181: 99_178 | AD181: 178 | AE181: 15.10 | AF181: Cedric Mullins | AG181: TBR | AH181: OF | AI181: 31 | AJ181: 325 | AK181: 28.02 | AL181: Rnd 28 ADP Bargain | AM181: 0.322 | AN181: 69 | AO181: 18 | AP181: 59 | AQ181: 23 | AR181: 137 | AS181: 52 | AT181: 3.58 | AU181: mullinscedric_B | AV181: 50 | AW181: 56 | AX181: 56 | AY181: 48 | AZ181: 73 | BA181: 65 | BB181: 64
B182: 03_046 | C182: 641 | D182: 54.05 | E182: Leo Jimenez | F182: TOR | G182: 2B | H182: 25 | I182: 1010 | J182: 85.03 | K182: Waiver Wire | L182: 0.316 | M182: 57 | N182: 8 | O182: 42 | P182: 6 | Q182: 93 | R182: 28 | S182: 2.5 | T182: jimenezleo_B | U182: 44 | V182: 39 | W182: 26 | X182: 26 | Y182: 35 | Z182: 28 | AA182: 22 | AB182: 179 | AC182: 99_179 | AD182: 179 | AE182: 15.11 | AF182: Kirby Yates | AG182: LAA | AH182: RP | AI182: 39 | AJ182: 304 | AK182: 26.05 | AL182: Rnd 26 ADP Bargain | AM182: 4 | AN182: 8 | AO182: 12.3 | AP182: 3.41 | AQ182: 1.14 | AR182: 11 | AS182: 93 | AT182: 3.58 | AU182: yateskirby_P | AV182: 28 | AW182: 72 | AX182: 89 | AY182: 34 | AZ182: 28 | BA182: 74 | BB182: 28
B183: 03_047 | C183: 643 | D183: 54.07 | E183: Ramon Urias | F183: STL | G183: 2B,3B | H183: 32 | I183: 1081 | J183: 91.02 | K183: Waiver Wire | L183: 0.323 | M183: 47 | N183: 12 | O183: 48 | P183: 3 | Q183: 102 | R183: 33 | S183: 2.5 | T183: uriasramon_B | U183: 51 | V183: 26 | W183: 37 | X183: 33 | Y183: 29 | Z183: 35 | AA183: 30 | AB183: 180 | AC183: 99_180 | AD183: 180 | AE183: 15.12 | AF183: Orion Kerkering | AG183: PHI | AH183: RP | AI183: 25 | AJ183: 326 | AK183: 28.03 | AL183: Rnd 28 ADP Bargain | AM183: 7 | AN183: 5 | AO183: 10.9 | AP183: 2.63 | AQ183: 1.16 | AR183: 12 | AS183: 98 | AT183: 3.58 | AU183: kerkeringorion_P | AV183: 46 | AW183: 60 | AX183: 73 | AY183: 11 | AZ183: 32 | BA183: 77 | BB183: 80
B184: 03_048 | C184: 648 | D184: 54.12 | E184: Tim Tawa | F184: ARI | G184: 1B,2B,OF | H184: 27 | I184: 418 | J184: 35.11 | K184: Rnd 35 ADP Bust | L184: 0.293 | M184: 55 | N184: 15 | O184: 51 | P184: 11 | Q184: 102 | R184: 40 | S184: 2.42 | T184: tawatim_B | U184: 24 | V184: 36 | W184: 46 | X184: 37 | Y184: 47 | Z184: 35 | AA184: 42 | AB184: 181 | AC184: 99_181 | AD184: =IF(ISNA(VLOOKUP($AC184,RankData,AD$3,FALSE)),"",VLOOKUP($AC184,RankData,AD$3,FALSE)) -> 181 | AE184: 16.01 | AF184: Robbie Ray | AG184: SFG | AH184: SP | AI184: 35 | AJ184: 157 | AK184: 14.02 | AL184: Rnd 14 ADP Bust | AM184: 12 | AN184: =IF(ISNA(VLOOKUP($AC184,RankData,AN$3,FALSE)),"",VLOOKUP($AC184,RankData,AN$3,FALSE)) -> 0 | AO184: 10.7 | AP184: 3.89 | AQ184: 1.26 | AR184: 0 | AS184: 94 | AT184: 3.58 | AU184: rayrobbie_P | AV184: 77 | AW184: 37 | AX184: 70 | AY184: 55 | AZ184: 54 | BA184: 30 | BB184: 39
B185: 03_049 | C185: 650 | D185: 55.02 | E185: Hyeseong Kim | F185: LAD | G185: 2B | H185: 27 | I185: 567 | J185: 48.04 | K185: Rnd 48 ADP Bust | L185: 0.309 | M185: 49 | N185: 8 | O185: 42 | P185: 29 | Q185: 106 | R185: 32 | S185: 2.46 | T185: kimhyeseong_B | U185: 37 | V185: 28 | W185: 26 | X185: 26 | Y185: 83 | Z185: 38 | AA185: 28 | AB185: 182 | AC185: 99_182 | AD185: 182 | AE185: 16.02 | AF185: Eduard Bazardo | AG185: SEA | AH185: RP | AI185: 31 | AJ185: 400 | AK185: 34.05 | AL185: Sleeper | AM185: 6 | AN185: 1 | AO185: 9.4 | AP185: 3.56 | AQ185: 1.21 | AR185: 5 | AS185: 95 | AT185: 3.52 | AU185: bazardoeduard_P | AV185: 40 | AW185: 42 | AX185: 45 | AY185: 41 | AZ185: 43 | BA185: 50 | BB185: 50
B186: 03_050 | C186: 658 | D186: 55.10 | E186: Sung-Mun Song | F186: SDP | G186: 2B | H186: 29 | I186: 536 | J186: 45.09 | K186: Rnd 45 ADP Bust | L186: 0.311 | M186: 59 | N186: 13 | O186: 55 | P186: 12 | Q186: 107 | R186: 38 | S186: 2.46 | T186: songsung-mun_B | U186: 39 | V186: 42 | W186: 40 | X186: 42 | Y186: 49 | Z186: 39 | AA186: 38 | AB186: 183 | AC186: 99_183 | AD186: 183 | AE186: 16.03 | AF186: Griffin Jax | AG186: TBR | AH186: RP | AI186: 31 | AJ186: 188 | AK186: 16.09 | AL186: Good Value in Rnd 16 | AM186: 5 | AN186: 7 | AO186: 10.6 | AP186: 3.91 | AQ186: 1.17 | AR186: 21 | AS186: 97 | AT186: 3.52 | AU186: jaxgriffin_P | AV186: 34 | AW186: 68 | AX186: 68 | AY186: 56 | AZ186: 34 | BA186: 94 | BB186: 72
B187: 03_051 | C187: 664 | D187: 56.04 | E187: Luis Rengifo | F187: MIL | G187: 2B,3B | H187: 29 | I187: 486 | J187: 41.07 | K187: Rnd 41 ADP Bust | L187: 0.314 | M187: 66 | N187: 14 | O187: 55 | P187: 13 | Q187: 140 | R187: 42 | S187: 2.46 | T187: rengifoluis_B | U187: 42 | V187: 52 | W187: 43 | X187: 42 | Y187: 52 | Z187: 67 | AA187: 46 | AB187: 184 | AC187: 99_184 | AD187: 184 | AE187: 16.04 | AF187: Tyler Holton | AG187: DET | AH187: RP | AI187: 30 | AJ187: 449 | AK187: 38.06 | AL187: Sleeper | AM187: 7 | AN187: 2 | AO187: 8.2 | AP187: 3.64 | AQ187: 1.09 | AR187: 12 | AS187: 92 | AT187: 3.52 | AU187: holtontyler_P | AV187: 46 | AW187: 46 | AX187: 25 | AY187: 44 | AZ187: 20 | BA187: 77 | BB187: 20
B188: 03_052 | C188: 675 | D188: 57.03 | E188: Ryan Ritter | F188: COL | G188: 2B,SS | H188: 25 | I188: 757 | J188: 64.02 | K188: Waiver Wire | L188: 0.313 | M188: 65 | N188: 14 | O188: 54 | P188: 12 | Q188: 112 | R188: 44 | S188: 2.36 | T188: ritterryan_B | U188: 41 | V188: 50 | W188: 43 | X188: 41 | Y188: 49 | Z188: 43 | AA188: 50 | AB188: 185 | AC188: 99_185 | AD188: 185 | AE188: 16.05 | AF188: Zac Gallen | AG188: ARI | AH188: SP | AI188: 30 | AJ188: 197 | AK188: 17.06 | AL188: Rnd 17 ADP Bargain | AM188: 14 | AN188: 0 | AO188: 9.2 | AP188: 3.79 | AQ188: 1.18 | AR188: 0 | AS188: 94 | AT188: 3.48 | AU188: gallenzac_P | AV188: 85 | AW188: 37 | AX188: 42 | AY188: 51 | AZ188: 36 | BA188: 30 | BB188: 39
B189: 03_053 | C189: 682 | D189: 57.10 | E189: Kristian Campbell | F189: BOS | G189: 2B | H189: 24 | I189: 508 | J189: 43.05 | K189: Rnd 43 ADP Bust | L189: 0.34 | M189: 59 | N189: 12 | O189: 48 | P189: 11 | Q189: 115 | R189: 40 | S189: 2.42 | T189: campbellkristian_B | U189: 68 | V189: 42 | W189: 37 | X189: 33 | Y189: 47 | Z189: 46 | AA189: 42 | AB189: 186 | AC189: 99_186 | AD189: 186 | AE189: 16.06 | AF189: Caleb Thielbar | AG189: CHC | AH189: RP | AI189: 39 | AJ189: 387 | AK189: 33.04 | AL189: Sleeper | AM189: 5 | AN189: 1 | AO189: 10.2 | AP189: 3.48 | AQ189: 1.16 | AR189: 17 | AS189: 92 | AT189: 3.52 | AU189: thielbarcaleb_P | AV189: 34 | AW189: 42 | AX189: 61 | AY189: 37 | AZ189: 32 | BA189: 89 | BB189: 20
B190: 03_054 | C190: 718 | D190: 60.10 | E190: Javier Sanoja | F190: MIA | G190: 2B,3B,OF | H190: 24 | I190: 560 | J190: 47.09 | K190: Rnd 47 ADP Bust | L190: 0.295 | M190: 50 | N190: 5 | O190: 46 | P190: 16 | Q190: 111 | R190: 32 | S190: 2.36 | T190: sanojajavier_B | U190: 25 | V190: 30 | W190: 19 | X190: 31 | Y190: 59 | Z190: 42 | AA190: 28 | AB190: 187 | AC190: 99_187 | AD190: 187 | AE190: 16.07 | AF190: Taylor Ward | AG190: BAL | AH190: OF | AI190: 32 | AJ190: 133 | AK190: 12.02 | AL190: Rnd 12 ADP Bust | AM190: 0.34 | AN190: 83 | AO190: 27 | AP190: 82 | AQ190: 6 | AR190: 141 | AS190: 57 | AT190: 3.52 | AU190: wardtaylor_B | AV190: 68 | AW190: 74 | AX190: 80 | AY190: 76 | AZ190: 35 | BA190: 68 | BB190: 73
B191: 03_055 | C191: 723 | D191: 61.03 | E191: Romy Gonzalez | F191: BOS | G191: 1B,2B | H191: 29 | I191: 405 | J191: 34.10 | K191: Rnd 34 ADP Bust | L191: 0.32 | M191: 45 | N191: 12 | O191: 49 | P191: 12 | Q191: 86 | R191: 32 | S191: 2.4 | T191: gonzalezromy_B | U191: 48 | V191: 24 | W191: 37 | X191: 35 | Y191: 49 | Z191: 23 | AA191: 28 | AB191: 188 | AC191: 99_188 | AD191: 188 | AE191: 16.08 | AF191: AJ Minter | AG191: NYM | AH191: RP | AI191: 32 | AJ191: 401 | AK191: 34.06 | AL191: Sleeper | AM191: 3 | AN191: 3 | AO191: 10.6 | AP191: 3.26 | AQ191: 1.18 | AR191: 17 | AS191: 96 | AT191: 3.56 | AU191: minteraj_P | AV191: 23 | AW191: 51 | AX191: 68 | AY191: 29 | AZ191: 36 | BA191: 89 | BB191: 62
B192: 03_056 | C192: 726 | D192: 61.06 | E192: Jeff McNeil | F192: ATH | G192: 2B,OF | H192: 34 | I192: 328 | J192: 28.05 | K192: Rnd 28 ADP Bust | L192: 0.348 | M192: 71 | N192: 14 | O192: 61 | P192: 5 | Q192: 160 | R192: 51 | S192: 2.36 | T192: mcneiljeff_B | U192: 74 | V192: 59 | W192: 43 | X192: 50 | Y192: 33 | Z192: 81 | AA192: 63 | AB192: 189 | AC192: 99_189 | AD192: 189 | AE192: 16.09 | AF192: Carlos Rodon | AG192: NYY | AH192: SP | AI192: 33 | AJ192: 181 | AK192: 16.02 | AL192: Good Value in Rnd 16 | AM192: 10 | AN192: 0 | AO192: 9.9 | AP192: 3.67 | AQ192: 1.18 | AR192: 0 | AS192: 95 | AT192: 3.56 | AU192: rodoncarlos_P | AV192: 66 | AW192: 37 | AX192: 55 | AY192: 45 | AZ192: 36 | BA192: 30 | BB192: 50
B193: 03_057 | C193: 747 | D193: 63.03 | E193: Zack Gelof | F193: ATH | G193: 2B | H193: 26 | I193: 554 | J193: 47.03 | K193: Rnd 47 ADP Bust | L193: 0.304 | M193: 53 | N193: 14 | O193: 44 | P193: 15 | Q193: 95 | R193: 39 | S193: 2.36 | T193: gelofzack_B | U193: 33 | V193: 33 | W193: 43 | X193: 29 | Y193: 56 | Z193: 29 | AA193: 40 | AB193: 190 | AC193: 99_190 | AD193: 190 | AE193: 16.10 | AF193: Ezequiel Tovar | AG193: COL | AH193: SS | AI193: 25 | AJ193: 209 | AK193: 18.06 | AL193: Rnd 18 ADP Bargain | AM193: 0.3 | AN193: 78 | AO193: 19 | AP193: 72 | AQ193: 14 | AR193: 161 | AS193: 62 | AT193: 3.52 | AU193: tovarezequiel_B | AV193: 29 | AW193: 68 | AX193: 59 | AY193: 65 | AZ193: 54 | BA193: 81 | BB193: 80
B194: 03_058 | C194: 760 | D194: 64.04 | E194: Casey Schmitt | F194: SFG | G194: 2B,3B | H194: 27 | I194: 589 | J194: 50.02 | K194: Waiver Wire | L194: 0.299 | M194: 48 | N194: 14 | O194: 54 | P194: 3 | Q194: 104 | R194: 37 | S194: 2.32 | T194: schmittcasey_B | U194: 28 | V194: 27 | W194: 43 | X194: 41 | Y194: 29 | Z194: 36 | AA194: 36 | AB194: 191 | AC194: 99_191 | AD194: =IF(ISNA(VLOOKUP($AC194,RankData,AD$3,FALSE)),"",VLOOKUP($AC194,RankData,AD$3,FALSE)) -> 191 | AE194: 16.11 | AF194: Lucas Erceg | AG194: KCR | AH194: RP | AI194: 31 | AJ194: 441 | AK194: 37.10 | AL194: Sleeper | AM194: 6 | AN194: =IF(ISNA(VLOOKUP($AC194,RankData,AN$3,FALSE)),"",VLOOKUP($AC194,RankData,AN$3,FALSE)) -> 6 | AO194: 8.9 | AP194: 3.93 | AQ194: 1.35 | AR194: 16 | AS194: 98 | AT194: 3.46 | AU194: erceglucas_P | AV194: 40 | AW194: 64 | AX194: 36 | AY194: 57 | AZ194: 73 | BA194: 87 | BB194: 80
B195: 03_059 | C195: 768 | D195: 64.12 | E195: Edmundo Sosa | F195: PHI | G195: 2B,3B | H195: 30 | I195: 597 | J195: 50.10 | K195: Waiver Wire | L195: 0.304 | M195: 43 | N195: 10 | O195: 39 | P195: 5 | Q195: 88 | R195: 30 | S195: 2.32 | T195: sosaedmundo_B | U195: 33 | V195: 22 | W195: 31 | X195: 23 | Y195: 33 | Z195: 24 | AA195: 25 | AB195: 192 | AC195: 99_192 | AD195: 192 | AE195: 16.12 | AF195: Jacob Wilson | AG195: ATH | AH195: SS | AI195: 24 | AJ195: 159 | AK195: 14.04 | AL195: Rnd 14 ADP Bust | AM195: 0.338 | AN195: 75 | AO195: 18 | AP195: 77 | AQ195: 4 | AR195: 162 | AS195: 52 | AT195: 3.48 | AU195: wilsonjacob_B | AV195: 66 | AW195: 64 | AX195: 56 | AY195: 71 | AZ195: 31 | BA195: 82 | BB195: 64
B196: 03_060 | C196: 774 | D196: 65.06 | E196: Angel Martinez | F196: CLE | G196: 2B,OF | H196: 24 | I196: 626 | J196: 53.03 | K196: Waiver Wire | L196: 0.288 | M196: 67 | N196: 12 | O196: 56 | P196: 12 | Q196: 127 | R196: 46 | S196: 2.26 | T196: martinezangel_B | U196: 20 | V196: 53 | W196: 37 | X196: 44 | Y196: 49 | Z196: 56 | AA196: 53 | AB196: 193 | AC196: 99_193 | AD196: 193 | AE196: 17.01 | AF196: Gus Varland | AG196: WSN | AH196: RP | AI196: 29 | AJ196: 371 | AK196: 31.12 | AL196: Sleeper | AM196: 2 | AN196: 0 | AO196: 8.7 | AP196: 5.22 | AQ196: 1.51 | AR196: 3 | AS196: 95 | AT196: 3.5 | AU196: varlandgus_P | AV196: 18 | AW196: 37 | AX196: 33 | AY196: 93 | AZ196: 92 | BA196: 42 | BB196: 50
B197: 03_061 | C197: 779 | D197: 65.11 | E197: Vaughn Grissom | F197: LAA | G197: 2B | H197: 25 | I197: 931 | J197: 78.08 | K197: Waiver Wire | L197: 0.327 | M197: 67 | N197: 11 | O197: 56 | P197: 15 | Q197: 128 | R197: 38 | S197: 2.2 | T197: grissomvaughn_B | U197: =IF(RIGHT($T197,1)="B",ROUND(100*EXP((L197-BO$6)/BO$7)/(1+EXP((L197-BO$6)/BO$7)),0),ROUND(100*EXP((L197-BO$9)/BO$10)/(1+EXP((L197-BO$9)/BO$10)),0)) -> 55 | V197: =IF(RIGHT($T197,1)="B",ROUND(100*EXP((M197-BP$6)/BP$7)/(1+EXP((M197-BP$6)/BP$7)),0),ROUND(100*EXP((M197-BP$9)/BP$10)/(1+EXP((M197-BP$9)/BP$10)),0)) -> 53 | W197: =IF(RIGHT($T197,1)="B",ROUND(100*EXP((N197-BQ$6)/BQ$7)/(1+EXP((N197-BQ$6)/BQ$7)),0),ROUND(100*EXP((N197-BQ$9)/BQ$10)/(1+EXP((N197-BQ$9)/BQ$10)),0)) -> 34 | X197: =IF(RIGHT($T197,1)="B",ROUND(100*EXP((O197-BR$6)/BR$7)/(1+EXP((O197-BR$6)/BR$7)),0),ROUND(100*EXP((O197-BR$9)/BR$10)/(1+EXP((O197-BR$9)/BR$10)),0)) -> 44 | Y197: =IF(RIGHT($T197,1)="B",ROUND(100*EXP((P197-BS$6)/BS$7)/(1+EXP((P197-BS$6)/BS$7)),0),ROUND(100*EXP((P197-BS$9)/BS$10)/(1+EXP((P197-BS$9)/BS$10)),0)) -> 56 | Z197: =IF(RIGHT($T197,1)="B",ROUND(100*EXP((Q197-BT$6)/BT$7)/(1+EXP((Q197-BT$6)/BT$7)),0),ROUND(100*EXP((Q197-BT$9)/BT$10)/(1+EXP((Q197-BT$9)/BT$10)),0)) -> 57 | AA197: =IF(RIGHT($T197,1)="B",ROUND(100*EXP((R197-BU$6)/BU$7)/(1+EXP((R197-BU$6)/BU$7)),0),ROUND(100*EXP((R197-BU$9)/BU$10)/(1+EXP((R197-BU$9)/BU$10)),0)) -> 38 | AB197: 194 | AC197: =$AC$1&TEXT($AB197,"000") -> 99_194 | AD197: 194 | AE197: 17.02 | AF197: Steven Kwan | AG197: CLE | AH197: OF | AI197: 28 | AJ197: 138 | AK197: 12.07 | AL197: Rnd 12 ADP Bust | AM197: 0.356 | AN197: 94 | AO197: 12 | AP197: 59 | AQ197: 19 | AR197: 176 | AS197: 45 | AT197: 3.48 | AU197: kwansteven_B | AV197: 80 | AW197: 84 | AX197: 37 | AY197: 48 | AZ197: 65 | BA197: 88 | BB197: 51
B198: 03_062 | C198: 781 | D198: 66.01 | E198: Brayan Rocchio | F198: CLE | G198: 2B,SS | H198: 25 | I198: 467 | J198: 39.12 | K198: Rnd 39 ADP Bust | L198: 0.298 | M198: 68 | N198: 12 | O198: 60 | P198: 16 | Q198: 127 | R198: 45 | S198: 2.22 | T198: rocchiobrayan_B | U198: 28 | V198: 54 | W198: 37 | X198: 49 | Y198: 59 | Z198: 56 | AA198: 51 | AB198: 195 | AC198: 99_195 | AD198: 195 | AE198: 17.03 | AF198: Dansby Swanson | AG198: CHC | AH198: SS | AI198: 32 | AJ198: 152 | AK198: 13.09 | AL198: Rnd 13 ADP Bust | AM198: 0.327 | AN198: 84 | AO198: 21 | AP198: 78 | AQ198: 14 | AR198: 148 | AS198: 53 | AT198: 3.48 | AU198: swansondansby_B | AV198: 55 | AW198: 75 | AX198: 65 | AY198: 72 | AZ198: 54 | BA198: 73 | BB198: 66
B199: 03_063 | C199: 795 | D199: 67.03 | E199: Cody Freeman | F199: TEX | G199: 2B | H199: 25 | I199: 1340 | J199: 112.09 | K199: Waiver Wire | L199: 0.289 | M199: 56 | N199: 13 | O199: 59 | P199: 9 | Q199: 110 | R199: 38 | S199: 2.26 | T199: freemancody_B | U199: 21 | V199: 37 | W199: 40 | X199: 48 | Y199: 42 | Z199: 41 | AA199: 38 | AB199: 196 | AC199: 99_196 | AD199: 196 | AE199: 17.04 | AF199: Trey Yesavage | AG199: TOR | AH199: SP | AI199: 23 | AJ199: 149 | AK199: 13.06 | AL199: Rnd 13 ADP Bust | AM199: 7 | AN199: 0 | AO199: 12 | AP199: 3.29 | AQ199: 1.12 | AR199: 0 | AS199: 95 | AT199: 3.46 | AU199: yesavagetrey_P | AV199: 46 | AW199: 37 | AX199: 86 | AY199: 30 | AZ199: 25 | BA199: 30 | BB199: 50
B200: 03_064 | C200: 834 | D200: 70.06 | E200: Leo Rivas | F200: SEA | G200: 2B | H200: 28 | I200: 1348 | J200: 113.05 | K200: Waiver Wire | L200: 0.347 | M200: 60 | N200: 7 | O200: 43 | P200: 26 | Q200: 89 | R200: 21 | S200: 2.18 | T200: rivasleo_B | U200: 74 | V200: 43 | W200: 24 | X200: 27 | Y200: 79 | Z200: 25 | AA200: 14 | AB200: 197 | AC200: 99_197 | AD200: 197 | AE200: 17.05 | AF200: Kris Bubic | AG200: KCR | AH200: SP | AI200: 28 | AJ200: 196 | AK200: 17.05 | AL200: Good Value in Rnd 17 | AM200: 9 | AN200: 0 | AO200: 8.7 | AP200: 3.94 | AQ200: 1.36 | AR200: 3 | AS200: 92 | AT200: 3.42 | AU200: bubickris_P | AV200: 60 | AW200: 37 | AX200: 33 | AY200: 57 | AZ200: 75 | BA200: 42 | BB200: 20
... 2605 more rows

Sheet Adjustments (hidden)
A1: namekey_pos | B1: Adjustment
